Workbook

Sheet Euro
A2: EU weaner reference prices
A3: Source: EU Commission
A4: Units: €/head
A5: Last updated: 02/07/2021
B7: Week ended | C7: Belgium | D7: Czech Rep | E7: Denmark | F7: Germany | G7: Estonia | H7: Spain | I7: France | J7: Croatia | K7: Italy | L7: Luxembourg | M7: Hungary | N7: Malta | O7: Netherlands | P7: Poland | Q7: Portugal | R7: Slovakia | S7: Finland | T7: Sweden | U7: GB | V7: EU | W7: EU excluding UK
B8: 2011-01-09 | C8: 37 | D8: 45 | E8: 36.1 | F8: 45.7 | G8: 41.8 | H8: 31.55 | I8: 26.6 | K8: 53.81 | L8: 41.6 | M8: 30.64 | N8: 80 | O8: 28.5 | P8: 21.46 | Q8: 40 | R8: 48.07 | S8: 47.36 | T8: 59.56 | U8: 48.6 | V8: 35.9
B9: 2011-01-16 | C9: 37 | D9: 45.65 | E9: 35.3 | F9: 43.3 | G9: 36.08 | H9: 30.68 | I9: 26.8 | K9: 54.5 | L9: 41.4 | M9: 32.07 | N9: 80 | O9: 26.5 | P9: 20.13 | Q9: 40 | R9: 23.87 | S9: 49.91 | T9: 59.44 | U9: 50.6 | V9: 35.15
B10: 2011-01-23 | C10: 33.5 | D10: 45.93 | E10: 35.3 | F10: 35.4 | G10: 36.2 | H10: 30.65 | I10: 27 | K10: 55.16 | L10: 36.6 | M10: 29.94 | N10: 80 | O10: 21.5 | P10: 20.33 | Q10: 36 | R10: 45.09 | S10: 50.62 | T10: 58.69 | U10: 50.03 | V10: 33.06
B11: 2011-01-30 | C11: 33.5 | D11: 46.08 | E11: 34.35 | F11: 38.4 | G11: 37.09 | H11: 31.83 | I11: 26.8 | K11: 55.9 | L11: 30.2 | M11: 30.69 | N11: 80 | O11: 21.5 | P11: 19.32 | Q11: 36 | R11: 45.09 | S11: 50.7 | T11: 52.58 | U11: 49.13 | V11: 33.65
B12: 2011-02-06 | C12: 36.5 | D12: 46.31 | E12: 35.28 | F12: 44.7 | G12: 38.16 | H12: 34.39 | I12: 26.8 | K12: 56.8 | L12: 29.7 | M12: 42.01 | N12: 80 | O12: 27.5 | P12: 19.16 | Q12: 36 | R12: 52.8 | S12: 50.63 | T12: 51.27 | U12: 48.19 | V12: 35.83
B13: 2011-02-13 | C13: 39.5 | D13: 47.16 | E13: 36.08 | F13: 49 | G13: 35.83 | H13: 38.89 | I13: 27.8 | K13: 57.71 | L13: 31.7 | M13: 34.44 | N13: 80 | O13: 32.5 | P13: 19.83 | Q13: 36 | R13: 61.86 | S13: 51.33 | T13: 48.68 | U13: 48.6 | V13: 38.8
B14: 2011-02-20 | C14: 40 | D14: 46.85 | E14: 37.69 | F14: 49.8 | G14: 32.21 | H14: 43.81 | I14: 28.2 | K14: 58.69 | L14: 30.2 | M14: 27.66 | N14: 80 | O14: 35.5 | P14: 20.93 | Q14: 36 | R14: 58.35 | S14: 50.25 | T14: 49.14 | U14: 49.07 | V14: 40.34
B15: 2011-02-27 | C15: 40 | D15: 36.24 | E15: 37.69 | F15: 49.9 | G15: 37.97 | H15: 45.43 | I15: 28.6 | K15: 59.41 | L15: 30.9 | M15: 34.99 | N15: 80 | O15: 36 | P15: 21.44 | Q15: 36 | R15: 58.35 | S15: 49.24 | T15: 45.66 | U15: 48.33 | V15: 40.8
B16: 2011-03-06 | C16: 40 | D16: 40.49 | E16: 37.69 | F16: 50.1 | G16: 37.05 | H16: 45.7 | I16: 29 | K16: 60.26 | L16: 30.9 | M16: 39.34 | N16: 80 | O16: 36 | P16: 21.62 | Q16: 36 | R16: 57.1 | S16: 49.27 | T16: 47.18 | U16: 47.85 | V16: 41.16
B17: 2011-03-13 | C17: 40 | D17: 40.54 | E17: 37.68 | F17: 50.2 | G17: 39.92 | H17: 44.88 | I17: 29.4 | K17: 60.9 | L17: 32.9 | M17: 35.5 | N17: 80 | O17: 36 | P17: 22.65 | Q17: 36 | R17: 50 | S17: 49.73 | T17: 48.91 | U17: 47.45 | V17: 41.11
B18: 2011-03-20 | C18: 41 | D18: 51.54 | E18: 37.68 | F18: 50.9 | G18: 49.11 | H18: 43.12 | I18: 29.8 | K18: 60.9 | L18: 33.4 | M18: 25.9 | N18: 80 | O18: 36 | P18: 23.97 | Q18: 36 | R18: 50.22 | S18: 48.01 | T18: 50.99 | U18: 47.16 | V18: 41.35
B19: 2011-03-27 | C19: 41 | D19: 51.31 | E19: 39.69 | F19: 51.4 | G19: 38.61 | H19: 42.19 | I19: 30.8 | K19: 61.4 | L19: 34 | M19: 36.05 | N19: 80 | O19: 36 | P19: 24.41 | Q19: 36 | R19: 55 | S19: 50.41 | T19: 52.11 | U19: 47.16 | V19: 41.68
B20: 2011-04-03 | C20: 42 | D20: 51.91 | E20: 39.69 | F20: 51.6 | G20: 36.91 | H20: 40.29 | I20: 31.2 | K20: 61.56 | L20: 34.6 | M20: 42.54 | N20: 80 | O20: 36 | P20: 26.12 | Q20: 36 | R20: 49.67 | S20: 48.65 | T20: 50.73 | U20: 47.09 | V20: 41.74
B21: 2011-04-10 | C21: 42 | D21: 42.9877 | E21: 40.7674 | F21: 51.6 | G21: 38.22 | H21: 40.01 | I21: 32 | K21: 61.61 | L21: 32.7 | M21: 35.3268 | N21: 80 | O21: 36 | P21: 26.9614 | Q21: 36 | R21: 54.72 | S21: 49.33 | T21: 52.7441 | U21: 48.3693 | V21: 41.7693
B22: 2011-04-17 | C22: 43 | D22: 56.49 | E22: 40.76 | F22: 52.7 | G22: 40.92 | H22: 39.46 | I22: 33.4 | K22: 61.61 | L22: 30.3 | M22: 48.25 | N22: 80 | O22: 36 | P22: 27.87 | Q22: 36 | R22: 60.9 | S22: 49.44 | T22: 53.3 | U22: 48.88 | V22: 42.73
B23: 2011-04-24 | C23: 43.5 | D23: 46.16 | E23: 39.96 | F23: 52.5 | G23: 37.33 | H23: 39.24 | I23: 36.4 | K23: 61.61 | L23: 21.7 | M23: 38.59 | N23: 80 | O23: 36 | P23: 29.09 | Q23: 32 | R23: 54.83 | S23: 49.33 | T23: 54.32 | U23: 49.42 | V23: 42.39
B24: 2011-05-01 | C24: 44.5 | D24: 64.18 | E24: 39.96 | F24: 53 | G24: 37.55 | H24: 36.99 | I24: 34.6 | K24: 61.79 | L24: 27.7 | M24: 41.41 | N24: 80 | O24: 36 | P24: 29.51 | Q24: 32 | R24: 54.67 | S24: 49.16 | T24: 55.56 | U24: 49.33 | V24: 42.62
B25: 2011-05-08 | C25: 44.5 | D25: 46.76 | E25: 41.57 | F25: 53.6 | G25: 38.88 | H25: 35.58 | I25: 35.8 | K25: 61.76 | L25: 27.9 | M25: 37.76 | N25: 80 | O25: 36 | P25: 29.21 | Q25: 32 | R25: 53.11 | S25: 48.94 | T25: 55.54 | U25: 50.09 | V25: 42.3
B26: 2011-05-15 | C26: 43.5 | D26: 56.89 | E26: 41.58 | F26: 53.2 | G26: 39.64 | H26: 33.96 | I26: 36.4 | K26: 61.76 | L26: 33.6 | M26: 36.49 | N26: 80 | O26: 35.5 | P26: 28.94 | Q26: 32 | R26: 65.34 | S26: 46.15 | T26: 56.36 | U26: 51.54 | V26: 42.03
B27: 2011-05-22 | C27: 41 | D27: 45.57 | E27: 41.57 | F27: 49.1 | G27: 37.66 | H27: 33.15 | I27: 35.6 | K27: 61.76 | L27: 33.5 | M27: 36.38 | N27: 80 | O27: 32.5 | P27: 29.74 | Q27: 32 | R27: 68.75 | S27: 45.73 | T27: 56.43 | U27: 52.12 | V27: 40.63
B28: 2011-05-29 | C28: 40 | D28: 45.34 | E28: 41.57 | F28: 46.3 | G28: 37.08 | H28: 30.33 | I28: 34.6 | K28: 61.67 | L28: 28.6 | M28: 47.05 | N28: 80 | O28: 30 | P28: 28.96 | Q28: 31 | R28: 51.54 | S28: 45.32 | T28: 57.24 | U28: 52.62 | V28: 39.26
B29: 2011-06-05 | C29: 40 | D29: 48.71 | E29: 40.64 | F29: 45.6 | G29: 43.82 | H29: 27.68 | I29: 34.6 | K29: 61.39 | L29: 29.8 | M29: 32.71 | N29: 80 | O29: 28.5 | P29: 28.46 | Q29: 28 | R29: 57.38 | S29: 45.99 | T29: 56.98 | U29: 52.05 | V29: 37.92
B30: 2011-06-12 | C30: 41 | D30: 51.87 | E30: 40.1 | F30: 45.6 | G30: 37.49 | H30: 24.39 | I30: 32.2 | K30: 60.71 | L30: 31.3 | M30: 37.29 | N30: 80 | O30: 28.5 | P30: 28.35 | Q30: 28 | R30: 46.58 | S30: 41.2 | T30: 53.23 | U30: 51.35 | V30: 37.09
B31: 2011-06-19 | C31: 41 | D31: 57.57 | E31: 41.29 | F31: 45.4 | G31: 38.92 | H31: 24.39 | I31: 31 | K31: 60 | L31: 37.5 | M31: 41.61 | N31: 80 | O31: 28.5 | P31: 28.28 | Q31: 28 | R31: 52.53 | S31: 38.29 | T31: 52.12 | U31: 51.91 | V31: 37.18
B32: 2011-06-26 | C32: 40 | D32: 51.97 | E32: 41.03 | F32: 45 | G32: 41.07 | H32: 24.63 | I32: 30 | K32: 59.21 | L32: 36.5 | M32: 39.37 | N32: 80 | O32: 28.5 | P32: 28.98 | Q32: 28 | R32: 48 | S32: 44.94 | T32: 52.3 | U32: 51.6 | V32: 36.9
B33: 2011-07-03 | C33: 39 | D33: 51.76 | E33: 41.03 | F33: 44.9 | G33: 44.38 | H33: 25.15 | I33: 28.2 | K33: 58.31 | L33: 36.5 | M33: 37.64 | N33: 80 | O33: 28.5 | P33: 29.12 | Q33: 28 | R33: 57.78 | S33: 44.23 | T33: 52.85 | U33: 51.23 | V33: 36.7
B34: 2011-07-10 | C34: 38 | D34: 51.95 | E34: 41.02 | F34: 44.9 | G34: 36.73 | H34: 26.59 | I34: 27.6 | K34: 57.54 | L34: 40.3 | M34: 33.22 | N34: 80 | O34: 27.5 | P34: 30.9 | Q34: 28 | R34: 48.88 | S34: 45.93 | T34: 55.26 | U34: 51.31 | V34: 36.7
B35: 2011-07-17 | C35: 38 | D35: 52.7 | E35: 41.03 | F35: 44.3 | G35: 38.68 | H35: 26.54 | I35: 27 | K35: 56.94 | L35: 40.9 | M35: 37.27 | N35: 80 | O35: 27 | P35: 31.54 | Q35: 28 | R35: 61.44 | S35: 46.29 | T35: 54 | U35: 52.05 | V35: 36.78
B36: 2011-07-24 | C36: 37 | D36: 52.49 | E36: 41.04 | F36: 42.2 | G36: 37.43 | H36: 26.36 | I36: 26.4 | K36: 56.23 | L36: 36.5 | M36: 35.07 | N36: 80 | O36: 27 | P36: 32.41 | Q36: 28 | R36: 49.73 | S36: 46.6 | T36: 56.96 | U36: 51.88 | V36: 36.08
B37: 2011-07-31 | C37: 36 | D37: 52.78 | E37: 41.07 | F37: 40 | G37: 43.31 | H37: 24.64 | I37: 25.8 | K37: 55.4 | L37: 40.2 | M37: 40.96 | N37: 80 | O37: 25.25 | P37: 31.5 | Q37: 28 | R37: 50 | S37: 47.12 | T37: 58.09 | U37: 51.88 | V37: 35.1
B38: 2011-08-07 | C38: 36 | D38: 50.29 | E38: 41.08 | F38: 39.5 | G38: 38.46 | H38: 23.88 | I38: 25.2 | K38: 54.74 | L38: 38.9 | M38: 29.44 | N38: 80 | O38: 24.5 | P38: 31.3 | Q38: 28 | R38: 56.49 | S38: 45.28 | T38: 54.48 | U38: 51.31 | V38: 34.31
B39: 2011-08-14 | C39: 35.5 | D39: 50.4 | E39: 40.14 | F39: 39.4 | G39: 38.95 | H39: 23.52 | I39: 24.2 | K39: 54.31 | L39: 37.4 | M39: 30.99 | N39: 80 | O39: 23.5 | P39: 30.31 | Q39: 28 | R39: 56.49 | S39: 46.28 | T39: 54.57 | U39: 49.93 | V39: 33.95
B40: 2011-08-21 | C40: 34.5 | D40: 46.63 | E40: 40.13 | F40: 39.3 | G40: 39.17 | H40: 22.33 | I40: 23.4 | K40: 54.13 | L40: 41 | M40: 38.73 | N40: 80 | O40: 23 | P40: 30.51 | Q40: 28 | R40: 47.31 | S40: 47.54 | T40: 57.19 | U40: 49.23 | V40: 33.95
B41: 2011-08-28 | C41: 34 | D41: 46.7 | E41: 40.14 | F41: 39.2 | G41: 52 | H41: 22.11 | I41: 23.2 | K41: 53.91 | L41: 38.7 | M41: 31.21 | N41: 80 | O41: 23 | P41: 30.66 | Q41: 28 | R41: 56.1 | S41: 46.79 | T41: 58.5 | U41: 48.53 | V41: 33.28
B42: 2011-09-04 | C42: 34 | D42: 50.91 | E42: 40.13 | F42: 39.2 | G42: 43.16 | H42: 21.83 | I42: 23 | K42: 53.9 | L42: 39.7 | M42: 27.76 | N42: 80 | O42: 23 | P42: 30.48 | Q42: 28 | R42: 70.63 | S42: 47.37 | T42: 61.31 | U42: 47.41 | V42: 33.21
B43: 2011-09-11 | C43: 34 | D43: 46.03 | E43: 41.22 | F43: 38.8 | G43: 36.4 | H43: 22.3 | I43: 22.8 | K43: 53.9 | L43: 42.2 | M43: 32.41 | N43: 80 | O43: 23 | P43: 30.83 | Q43: 28 | R43: 45.28 | S43: 47.33 | T43: 61.39 | U43: 46.83 | V43: 33.2
B44: 2011-09-18 | C44: 34 | D44: 48.94 | E44: 41.22 | F44: 38.7 | G44: 39.77 | H44: 25.08 | I44: 22.6 | K44: 53.9 | L44: 38 | M44: 33.78 | N44: 80 | O44: 23 | P44: 30.18 | Q44: 28 | R44: 60.45 | S44: 47.7 | T44: 59.33 | U44: 47.01 | V44: 33.76
B45: 2011-09-25 | C45: 34 | D45: 48.31 | E45: 41.23 | F45: 38.6 | G45: 39.62 | H45: 27.82 | I45: 22.6 | K45: 53.9 | L45: 39.5 | M45: 30.92 | N45: 80 | O45: 23 | P45: 29.27 | Q45: 28 | R45: 53.73 | S45: 45.6 | T45: 61.88 | U45: 46.36 | V45: 34.04
B46: 2011-10-02 | C46: 34 | D46: 48.74 | E46: 41.25 | F46: 38.7 | G46: 45.05 | H46: 29.08 | I46: 23.4 | K46: 53.9 | L46: 39.5 | M46: 29.57 | N46: 80 | O46: 23 | P46: 30.13 | Q46: 28 | R46: 47.81 | S46: 49.17 | T46: 61.57 | U46: 46.41 | V46: 34.46
B47: 2011-10-09 | C47: 34 | D47: 46.61 | E47: 42.32 | F47: 38.7 | G47: 43.27 | H47: 29.65 | I47: 23.8 | K47: 53.9 | L47: 34.6 | M47: 27.3 | N47: 80 | O47: 23 | P47: 30.38 | Q47: 28 | R47: 50.4 | S47: 45.6 | T47: 59.62 | U47: 46.32 | V47: 34.6
B48: 2011-10-16 | C48: 34 | D48: 46.72 | E48: 42.31 | F48: 38.9 | G48: 38.81 | H48: 29.15 | I48: 25 | K48: 53.99 | L48: 38.7 | M48: 27.26 | N48: 80 | O48: 23 | P48: 31.06 | Q48: 28 | R48: 47.41 | S48: 45.84 | T48: 64.43 | U48: 46.32 | V48: 34.76
B49: 2011-10-23 | C49: 35 | D49: 42.08 | E49: 42.31 | F49: 38.8 | G49: 41.4 | H49: 29.26 | I49: 26.6 | K49: 54.23 | L49: 36.8 | M49: 22.95 | N49: 80 | O49: 23 | P49: 30.81 | Q49: 24 | R49: 47.41 | S49: 45.97 | T49: 60.74 | U49: 46.17 | V49: 34.72
B50: 2011-10-30 | C50: 36 | D50: 42.11 | E50: 43.25 | F50: 40 | G50: 39.75 | H50: 29.98 | I50: 28.6 | K50: 54.63 | L50: 44.3 | M50: 30.09 | N50: 80 | O50: 24.75 | P50: 31.95 | Q50: 24 | R50: 53.19 | S50: 49.35 | T50: 63.03 | U50: 46.82 | V50: 36.01
B51: 2011-11-06 | C51: 37.5 | D51: 41.98 | E51: 43.27 | F51: 41.7 | G51: 39.28 | H51: 31.21 | I51: 29.6 | K51: 55.27 | L51: 39.9 | M51: 23.04 | N51: 80 | O51: 26.5 | P51: 31.04 | Q51: 24 | R51: 62.5 | S51: 47.8 | T51: 63.79 | U51: 47.75 | V51: 36.75
B52: 2011-11-13 | C52: 38.5 | D52: 41.29 | E52: 44.87 | F52: 43.7 | G52: 42.3 | H52: 33.12 | I52: 31.4 | K52: 55.99 | L52: 38.2 | M52: 32.64 | N52: 80 | O52: 28.5 | P52: 32.39 | Q52: 26 | R52: 62.5 | S52: 44.87 | T52: 64.92 | U52: 48.63 | V52: 38.52
B53: 2011-11-20 | C53: 38.5 | D53: 46.98 | E53: 44.88 | F53: 45.2 | G53: 43.61 | H53: 34.52 | I53: 32.8 | K53: 57.1 | L53: 39.6 | M53: 34.56 | N53: 80 | O53: 29.5 | P53: 31.43 | Q53: 26 | R53: 47.05 | S53: 47.64 | T53: 62.6 | U53: 49.27 | V53: 39.34
B54: 2011-11-27 | C54: 40.5 | D54: 47.88 | E54: 44.88 | F54: 46.4 | G54: 38.24 | H54: 35.42 | I54: 32.8 | K54: 58 | L54: 37.8 | M54: 30.16 | N54: 80 | O54: 31.5 | P54: 32.6 | Q54: 28 | R54: 56.72 | S54: 50.5 | T54: 64.86 | U54: 49.16 | V54: 40.26
B55: 2011-12-04 | C55: 41.5 | D55: 49.73 | E55: 45.59 | F55: 47.7 | G55: 41.71 | H55: 36.69 | I55: 33.2 | K55: 59.26 | L55: 38.6 | M55: 33.27 | N55: 80 | O55: 33.5 | P55: 32.62 | Q55: 28 | R55: 58.64 | S55: 50.17 | T55: 65.34 | U55: 50.12 | V55: 41.28
B56: 2011-12-11 | C56: 42.5 | D56: 50.08 | E56: 45.6 | F56: 49.1 | G56: 41.71 | H56: 37.81 | I56: 33.4 | K56: 60.71 | L56: 50.4 | M56: 33.12 | N56: 80 | O56: 35 | P56: 33.36 | Q56: 28 | R56: 60.75 | S56: 48.31 | T56: 65.59 | U56: 50.12 | V56: 42.15
B57: 2011-12-18 | C57: 42.5 | D57: 50.08 | E57: 45.6 | F57: 50.8 | G57: 40.01 | H57: 39.07 | I57: 33.6 | K57: 62.17 | L57: 45.2 | M57: 34.86 | N57: 80 | O57: 37 | P57: 34.85 | Q57: 28 | R57: 61.37 | S57: 49.34 | T57: 67.33 | U57: 52.18 | V57: 43.25
B58: 2011-12-25 | C58: 44.5 | D58: 54.97 | E58: 43.99 | F58: 51.6 | G58: 36.9 | H58: 40.72 | I58: 34 | K58: 63.89 | L58: 45.2 | M58: 32.87 | N58: 80 | O58: 38.5 | P58: 35.88 | Q58: 28 | R58: 63.15 | S58: 50.04 | T58: 68.33 | U58: 52.85 | V58: 44.16
B59: 2012-01-01 | C59: 44.5 | D59: 49.95 | E59: 43.04 | F59: 52.2 | G59: 39.12 | H59: 41.35 | I59: 34.6 | K59: 64.81 | L59: 45.2 | M59: 32.31 | N59: 80 | O59: 38.5 | P59: 36.59 | Q59: 28 | R59: 61.69 | S59: 50.76 | T59: 65.27 | U59: 53.33 | V59: 44.43
B60: 2012-01-08 | C60: 44.5 | D60: 48.13 | E60: 43.04 | F60: 53.2 | G60: 40.9 | H60: 42.21 | I60: 35.2 | K60: 65.41 | L60: 45.2 | M60: 31.5 | N60: 80 | O60: 39 | P60: 36.72 | Q60: 28 | R60: 66.06 | S60: 50.31 | T60: 71.65 | U60: 53.67 | V60: 45.03
B61: 2012-01-15 | C61: 44 | D61: 58.37 | E61: 41.82 | F61: 53.7 | G61: 49.86 | H61: 38.59 | I61: 35.8 | K61: 67.14 | L61: 45.2 | M61: 37.64 | N61: 80 | O61: 39 | P61: 36.71 | Q61: 28 | R61: 66.06 | S61: 49.73 | T61: 69.24 | U61: 54.5 | V61: 44.77
B62: 2012-01-22 | C62: 44.5 | D62: 58.79 | E62: 40.88 | F62: 54.4 | G62: 53 | H62: 38.59 | I62: 35.6 | K62: 68.13 | L62: 45.2 | M62: 57.09 | N62: 80 | O62: 40 | P62: 37.6 | Q62: 28 | R62: 65.75 | S62: 51.2 | T62: 69.36 | U62: 53.85 | V62: 45.54
B63: 2012-01-29 | C63: 46.5 | D63: 59.24 | E63: 40.89 | F63: 57.1 | G63: 39.4 | H63: 38.81 | I63: 35.8 | K63: 68.91 | L63: 47.7 | M63: 41.87 | N63: 80 | O63: 43 | P63: 39.03 | Q63: 27 | R63: 65.79 | S63: 52.43 | T63: 69.15 | U63: 53.39 | V63: 46.28
B64: 2012-02-05 | C64: 47.5 | D64: 59.6 | E64: 40.89 | F64: 58.8 | G64: 39.08 | H64: 40.11 | I64: 36.3 | K64: 69.79 | L64: 40 | M64: 42.62 | N64: 80 | O64: 45.5 | P64: 40.07 | Q64: 27 | R64: 62.02 | S64: 53.88 | T64: 68.61 | U64: 53.53 | V64: 47.39
B65: 2012-02-12 | C65: 48.5 | D65: 59.85 | E65: 41.57 | F65: 59.7 | G65: 53.57 | H65: 41.37 | I65: 37.2 | K65: 70.31 | L65: 41.7 | M65: 49.65 | N65: 80 | O65: 47 | P65: 40.27 | Q65: 27 | R65: 58.4 | S65: 51.95 | T65: 68.64 | U65: 53.44 | V65: 48.33
B66: 2012-02-19 | C66: 49 | D66: 59.85 | E66: 42.51 | F66: 60.7 | G66: 41.04 | H66: 46.81 | I66: 38 | K66: 71.03 | L66: 46.5 | M66: 53.54 | N66: 80 | O66: 47.5 | P66: 39.92 | Q66: 30 | R66: 68.71 | S66: 50.51 | T66: 73.97 | U66: 53.4 | V66: 49.9863
B67: 2012-02-26 | C67: 49.5 | D67: 67.07 | E67: 42.51 | F67: 61.5 | G67: 35.6 | H67: 44.02 | I67: 38.8 | K67: 71.81 | L67: 45.5 | M67: 46.75 | N67: 80 | O67: 47.5 | P67: 41.13 | Q67: 30 | R67: 63.01 | S67: 54.43 | T67: 69.03 | U67: 53.06 | V67: 49.7713
B68: 2012-03-04 | C68: 49.5 | D68: 67.07 | E68: 42.5 | F68: 62.1 | G68: 39.46 | H68: 45.41 | I68: 39.6 | K68: 72.26 | L68: 41.1 | M68: 58.78 | N68: 80 | O68: 47.5 | P68: 41.64 | Q68: 30 | R68: 66.69 | S68: 55.25 | T68: 71.71 | U68: 53.13 | V68: 50.6718
B69: 2012-03-11 | C69: 49.5 | D69: 67.73 | E69: 42.5 | F69: 62.2 | G69: 44.84 | H69: 46.84 | I69: 40.2 | K69: 72.56 | L69: 43.9 | M69: 61.55 | N69: 80 | O69: 47.5 | P69: 41.48 | Q69: 31 | R69: 67.59 | S69: 54.81 | T69: 70.26 | U69: 53.91 | V69: 51.0305
B70: 2012-03-18 | C70: 49.5 | D70: 68.27 | E70: 42.5 | F70: 62.4 | G70: 38.34 | H70: 46.84 | I70: 40.4 | K70: 72.8 | L70: 48.4 | M70: 52.43 | N70: 80 | O70: 47.5 | P70: 43.18 | Q70: 31 | R70: 68.04 | S70: 53.94 | T70: 72.26 | U70: 54.67 | V70: 51.1066
B71: 2012-03-25 | C71: 49.5 | D71: 67.19 | E71: 42.5 | F71: 62.3 | G71: 42.4 | H71: 48.28 | I71: 40.4 | K71: 72.97 | L71: 47.2 | M71: 63.48 | N71: 80 | O71: 47.5 | P71: 42.51 | Q71: 31 | R71: 73.75 | S71: 53.31 | T71: 70.55 | U71: 55.13 | V71: 51.5923
B72: 2012-04-01 | C72: 49.5 | D72: 54.57 | E72: 42.49 | F72: 62.2 | G72: 38.8 | H72: 47.32 | I72: 41 | K72: 73.01 | L72: 44.9 | M72: 66.8 | N72: 80 | O72: 47.5 | P72: 43.58 | Q72: 31 | R72: 66.38 | S72: 55.86 | T72: 71.61 | U72: 54.98 | V72: 51.5235
B73: 2012-04-08 | C73: 50 | D73: 48.8 | E73: 42.47 | F73: 62.5 | G73: 39.95 | H73: 46.97 | I73: 41 | K73: 73.01 | L73: 46.6 | M73: 47.67 | N73: 80 | O73: 47.5 | P73: 42.93 | Q73: 31 | R73: 70.75 | S73: 55.02 | T73: 73.96 | U73: 55.45 | V73: 51.071
B74: 2012-04-15 | C74: 50 | D74: 60.58 | E74: 42.88 | F74: 62.4 | G74: 44.39 | H74: 46.97 | I74: 40.8 | K74: 73.01 | L74: 46.6 | M74: 48.87 | N74: 80 | O74: 47.5 | P74: 43.82 | Q74: 31 | R74: 64.03 | S74: 52.46 | T74: 76.19 | U74: 55.66 | V74: 51.2935
B75: 2012-04-22 | C75: 50 | D75: 57.87 | E75: 42.88 | F75: 62.4 | G75: 37.78 | H75: 46.9 | I75: 40.2 | K75: 73.01 | L75: 46.5 | M75: 68.95 | N75: 80 | O75: 47.5 | P75: 44.02 | Q75: 32 | R75: 67.94 | S75: 55.67 | T75: 74.39 | U75: 56 | V75: 51.7048
B76: 2012-04-29 | C76: 49.5 | D76: 57.7238 | E76: 42.8806 | F76: 62.3 | G76: 38.2 | H76: 46.9 | I76: 39.8 | K76: 73.06 | L76: 45.3 | M76: 51.3877 | N76: 80 | O76: 47.5 | P76: 44.3951 | Q76: 32 | R76: 64.56 | S76: 51.79 | T76: 73.67 | U76: 55.5259 | V76: 51.1755
B77: 2012-05-06 | C77: 49.5 | D77: 52.7951 | E77: 43.96 | F77: 62.3 | G77: 38.6 | H77: 46.31 | I77: 38.2 | K77: 72.99 | L77: 49.6 | M77: 54.9652 | N77: 80 | O77: 47.5 | P77: 44.7369 | Q77: 32 | R77: 46.08 | S77: 55.96 | T77: 74.8665 | U77: 55.8435 | V77: 51.0086
B78: 2012-05-13 | C78: 47.5 | D78: 63.1658 | E78: 43.98 | F78: 59.5 | G78: 44.14 | H78: 45.42 | I78: 36.6 | K78: 72.67 | L78: 39.5 | M78: 52.0678 | N78: 80 | O78: 44.5 | P78: 43.9207 | Q78: 30 | R78: 69.14 | S78: 56.31 | T78: 72.6079 | U78: 56.17 | V78: 49.83
B79: 2012-05-20 | C79: 47 | D79: 56.6129 | E79: 43.3196 | F79: 59 | G79: 37.57 | H79: 43.2 | I79: 35.4 | K79: 72.04 | L79: 41.7 | M79: 57.9628 | N79: 80 | O79: 41.5 | P79: 42.6066 | Q79: 30 | R79: 65.42 | S79: 53.63 | T79: 73.5071 | U79: 55.246 | V79: 48.6239
B80: 2012-05-27 | C80: 47 | D80: 59.8762 | E80: 43.3282 | F80: 59 | G80: 37.2 | H80: 42.48 | I80: 34.4 | K80: 70.96 | L80: 43.6 | M80: 51.7873 | N80: 80 | O80: 40.5 | P80: 41.5882 | Q80: 30 | R80: 65 | S80: 57.1 | T80: 73.948 | U80: 55 | V80: 48.0435
B81: 2012-06-03 | C81: 46.5 | D81: 61.5732 | E81: 44.41 | F81: 58.7 | G81: 42.53 | H81: 42.12 | I81: 34.8 | K81: 69.69 | L81: 44.7 | M81: 50.2164 | N81: 80 | O81: 40.5 | P81: 41.3736 | Q81: 30 | R81: 68.44 | S81: 55.31 | T81: 74.8214 | U81: 55.01 | V81: 47.94
B82: 2012-06-10 | C82: 46.5 | D82: 62.3032 | E82: 45.3461 | F82: 57.1 | G82: 38.2 | H82: 42.32 | I82: 35 | K82: 68.84 | L82: 44.7 | M82: 45.0439 | N82: 80 | O82: 40.5 | P82: 41.2105 | Q82: 30 | R82: 61.97 | S82: 55.71 | T82: 77.116 | U82: 53.62 | V82: 47.5229
B83: 2012-06-17 | C83: 45.5 | D83: 70.6027 | E83: 45.2109 | F83: 56.5 | G83: 49.57 | H83: 42.66 | I83: 34.2 | K83: 67.5 | L83: 41.2 | M83: 51.5702 | N83: 80 | O83: 39.5 | P83: 40.8899 | Q83: 30 | R83: 68.59 | S83: 58.45 | T83: 77.9233 | U83: 53.38 | V83: 47.46
B84: 2012-06-24 | C84: 43.5 | D84: 73.2152 | E84: 45.203 | F84: 53.4 | G84: 36.51 | H84: 42.66 | I84: 33.4 | K84: 66.41 | L84: 45.2 | M84: 53.5551 | N84: 80 | O84: 38 | P84: 41.5622 | Q84: 30 | R84: 66.98 | S84: 57.12 | T84: 76.6862 | U84: 53.41 | V84: 46.57
B85: 2012-07-01 | C85: 42.5 | D85: 58.2309 | E85: 45.6042 | F85: 52.2 | G85: 38.47 | H85: 42.47 | I85: 32.8 | K85: 64.91 | L85: 42.2 | M85: 54.9432 | N85: 80 | O85: 34.5 | P85: 40.7449 | Q85: 30 | R85: 48.94 | S85: 57.81 | T85: 77.9666 | U85: 52.6464 | V85: 45.46
B86: 2012-07-08 | C86: 41.5 | D86: 60.4746 | E86: 45.5839 | F86: 51.1 | G86: 39 | H86: 42.07 | I86: 32.2 | K86: 63.61 | L86: 46.9 | M86: 47.605 | N86: 80 | O86: 32.5 | P86: 41.2606 | Q86: 30 | R86: 66.18 | S86: 55.69 | T86: 80.4103 | U86: 52.82 | V86: 44.96
B87: 2012-07-15 | C87: 40 | D87: 61.4035 | E87: 45.5748 | F87: 48.6 | G87: 48.4 | H87: 41.73 | I87: 31.4 | K87: 63.06 | L87: 43.6 | M87: 45.0366 | N87: 80 | O87: 30 | P87: 41.6756 | Q87: 30 | R87: 46.67 | S87: 57.23 | T87: 80.2157 | U87: 52.3297 | V87: 43.8914
B88: 2012-07-22 | C88: 37.5 | D88: 61.5499 | E88: 45.5675 | F88: 46.2 | G88: 42.65 | H88: 40.45 | I88: 30.8 | K88: 62.23 | L88: 45.3 | M88: 45.4468 | N88: 80 | O88: 28 | P88: 42.3602 | Q88: 30 | R88: 72.49 | S88: 58.05 | T88: 83.8341 | U88: 52.13845943 | V88: 42.966
B89: 2012-07-29 | C89: 37.5 | D89: 61.38 | E89: 45.5675 | F89: 45.8 | G89: 37.2 | H89: 40.45 | I89: 30.8 | K89: 61.86 | L89: 43.4 | M89: 48.952 | N89: 80 | O89: 28 | P89: 42.3308 | Q89: 30 | R89: 59.1 | S89: 57.03 | T89: 84.2906 | U89: 51.407 | V89: 42.831
B90: 2012-08-05 | C90: 37.5 | D90: 61.8493 | E90: 46.6356 | F90: 46.1 | G90: 39.4 | H90: 38.44 | I90: 29.4 | K90: 60.8 | L90: 43.4 | M90: 35.9467 | N90: 80 | O90: 28 | P90: 43.1464 | Q90: 30 | R90: 65.44 | S90: 59.1 | T90: 85.4689 | U90: 50.8878 | V90: 42.2385
B91: 2012-08-12 | C91: 38 | D91: 64.6887 | E91: 44.8761 | F91: 47.1 | G91: 38.94 | H91: 36.07 | I91: 27 | K91: 60.37 | L91: 41.3 | M91: 45.6255 | N91: 80 | O91: 28 | P91: 43.6886 | Q91: 30 | R91: 73.71 | S91: 59.65 | T91: 83.3903 | U91: 50.2575 | V91: 41.8681
B92: 2012-08-19 | C92: 39.5 | D92: 53.3074 | E92: 46.0766 | F92: 49 | G92: 47.06 | H92: 35.31 | I92: 26.4 | K92: 60.37 | L92: 43.7 | M92: 45.9731 | N92: 85.4 | O92: 29.5 | P92: 42.9248 | Q92: 30 | R92: 60.71 | S92: 58.61 | T92: 84.6089 | U92: 50.0428 | V92: 42.1345
B93: 2012-08-26 | C93: 41.5 | D93: 53.5865 | E93: 46.0581 | F93: 51.2 | G93: 37.03 | H93: 35.16 | I93: 25.8 | K93: 59.96 | L93: 43.7 | M93: 45.6939 | N93: 85.4 | O93: 31.5 | P93: 44.0078 | Q93: 32 | R93: 68.36 | S93: 59.14 | T93: 85.4388 | U93: 49.7289 | V93: 42.8832
B94: =B93+7 -> 2012-09-02 | C94: 43.5 | D94: 71.8966 | E94: 47.653 | F94: 53.6 | G94: 41.3 | H94: 37.03 | I94: 25.6 | K94: 59.96 | L94: 43.9 | M94: 38.8445 | N94: 85.4 | O94: 34.5 | P94: 43.7725 | Q94: 33 | R94: 55.5 | S94: 58.4 | T94: 86.5208 | U94: 49.3393 | V94: 44.2042
B95: 2012-09-09 | C95: 44 | D95: 72.1874 | E95: 47.5077 | F95: 54.2 | G95: 38.6 | H95: 38.25 | I95: 26.6 | K95: 59.96 | L95: 45.4 | M95: 36.4639 | N95: 85.4 | O95: 35.5 | P95: 44.3052 | Q95: 34 | R95: 82.79 | S95: 59.88 | T95: 83.1939 | U95: 49.1118 | V95: 44.8605
B96: 2012-09-16 | C96: 44 | D96: 61.2821 | E96: 47.4974 | F96: 54.6 | G96: 44.85 | H96: 38.66 | I96: 28.4 | K96: 59.99 | L96: 43 | M96: 35.2175 | N96: 85.4 | O96: 36 | P96: 45.3739 | Q96: 34 | R96: 65.63 | S96: 58.85 | T96: 78.7142 | U96: 48.6186 | V96: 45.0643
B97: 2012-09-23 | C97: 44 | D97: 75.8088 | E97: 48.5591 | F97: 54.7 | G97: 37.3 | H97: 39.06 | I97: 29.4 | K97: 60.16 | L97: 40.4 | M97: 51.4769 | N97: 85.4 | O97: 36 | P97: 45.1945 | Q97: 34 | R97: 67.19 | S97: 58.11 | T97: 79.6714 | U97: 48.5923 | V97: 45.864
B98: 2012-09-30 | C98: 44 | D98: 67.4017 | E98: 48.5526 | F98: 56.1 | G98: 37.91 | H98: 40.61 | I98: 30.6 | K98: 60.37 | L98: 44 | M98: 32.887 | N98: 85.4 | O98: 36 | P98: 44.8645 | Q98: 34 | R98: 48.52 | S98: 59.54 | T98: 86.039 | U98: 49.09 | V98: 46.0789
B99: 2012-10-07 | C99: 44 | D99: 67.641 | E99: 49.2243 | F99: 55.9 | G99: 37.6 | H99: 41.72 | I99: 32.2 | K99: 60.99 | L99: 44.2 | M99: 35.4566 | N99: 85.4 | O99: 36 | P99: 45.2137 | Q99: 34 | R99: 71.04 | S99: 59.81 | T99: 80.9622 | U99: 49.8016 | V99: 46.6738
B100: 2012-10-14 | C100: 45 | D100: 70.9862 | E100: 49.2102 | F100: 56.3 | G100: 42.21 | H100: 42.53 | I100: 32.6 | K100: 61.56 | L100: 46.5 | M100: 36.2174 | N100: 85.4 | O100: 36 | P100: 45.2824 | Q100: 34 | R100: 79.81 | S100: 58.55 | T100: 81.4875 | U100: 50.4275 | V100: 47.1607
B101: 2012-10-21 | C101: 44.5 | D101: 71.2265 | E101: 49.2015 | F101: 56 | G101: 36.6 | H101: 43.53 | I101: 32.6 | K101: 62.71 | L101: 43.7 | M101: 46.26 | N101: 87.24 | O101: 34.5 | P101: 45.5938 | Q101: 34 | R101: 77.55 | S101: 57.38 | T101: 79.4153 | U101: 50.6686 | V101: 47.4119
B102: 2012-10-28 | C102: 43.5 | D102: 64.9383 | E102: 49.2032 | F102: 56 | G102: 37.92 | H102: 44.33 | I102: 31.8 | K102: 63.44 | L102: 47.5 | M102: 35.6192 | N102: 85.4 | O102: 34.5 | P102: 45.3617 | Q102: 34 | R102: 69.37 | S102: 58.49 | T102: 82.1758 | U102: 52.3345 | V102: 47.2261
B103: 2012-11-04 | C103: 43 | D103: 65.6983 | E103: 48.2599 | F103: 56 | G103: 39.37 | H103: 44.11 | I103: 31 | K103: 64.16 | L103: 46 | M103: 34.4977 | N103: 85.4 | O103: 34 | P103: 44.7746 | Q103: 36 | R103: 76.42 | S103: 58.41 | T103: 83.2686 | U103: 52.8166 | V103: 47.0136
B104: 2012-11-11 | C104: 43 | D104: 65.0746 | E104: 46.5188 | F104: 56 | G104: 44.48 | H104: 43.87 | I104: 30.6 | K104: 64.89 | L104: 37.1 | M104: 33.1227 | N104: 87.14 | O104: 34 | P104: 45.4702 | Q104: 37 | R104: 67.91 | S104: 57.3 | T104: 80.1761 | U104: 55.3551 | V104: 46.8629
B105: 2012-11-18 | C105: 43.5 | D105: 61.5843 | E105: 46.5267 | F105: 56.5 | G105: 37.6 | H105: 43.97 | I105: 30.6 | K105: 65.18 | L105: 41.3 | M105: 48.1625 | N105: 87.14 | O105: 35 | P105: 44.0184 | Q105: 37 | R105: 75.64 | S105: 58.97 | T105: 83.6498 | U105: 56.0813 | V105: 47.3731
B106: 2012-11-25 | C106: 43.5 | D106: 65.4621 | E106: 46.5276 | F106: 56.9 | G106: 35.3 | H106: 44.26 | I106: 31 | K106: 65.44 | L106: 45.2 | M106: 37.0841 | N106: 87.14 | O106: 35.5 | P106: 44.7543 | Q106: 37 | R106: 72.73 | S106: 58.71 | T106: 86.7051 | U106: 55.9811 | V106: 47.5005
B107: 2012-12-02 | C107: 43.5 | D107: 65.8261 | E107: 47.593 | F107: 56.9 | G107: 36.6 | H107: 44.7 | I107: 29.8 | K107: 65.06 | L107: 44.4 | M107: 41.2341 | N107: 87.14 | O107: 35.5 | P107: 43.9698 | Q107: 37 | R107: 67.96 | S107: 60.82 | T107: 82.3101 | U107: 56.3987 | V107: 47.5127
B108: 2012-12-09 | C108: 43.5 | D108: 65.3265 | E108: 47.7229 | F108: 57 | G108: 43.79 | H108: 45.17 | I108: 29.6 | K108: 65.54 | L108: 48 | M108: 38.3716 | N108: 87.14 | O108: 35.5 | P108: 43.7262 | Q108: 37 | R108: 68.63 | S108: 55.01 | T108: 83.9659 | U108: 56.8577 | V108: 47.5537
B109: 2012-12-16 | C109: 43.5 | D109: 65.264 | E109: 46.8475 | F109: 57 | G109: 38.01 | H109: 45.99 | I109: 29.6 | K109: 65.5 | L109: 46.2 | M109: 38.8308 | N109: 87.14 | O109: 35.5 | P109: 42.8765 | Q109: 37 | R109: 71.41 | S109: 59.02 | T109: 83.8366 | U109: 57.0149 | V109: 47.7627
B110: 2012-12-23 | C110: 43.5 | D110: 65.355 | E110: 45.9721 | F110: 57 | G110: 37.03 | H110: 47.55 | I110: 30 | K110: 65.5 | L110: 53.6 | M110: 45.2725 | N110: 91.32 | O110: 35.5 | P110: 42.8115 | Q110: 39 | R110: 65.67 | S110: 58.43 | T110: 83.1089 | U110: 56.77027642 | V110: 47.9717
B111: 2012-12-30 | C111: 43.5 | D111: 65.5585 | E111: 44.0963 | F111: 55.5 | G111: 38.2 | H111: 48.44 | I111: 30 | K111: 65.5 | L111: 48.9 | M111: 44.7354 | N111: 91.32 | O111: 35.5 | P111: 43.4742 | Q111: 40 | R111: 65.67 | S111: 59.68 | T111: 85.4582 | U111: 56.5458 | V111: 47.7685
B112: 2013-01-06 | C112: 48.5 | D112: 62.4186 | E112: 44.0992 | F112: 56.9 | G112: 40.8 | H112: 46.3 | I112: 30.4 | K112: 65.51 | L112: 45.4 | M112: 41.2509 | N112: 91.32 | O112: 41.5 | P112: 43.8542 | Q112: 40 | R112: 65.67 | S112: 58.6 | T112: 84.9907 | U112: 56.7641 | V112: 48.3797 | W112: 48.02573727
B113: 2013-01-13 | C113: 48.5 | D113: 61.6387 | E113: 44.3684 | F113: 56.9 | G113: 36.71 | H113: 47.39 | I113: 31 | K113: 65.54 | L113: 45.4 | M113: 39.257 | N113: 91.32 | O113: 41.5 | P113: 43.378 | Q113: 40 | R113: 75 | S113: 58.27 | T113: 84.6013 | U113: 56.7013 | V113: 48.5992 | W113: 48.28896505
B114: 2013-01-20 | C114: 49 | D114: 61.5114 | E114: 43.2832 | F114: 56.9 | G114: 41.65 | H114: 48.52 | I114: 32 | K114: 65.71 | L114: 45.4 | M114: 51.0083 | N114: 91.32 | O114: 41.5 | P114: 41.6643 | Q114: 36 | R114: 69.19 | S114: 55 | T114: 85.3121 | U114: 55.7043 | V114: 48.8175 | W114: 48.58437865
B115: 2013-01-27 | C115: 49 | D115: 62.4728 | E115: 45.9609 | F115: 56.9 | G115: 38.34 | H115: 49.23 | I115: 32.4 | K115: 66.29 | L115: 48.4 | M115: 47.4062 | N115: 91.32 | O115: 41.5 | P115: 40.728 | Q115: 36 | R115: 69.19 | S115: 59.61 | T115: 83.957 | U115: 54.9613 | V115: 48.86867996 | W115: 48.94965328
B116: 2013-02-03 | C116: 50 | D116: 62.3952 | E116: 42.6213 | F116: 56.9 | G116: 38.8 | H116: 49.87 | I116: 33.4 | K116: 67.11 | L116: 44.8 | M116: 39.7192 | N116: 91.32 | O116: 42.5 | P116: 40.0818 | Q116: 33 | R116: 69.08 | S116: 58.88 | T116: 86.037 | U116: 54.278 | V116: 48.9518 | W116: 48.79841368
B117: 2013-02-10 | C117: 50.5 | D117: 62.7637 | E117: 42.6267 | F117: 57 | G117: 39.03 | H117: 50.8 | I117: 33.8 | K117: 67.83 | L117: 44.8 | M117: 43.8008 | N117: 91.32 | O117: 43.5 | P117: 40.4762 | Q117: 33 | R117: 75 | S117: 57.58 | T117: 84.9281 | U117: 54.0247 | V117: 49.4774 | W117: 49.36639603
B118: 2013-02-17 | C118: 51.5 | D118: 64.2872 | E118: 42.6193 | F118: 57.9 | G118: 39.16 | H118: 51.8 | I118: 34.8 | K118: 69.69 | L118: 46.7 | M118: 41.1442 | N118: 91.32 | O118: 44.5 | P118: 40.1696 | Q118: 33 | R118: 75 | S118: 60.12 | T118: 86.7969 | U118: 54.007 | V118: 50.1967 | W118: 50.1164387
B119: 2013-02-24 | C119: 52.5 | D119: 64.0327 | E119: 42.6293 | F119: 58.8 | G119: 38.52 | H119: 52.8 | I119: 35.4 | K119: 71.47 | L119: 44 | M119: 42.8078 | N119: 91.32 | O119: 46 | P119: 40.3991 | Q119: 34 | R119: 85.32 | S119: 60.74 | T119: 86.3823 | U119: 53.6894 | V119: 51.0408 | W119: 51.01067708
B120: 2013-03-03 | C120: 52.5 | D120: 63.6325 | E120: 42.6381 | F120: 59 | G120: 39.95 | H120: 52.94 | I120: 36 | K120: 73.66 | L120: 45.8 | M120: 47.1991 | N120: 91.32 | O120: 46.5 | P120: 40.8464 | Q120: 34 | R120: 84.33 | S120: 57.77 | T120: 89.2052 | U120: 53.6489 | V120: 51.5062 | W120: 51.4714836
B121: 2013-03-10 | C121: 52.5 | D121: 63.7299 | E121: 43.4593 | F121: 59 | G121: 38.9 | H121: 53.05 | I121: 37.2 | K121: 75.11 | L121: 48.5 | M121: 51.1866 | N121: 91.32 | O121: 46.5 | P121: 41.5869 | Q121: 35 | R121: 69.64 | S121: 60.24 | T121: 87.9622 | U121: 54.1643 | V121: 51.962 | W121: 51.90126677
B122: 2013-03-17 | C122: 52.5 | D122: 61.3034 | E122: 42.2402 | F122: 59 | G122: 41.66 | H122: 53.05 | I122: 37.4 | K122: 76.16 | L122: 49 | M122: 46.0773 | N122: 91.32 | O122: 46.5 | P122: 41.3518 | Q122: 35 | R122: 78.67 | S122: 57.12 | T122: 89.7901 | U122: 54.415 | V122: 51.8278 | W122: 51.74866671
B123: 2013-03-24 | C123: 52 | D123: 56.5479 | E123: 42.3911 | F123: 59.1 | G123: 39.4 | H123: 53.05 | I123: 38 | K123: 76.63 | L123: 44.5 | M123: 52.9637 | N123: 91.32 | O123: 46.5 | P123: 41.7344 | Q123: 37 | R123: 80.21 | S123: 60.15 | T123: 88.5566 | U123: 55.8036 | V123: 52.1552 | W123: 52.03119125
B124: 2013-03-31 | C124: 52 | D124: 58.2829 | E124: 42.3931 | F124: 59.1 | G124: 39.76 | H124: 52.75 | I124: 38.2 | K124: 76.67 | L124: 50.5 | M124: 44.2503 | N124: 91.32 | O124: 46.5 | P124: 41.227 | Q124: 39 | R124: 62.6 | S124: 61.8 | T124: 88.7461 | U124: 56.952 | V124: 51.9121 | W124: 51.7394776
B125: 2013-04-07 | C125: 52 | D125: 54.0901 | E125: 42.3903 | F125: 59.1 | G125: 40.47 | H125: 52.58 | I125: 37.8 | K125: 76.63 | L125: 47.2 | M125: 48.193 | N125: 91.32 | O125: 46.5 | P125: 41.8123 | Q125: 44 | R125: 67.65 | S125: 57.94 | T125: 88.174 | U125: 57.5727 | V125: 51.9999 | W125: 51.81481017
B126: 2013-04-14 | C126: 52 | D126: 53.1579 | E126: 42.3854 | F126: 59.1 | G126: 38.59 | H126: 52.58 | I126: 38 | K126: 76.26 | L126: 42.3 | M126: 40.3549 | N126: 91.32 | O126: 46.25 | P126: 42.8551 | Q126: 40 | R126: 62.17 | S126: 56.65 | T126: 89.0625 | U126: 57.3699 | V126: 51.793 | W126: 51.5854831
B127: 2013-04-21 | C127: 52 | D127: 56.4884 | E127: 42.3834 | F127: 59.3 | G127: 39.98 | H127: 49.83 | I127: 36.8 | K127: 75.74 | L127: 48.8 | M127: 63.0223 | N127: 91.32 | O127: 46.25 | P127: 42.745 | Q127: 40 | R127: 90.6 | S127: 59.83 | T127: 86.7715 | U127: 57.2806 | V127: 51.809 | W127: 51.54758107
B128: 2013-04-28 | C128: 50.5 | D128: 56.5053 | E128: 42.3853 | F128: 59.2 | G128: 39.44 | H128: 48.34 | I128: 35.8 | K128: 74.96 | L128: 48.8 | M128: 46.6354 | N128: 91.32 | O128: 45.25 | P128: 42.1638 | Q128: 39 | R128: 77.42 | S128: 60.13 | T128: 85.9131 | U128: 57.9381 | V128: 50.7122 | W128: 50.37209344
B129: 2013-05-05 | C129: 48.5 | D129: 69.9343 | E129: 42.5203 | F129: 57.1 | G129: 39.35 | H129: 46.98 | I129: 34.2 | K129: 74.44 | L129: 41 | M129: 50.3682 | N129: 91.32 | O129: 41.75 | P129: 41.0926 | Q129: 38 | R129: 61.45 | S129: 57.92 | T129: 86.5427 | U129: 58.7462 | V129: 49.4625 | W129: 49.06394304
B130: 2013-05-12 | C130: 46.5 | D130: 61.0923 | E130: 41.0536 | F130: 54.8 | G130: 40.11 | H130: 43.71 | I130: 34.4 | K130: 73.79 | L130: 44.6 | M130: 42.5517 | N130: 91.32 | O130: 38.75 | P130: 43.4363 | Q130: 37 | R130: 78.28 | S130: 54.75 | T130: 87.1108 | U130: 58.698 | V130: 47.8607 | W130: 47.27647392
B131: 2013-05-19 | C131: 44.5 | D131: 57.697 | E131: 41.0549 | F131: 53.6 | G131: 38.4 | H131: 41.48 | I131: 33.8 | K131: 71.74 | L131: 47.1 | M131: 59.051 | N131: 91.32 | O131: 36.25 | P131: 41.9568 | Q131: 37 | R131: 70.9 | S131: 55.66 | T131: 85.0279 | U131: 58.7045 | V131: 46.8026 | W131: 46.16167074
B132: 2013-05-26 | C132: 42.5 | D132: 57.4258 | E132: 41.0552 | F132: 53.2 | G132: 38.29 | H132: 40.16 | I132: 33.2 | K132: 70.06 | L132: 42.1 | M132: 46.4828 | N132: 91.32 | O132: 34.25 | P132: 40.9336 | Q132: 37 | R132: 58.84 | S132: 54.59 | T132: 85.5808 | U132: 58.5544 | V132: 45.5752 | W132: 44.89247171
B133: 2013-06-02 | C133: 42.5 | D133: 57.8672 | E133: 41.0505 | F133: 53.1 | G133: 39.19 | H133: 39.45 | I133: 32.6 | K133: 68.44 | L133: 43.8 | M133: 48.0614 | N133: 91.32 | O133: 34.25 | P133: 41.198 | Q133: 37 | R133: 76.54 | S133: 55.91 | T133: 86.2374 | U133: 58.7912 | V133: 45.42 | W133: 44.71501684
B134: 2013-06-09 | C134: 42.5 | D134: 55.4552 | E134: 41.046 | F134: 53 | G134: 38.96 | H134: 39.1 | I134: 32.4 | K134: 66.47 | L134: 43.7 | M134: 42.9063 | N134: 91.32 | O134: 34.25 | P134: 41.3074 | Q134: 37 | R134: 68.64 | S134: 55.95 | T134: 88.1059 | U134: 59.9296 | V134: 45.0703 | W134: 44.31411957
B135: 2013-06-16 | C135: 43 | D135: 54.6607 | E135: 42.1043 | F135: 53.6 | G135: 39.28 | H135: 39.1 | I135: 33.4 | K135: 65.3 | L135: 44.6 | M135: 44.0315 | N135: 91.32 | O135: 34.25 | P135: 41.1551 | Q135: 37 | R135: 80.23 | S135: 55.83 | T135: 87.5284 | U135: 60.5942 | V135: 45.402 | W135: 44.64047916
B136: 2013-06-23 | C136: 43.5 | D136: 55.1413 | E136: 42.6346 | F136: 53.6 | G136: 38.8 | H136: 39.79 | I136: 33.6 | K136: 64.71 | L136: 44.1 | M136: 50.3569 | N136: 91.32 | O136: 34.25 | P136: 40.6649 | Q136: 37 | R136: 69.6 | S136: 55.81 | T136: 86.3871 | U136: 60.8792 | V136: 45.6287856 | W136: 44.89390558
B137: 2013-06-30 | C137: 44 | D137: 71.6139 | E137: 43.7053 | F137: 53.6 | G137: 39.54 | H137: 40.61 | I137: 33.8 | K137: 64.41 | L137: 43.1 | M137: 47.1687 | N137: 91.32 | O137: 34.25 | P137: 40.2216 | Q137: 37 | R137: 77 | S137: 56.65 | T137: 85.671 | U137: 61.5707 | V137: 46.0290011 | W137: 45.32054648
B138: 2013-07-07 | C138: 44 | D138: 71.3743 | E138: 43.7019 | F138: 53.7 | G138: 39.47 | H138: 40.63 | I138: 33.8 | J138: 46.5996 | K138: 64.34 | L138: 43.9 | M138: 44.311 | N138: 91.32 | O138: 34.25 | P138: 40.0852 | Q138: 37 | R138: 68.35 | S138: 55.76 | T138: 86.1802 | U138: 62.0867 | V138: 45.94432418 | W138: 45.23143082
B139: 2013-07-14 | C139: 44 | D139: 71.4983 | E139: 44.11 | F139: 53.7 | G139: 39.8 | H139: 40.56 | I139: 33.8 | J139: 43.472 | K139: 64.3 | L139: 39.7 | M139: 44.2956 | N139: 91.32 | O139: 34.25 | P139: 39.92 | Q139: 37 | R139: 65.47 | S139: 53.13 | T139: 86.6962 | U139: 62.4887 | V139: 45.90275967 | W139: 45.17862576
B140: 2013-07-21 | C140: 44 | D140: 59.2208 | E140: 44.1171 | F140: 53.6 | G140: 39.29 | H140: 40.56 | I140: 33.2 | J140: 43.5036 | K140: 64.29 | L140: 36.8 | M140: 46.8269 | N140: 91.32 | O140: 34.25 | P140: 40.2734 | Q140: 39 | R140: 67.68 | S140: 56.23 | T140: 85.342 | U140: 62.043 | V140: 45.80878626 | W140: 45.09748638
B141: 2013-07-28 | C141: 45 | D141: 59.2231 | E141: 45.0561 | F141: 54.8 | G141: 39.29 | H141: 40.56 | I141: 33.6 | J141: 43.0367 | K141: 64.29 | L141: 43.3 | M141: 41.6463 | N141: 91.32 | O141: 35.25 | P141: 41.3193 | Q141: 40 | R141: 67.68 | S141: 52.42 | T141: 86.8364 | U141: 62.231 | V141: 46.30324473 | W141: 45.58777208
B142: 2013-08-04 | C142: 45 | D142: 52.4282 | E142: 46.0083 | F142: 55.5 | G142: 38.81 | H142: 39.84 | I142: 34.2 | J142: 42.9971 | K142: 64.29 | L142: 41.2 | M142: 39.0157 | N142: 91.32 | O142: 35.25 | P142: 40.3671 | Q142: 40 | R142: 53.79 | S142: 52.99 | T142: 85.3061 | U142: 61.6698 | V142: 46.15929945 | W142: 45.42817754
B143: 2013-08-11 | C143: 45 | D143: 57.7868 | E143: 45.9996 | F143: 55.8 | G143: 39.67 | H143: 38.91 | I143: 34.2 | J143: 42.9671 | K143: 64.29 | L143: 44 | M143: 41.791 | N143: 91.32 | O143: 35.25 | P143: 40.8117 | Q143: 40 | R143: 71.47 | S143: 56.93 | T143: 85.3928 | U143: 62.2353 | V143: 46.34280055 | W143: 45.56770913
B144: 2013-08-18 | C144: 45.5 | D144: 54.9426 | E144: 47.1953 | F144: 56.5 | G144: 37.6 | H144: 38.91 | I144: 33.8 | J144: 42.8323 | K144: 64.29 | L144: 43 | M144: 39.3042 | N144: 91.32 | O144: 36.25 | P144: 40.6983 | Q144: 40 | R144: 69.76 | S144: 56.8 | T144: 86.6827 | U144: 62.5757 | V144: 46.58762352 | W144: 45.80436798
B145: 2013-08-25 | C145: 47 | D145: 51.2562 | E145: 48.2736 | F145: 57.5 | G145: 38.82 | H145: 39.2 | I145: 32.4 | J145: 42.4063 | K145: 64.33 | L145: 42.5 | M145: 45.6831 | N145: 91.32 | O145: 37.5 | P145: 41.1691 | Q145: 44 | R145: 67.57 | S145: 54.51 | T145: 86.2988 | U145: 62.7366 | V145: 47.16 | W145: 46.40107774
B146: 2013-09-01 | C146: 48 | D146: 59.1407 | E146: 49.2 | F146: 58.7 | G146: 38.51 | H146: 40.28 | I146: 34 | J146: 42.3276 | K146: 64.29 | L146: 41.3 | M146: 41.7563 | N146: 91.32 | O146: 38.5 | P146: 40.3977 | Q146: 45 | R146: 67.57 | S146: 55.87 | T146: 85.6458 | U146: 62.5564 | V146: 47.9575589 | W146: 47.23044712
B147: 2013-09-08 | C147: 48 | D147: 59.8623 | E147: 50.8121 | F147: 59.1 | G147: 36.77 | H147: 41.8 | I147: 34 | J147: 41.7389 | K147: 64.33 | L147: 39.2 | M147: 36.5424 | N147: 91.32 | O147: 38.5 | P147: 42.2664 | Q147: 48 | R147: 67.57 | S147: 55.91 | T147: 83.4077 | U147: 63.4977 | V147: 48.57006505 | W147: 47.87168202
B148: 2013-09-15 | C148: 46 | D148: 64.2316 | E148: 50.8166 | F148: 59.2 | G148: 38.6 | H148: 42.14 | I148: 34.2 | J148: 41.7052 | K148: 64.56 | L148: 45.3 | M148: 36.6288 | N148: 91.32 | O148: 37.5 | P148: 42.208 | Q148: 48 | R148: 67.57 | S148: 53.82 | T148: 85.1503 | U148: 64.2793 | V148: 48.58154736 | W148: 47.87150591
B149: 2013-09-22 | C149: 45 | D149: 64.2337 | E149: 50.8235 | F149: 58.5 | G149: 38.46 | H149: 42.14 | I149: 33.8 | J149: 41.8216 | K149: 64.76 | L149: 42.2 | M149: 43.4734 | N149: 91.32 | O149: 36.5 | P149: 43.2209 | Q149: 48 | R149: 78.08 | S149: 55.98 | T149: 84.83 | U149: 64.4303 | V149: 48.56913341 | W149: 47.86288983
B150: 2013-09-29 | C150: 42.5 | D150: 64.131 | E150: 50.8223 | F150: 56.5 | G150: 39.6 | H150: 40.49 | I150: 33.6 | J150: 41.7592 | K150: 64.96 | L150: 45.5 | M150: 39.2139 | N150: 91.32 | O150: 35.5 | P150: 42.5153 | Q150: 48 | R150: 79.34 | S150: 56.42 | T150: 88.207 | U150: 64.3631 | V150: 47.50997934 | W150: 46.75757258
B151: 2013-10-06 | C151: 42.5 | D151: 64.6374 | E151: 49.8742 | F151: 56.5 | G151: 38.32 | H151: 40.42 | I151: 33.6 | J151: 39.4493 | K151: 64.89 | L151: 42.6 | M151: 37.4985 | N151: 91.32 | O151: 34.5 | P151: 42.9946 | Q151: 48 | R151: 67.73 | S151: 56.38 | T151: 83.9741 | U151: 64.8094 | V151: 47.21444637 | W151: 46.43809363
B152: 2013-10-13 | C152: 42.5 | D152: 56.3038 | E152: 49.8689 | F152: 56.6 | G152: 40.84 | H152: 40.42 | I152: 33 | J152: 39.4755 | K152: 64.4 | L152: 37.5 | M152: 37.2083 | N152: 91.32 | O152: 34.5 | P152: 43.5188 | Q152: 48 | R152: 67.57 | S152: 54.56 | T152: 84.7145 | U152: 64.0965 | V152: 47.05580769 | W152: 46.30223296
B153: 2013-10-20 | C153: 42.5 | D153: 58.7174 | E153: 49.8736 | F153: 56.6 | G153: 39.2 | H153: 39.77 | I153: 32.8 | J153: 40.2558 | K153: 63.94 | L153: 45 | M153: 44.4147 | N153: 91.32 | O153: 34.5 | P153: 43.1916 | Q153: 47 | R153: 70.08 | S153: 54.43 | T153: 83.0854 | U153: 63.9246 | V153: 47.02048154 | W153: 46.25615884
B154: 2013-10-27 | C154: 42.5 | D154: 58.475 | E154: 49.871 | F154: 56.4 | G154: 39.02 | H154: 39.77 | I154: 32.6 | J154: 40.2335 | K154: 63.61 | L154: 43.8 | M154: 40.9131 | N154: 91.32 | O154: 34.5 | P154: 41.3002 | Q154: 47 | R154: 70.08 | S154: 55.58 | T154: 84.7676 | U154: 63.8412 | V154: 46.72387363 | W154: 45.95801575
B155: 2013-11-03 | C155: 40.5 | D155: 58.5458 | E155: 49.7399 | F155: 55.6 | G155: 38.23 | H155: 39.77 | I155: 32.8 | J155: 40.1458 | K155: 63.17 | L155: 39.5 | M155: 43.0636 | N155: 91.32 | O155: 33.75 | P155: 42.2579 | Q155: 47 | R155: 70.08 | S155: 55 | T155: 83.5751 | U155: 65.6808 | V155: 46.53208648 | W155: 45.71332765
B156: 2013-11-10 | C156: 39.5 | D156: 57.3802 | E156: 49.7411 | F156: 54.2 | G156: 39.22 | H156: 39.77 | I156: 33.6 | J156: 40.1481 | K156: 62.01 | L156: 44.4 | M156: 38.8101 | N156: 91.32 | O156: 33 | P156: 40.3493 | Q156: 47 | R156: 71.06 | S156: 53.9 | T156: 83.2958 | U156: 65.9353 | V156: 45.86551055 | W156: 45.03528511
B157: 2013-11-17 | C157: 39.5 | D157: 55.7376 | E157: 47.8638 | F157: 54.1 | G157: 38.95 | H157: 39.77 | I157: 33.6 | J157: 38.2103 | K157: 62.2 | L157: 38.1 | M157: 41.964 | N157: 91.32 | O157: 33.75 | P157: 39.8294 | Q157: 47 | R157: 71.53 | S157: 54.34 | T157: 80.6686 | U157: 68.5751 | V157: 45.80001989 | W157: 44.88081131
B158: =B157+7 -> 2013-11-24 | C158: 39.5 | D158: 55.3959 | E158: 47.8633 | F158: 54.4 | G158: 38.68 | H158: 39.77 | I158: 33.6 | J158: 38.1275 | K158: 62.67 | L158: 46.6 | M158: 42.3776 | N158: 91.32 | O158: 34 | P158: 40.1313 | Q158: 48.4 | R158: 72.22 | S158: 53.73 | T158: 81.9021 | U158: 68.3452 | V158: 45.97713352 | W158: 45.0666849
B159: 2013-12-01 | C159: 41.5 | D159: 48.2938 | E159: 47.8638 | F159: 55.6 | G159: 37.7 | H159: 41.13 | I159: 34.2 | J159: 37.7713 | K159: 62.13 | L159: 42.9 | M159: 37.2438 | N159: 91.32 | O159: 35.5 | P159: 39.4885 | Q159: 48.4 | R159: 70.51 | S159: 55.22 | T159: 80.8426 | U159: 67.4082 | V159: 46.46059956 | W159: 45.60922441
B160: 2013-12-08 | C160: 43 | D160: 56.471 | E160: 48.9303 | F160: 57.1 | G160: 39.39 | H160: 42.24 | I160: 34.8 | J160: 33.615 | K160: 62.13 | L160: 42.3 | M160: 33.3844 | N160: 91.32 | O160: 38 | P160: 38.6799 | Q160: 49 | R160: 70.51 | S160: 54.18 | T160: 79.0003 | U160: 67.1513 | V160: 47.32032088 | W160: 46.51714302
B161: 2013-12-15 | C161: 43.5 | D161: 58.6462 | E161: 47.7174 | F161: 57.4 | G161: 38.43 | H161: 45.32 | I161: 36.2 | J161: 42.3147 | K161: 64.44 | L161: 52.3 | M161: 33.094 | N161: 91.32 | O161: 39.25 | P161: 38.9059 | Q161: 49 | R161: 70.51 | S161: 55.63 | T161: 78.9289 | U161: 68.8298 | V161: 48.47217736 | W161: 47.70293481
B162: 2013-12-22 | C162: 44 | D162: 58.6462 | E162: 46.9162 | F162: 57.4 | G162: 38.43 | H162: 47.71 | I162: 37.2 | J162: 42.4477 | K162: 65.51 | L162: 51.6 | M162: 33.094 | N162: 91.32 | O162: 40.5 | P162: 39.5366 | Q162: 49 | R162: 70.51 | S162: 50.32 | T162: 78.2912 | U162: 66.19871573 | V162: 49.05475857 | W162: 48.4621129
B163: 2013-12-29 | C163: 44 | D163: 58.6462 | E163: 44.9034 | F163: 57.4 | G163: 39.84 | H163: 49 | I163: 37.2 | J163: 44.0316 | K163: 66.11 | L163: 45.2 | M163: 33.094 | N163: 91.32 | O163: 40.5 | P163: 39.5366 | Q163: 49 | R163: 70.51 | S163: 56.25 | T163: 78.2912 | U163: 70.5753 | V163: 49.37961571 | W163: 48.59536843
B164: 2014-01-05 | C164: 44 | D164: 51.98 | E164: 44.91 | F164: 57.4 | G164: 38.92 | H164: 49 | I164: 37.6 | J164: 44.0316 | K164: 66.11 | L164: 52.65 | M164: 42.51889545 | N164: 91.32 | O164: 41 | P164: 39.5366 | Q164: 50.4 | R164: 57.3 | S164: 55.24 | T164: 77.62 | U164: 65.15425719 | V164: 49.60905192 | W164: 48.86367741
B165: 2014-01-12 | C165: 45.5 | D165: 51.98 | E165: 44.91 | F165: 57 | G165: 38.69 | H165: 49 | I165: 37.6 | J165: 44.09671765 | K165: 66.11 | L165: 51.36 | M165: 43.8299046 | N165: 91.32 | O165: 42 | P165: 38.91 | Q165: 51 | R165: 69.7 | S165: 54.17 | T165: 78.87 | U165: 68.60816879 | V165: 49.66389559 | W165: 48.95623111
B166: 2014-01-19 | C166: 45.5 | D166: 51.98 | E166: 44.89370052 | F166: 57.2 | G166: 37.77 | H166: 49 | I166: 38 | J166: 44.94609316 | K166: 69.71 | L166: 48.89 | M166: 48.95297182 | N166: 91.32 | O166: 42.5 | P166: 40.26222306 | Q166: 51 | R166: 70.79 | S166: 48.84 | T166: 79.52500591 | U166: 67.16788095 | V166: 50.16168155 | W166: 49.51383405
B167: 2014-01-26 | C167: 48 | D167: 51.98 | E167: 44.89370052 | F167: 58 | G167: 37.77 | H167: 49 | I167: 38.6 | J167: 48.38582986 | K167: 69.71 | L167: 48.89 | M167: 48.95297182 | N167: 91.32 | O167: 43.5 | P167: 40.82972196 | Q167: 51 | R167: 70.79 | S167: 48.84 | T167: 77.84723902 | U167: 68.33643565 | V167: 50.69210915 | W167: 50.01024416
B168: 2014-02-02 | C168: 49 | D168: 48.1465524 | E168: 44.89370052 | F168: 59.1 | G168: 39.39 | H168: 49.94 | I168: 38.4 | J168: 48.31724439 | K168: 73.31 | L168: 48.89 | M168: 43.74453193 | N168: 91.32 | O168: 43.5 | P168: 43.01877211 | Q168: 51 | R168: 70.79 | S168: 55.38 | T168: 76.60566349 | U168: 68.33643565 | V168: 51.438263 | W168: 50.78101636
B169: 2014-02-09 | C169: 50 | D169: 48.1465524 | E169: 43.95495001 | F169: 58.9 | G169: 40 | H169: 51.22 | I169: 38.4 | J169: 49.67088371 | K169: 74.6 | L169: 48.09 | M169: 41.9929581 | N169: 91.32 | O169: 44.75 | P169: 39.33188154 | Q169: 46 | R169: 71.76 | S169: 54.48 | T169: 75.75227879 | U169: 68.04 | V169: 51.36629424 | W169: 50.74395543
B170: 2014-02-16 | C170: 49.5 | D170: 52.61408202 | E170: 43.95537075 | F170: 58.6 | G170: 39.42 | H170: 52.01 | I170: 39 | J170: 49.65048671 | K170: 75.4 | L170: 41.81 | M170: 45.20128409 | N170: 91.32 | O170: 43.25 | P170: 38.56133449 | Q170: 44 | R170: 69.38 | S170: 54.92 | T170: 77.81968391 | U170: 66.7 | V170: 51.40575351 | W170: 50.83954622
B171: 2014-02-23 | C171: 47.5 | D171: 51.35786246 | E171: 42.21259065 | F171: 58.7 | G171: 39.6 | H171: 52.01 | I171: 39 | J171: 47.10211111 | K171: 77.79 | L171: 42.75 | M171: 48.19608923 | N171: 91.32 | O171: 40.75 | P171: 38.3297696 | Q171: 43.4 | R171: 75.29 | S171: 53.18 | T171: 75.31917822 | U171: 66.48056928 | V171: 51.07739058 | W171: 50.51092996
B172: 2014-03-02 | C172: 46.5 | D172: 51.45015358 | E172: 41.27334787 | F172: 58.7 | G172: 37.51 | H172: 51.01 | I172: 39.4 | J172: 47.12705843 | K172: 78.23 | L172: 41.75 | M172: 45.93821662 | N172: 91.32 | O172: 40 | P172: 38.37313812 | Q172: 43.4 | R172: 74.92 | S172: 55.06 | T172: 73.30744249 | U172: 69.73436839 | V172: 50.8039175 | W172: 50.09513934
B173: 2014-03-09 | C173: 45.5 | D173: 51.45015358 | E173: 40.06577449 | F173: 56.6 | G173: 40.64 | H173: 50.63 | I173: 39.2 | J173: 47.12705843 | K173: 78.43 | L173: 45.3 | M173: 47.38814561 | N173: 91.32 | O173: 38.5 | P173: 40.70025841 | Q173: 43.4 | R173: 76.2 | S173: 53.7 | T173: 74.0954437 | U173: 68.66689751 | V173: 50.18450446 | W173: 49.50619121
B174: 2014-03-16 | C174: 46.5 | D174: 51.95476744 | E174: 40.60013935 | F174: 56.5 | G174: 37.56 | H174: 49.26 | I174: 39 | J174: 48.29684856 | K174: 78.43 | L174: 43.21 | M174: 44.76439312 | N174: 91.32 | O174: 38.5 | P174: 38.48624645 | Q174: 43.4 | R174: 79 | S174: 52.84 | T174: 76.92032293 | U174: 66.23006395 | V174: 49.69874614 | W174: 49.05749714
B175: 2014-03-23 | C175: 47 | D175: 51.95476744 | E175: 41.66658692 | F175: 58.3 | G175: 40.2 | H175: 49.15 | I175: 39.8 | J175: 51.46262087 | K175: 78.43 | L175: 46.02 | M175: 49.35819926 | N175: 91.32 | O175: 40 | P175: 38.49260077 | Q175: 43.4 | R175: 82.93 | S175: 53.23 | T175: 74.42223847 | U175: 67.88 | V175: 50.57725806 | W175: 49.88555853
B176: 2014-03-30 | C176: 48 | D176: 51.95476744 | E176: 42.73160799 | F176: 58.4 | G176: 40.8 | H176: 50.12 | I176: 40.4 | J176: 51.4607014 | K176: 78.43 | L176: 45.55 | M176: 46.58035915 | N176: 91.32 | O176: 41 | P176: 40.54833612 | Q176: 43.4 | R176: 82.36 | S176: 53.46 | T176: 72.1634532 | U176: 66.46969905 | V176: 51.11962673 | W176: 50.50947554
B177: 2014-04-06 | C177: 49 | D177: 51.95476744 | E177: 42.46272313 | F177: 59.3 | G177: 39.59 | H177: 51.12 | I177: 40.6 | J177: 53.43641231 | K177: 78.17 | L177: 43.85 | M177: 53.64337367 | N177: 91.32 | O177: 42 | P177: 41.95225181 | Q177: 43.4 | R177: 77.77 | S177: 51.48 | T177: 73.49487529 | U177: 68.71128595 | V177: 51.94765144 | W177: 51.30150045
B178: 2014-04-13 | C178: 50 | D178: 48.2280953 | E178: 42.32553156 | F178: 60.7 | G178: 41 | H178: 51.9 | I178: 41 | J178: 53.55136827 | K178: 77.88 | L178: 48.22 | M178: 45.73775465 | N178: 91.32 | O178: 43.5 | P178: 41.45184475 | Q178: 43.4 | R178: 79.76 | S178: 52.88 | T178: 73.69623892 | U178: 67.37340487 | V178: 52.31140154 | W178: 51.72720993
B179: 2014-04-20 | C179: 50 | D179: 63.68731349 | E179: 43.39473906 | F179: 60.7 | G179: 39.9 | H179: 52.87 | I179: 41.8 | J179: 53.6816657 | K179: 77.7 | L179: 45.06 | M179: 48.55644311 | N179: 91.32 | O179: 44.5 | P179: 41.22967923 | Q179: 43.4 | R179: 94.32 | S179: 51.04 | T179: 71.12642313 | U179: 69.96 | V179: 53.08612288 | W179: 52.4461708
B180: 2014-04-27 | C180: 50 | D180: 52.05 | E180: 43.4 | F180: 60.7 | G180: 39.86 | H180: 53.3 | I180: 41.8 | J180: 53.7 | K180: 77.44 | L180: 42.91 | M180: 48.67 | N180: 91.32 | O180: 44.5 | P180: 41.86 | Q180: 45 | R180: 68.5 | S180: 52.93 | T180: 72.16 | U180: 67.22147977 | V180: 52.91565342 | W180: 52.38003517
B181: 2014-05-04 | C181: 50 | D181: 58.47055395 | E181: 43.40719702 | F181: 60.8 | G181: 39.83 | H181: 52.22 | I181: 42 | J181: 47.79359297 | K181: 77.14 | L181: 48.93 | M181: 52.71621559 | N181: 91.32 | O181: 44.25 | P181: 42.50073927 | Q181: 45 | R181: 81 | S181: 51.72 | T181: 71.77887497 | U181: 70.29597023 | V181: 53.00568131 | W181: 52.35519196
B182: 2014-05-11 | C182: 50 | D182: 58.47055395 | E182: 43.40836013 | F182: 60.7 | G182: 39.32 | H182: 52.22 | I182: 41.4 | J182: 47.90135167 | K182: 76.2 | L182: 45.21 | M182: 47.42503107 | N182: 91.32 | O182: 43.25 | P182: 42.13341414 | Q182: 45 | R182: 72.3 | S182: 50.14 | T182: 74.08896331 | U182: 67.42885595 | V182: 52.52163795 | W182: 51.93921375
B183: 2014-05-18 | C183: 49 | D183: 57.58330381 | E183: 43.40644934 | F183: 60.7 | G183: 39.07 | H183: 50.33 | I183: 41.4 | J183: 51.23156419 | K183: 75.63 | L183: 44.25 | M183: 46.64149146 | N183: 91.32 | O183: 41.5 | P183: 41.65417999 | Q183: 44 | R183: 76 | S183: 52.74 | T183: 71.1253705 | U183: 68.92281283 | V183: 51.91703064 | W183: 51.22665902
B184: 2014-05-25 | C184: 49 | D184: 57.58330381 | E184: 43.4053694 | F184: 60.3 | G184: 39.12 | H184: 48.17 | I184: 40.8 | J184: 51.11734677 | K184: 74.84 | L184: 46.56 | M184: 47.60051212 | N184: 91.32 | O184: 40 | P184: 43.07949962 | Q184: 44 | R184: 86.26 | S184: 52.81 | T184: 71.79543977 | U184: 69.64 | V184: 51.38678953 | W184: 50.61480928
B185: 2014-06-01 | C185: 49 | D185: 59.78142077 | E185: 44.61585576 | F185: 60.1 | G185: 39.66 | H185: 47.01 | I185: 40.2 | J185: 52.02913632 | K185: 74.39 | L185: 43.18 | M185: 42.05244187 | N185: 91.32 | O185: 40 | P185: 41.59779804 | Q185: 44 | R185: 75 | S185: 53.12 | T185: 71.51858077 | U185: 68.82439363 | V185: 50.85745845 | W185: 50.07310934
B186: 2014-06-08 | C186: 49 | D186: 59.78142077 | E186: 45.42322269 | F186: 60.1 | G186: 38.29 | H186: 45.99 | I186: 40 | J186: 52.12879678 | K186: 73.87 | L186: 38.11 | M186: 49.37110615 | N186: 91.32 | O186: 40 | P186: 41.22430634 | Q186: 44 | R186: 75 | S186: 51.92 | T186: 77.39847969 | U186: 69.48 | V186: 50.88159717 | W186: 50.05068472
B187: 2014-06-15 | C187: 49 | D187: 63.76621484 | E187: 45.43853065 | F187: 60.3 | G187: 38.05 | H187: 45.4 | I187: 40 | J187: 51.76459059 | K187: 73.44 | L187: 47.47 | M187: 42.61037727 | N187: 91.32 | O187: 40 | P187: 41.55517582 | Q187: 44 | R187: 71.31 | S187: 51.41 | T187: 72.53247641 | U187: 70.58572988 | V187: 50.6755192 | W187: 49.78652098
B188: 2014-06-22 | C188: 49 | D188: 63.76621484 | E188: 45.4622958 | F188: 60.1 | G188: 39.42 | H188: 44.37 | I188: 39.4 | J188: 51.78781851 | K188: 73.11 | L188: 47.3 | M188: 44.78157946 | N188: 91.32 | O188: 39.5 | P188: 42.22787656 | Q188: 44 | R188: 71.31 | S188: 51.85 | T188: 72.75262573 | U188: 69.99 | V188: 50.40402286 | W188: 49.4354922
B189: 2014-06-29 | C189: 48.5 | D189: 54.97725546 | E189: 46.54068046 | F189: 60.3 | G189: 37.91 | H189: 43.35 | I189: 38.8 | J189: 46.2853996 | K189: 72.79 | L189: 44.43 | M189: 43.97394137 | N189: 91.32 | O189: 38.5 | P189: 39.94212433 | Q189: 44 | R189: 71.31 | S189: 53.8 | T189: 72.39103879 | U189: 70.62448094 | V189: 49.83259541 | W189: 48.87763397
B190: 2014-07-06 | C190: 47.5 | D190: 46.05838504 | E190: 46.53711378 | F190: 59.8 | G190: 38.22 | H190: 41.85 | I190: 38.2 | J190: 46.23499934 | K190: 72.59 | L190: 35.75 | M190: 40.25648784 | N190: 91.32 | O190: 37.5 | P190: 40.7387383 | Q190: 44 | R190: 58.03 | S190: 51.31 | T190: 78.06052206 | U190: 71.10772403 | V190: 49.09407461 | W190: 48.08217747
B191: 2014-07-13 | C191: 45 | D191: 57.58377241 | E191: 46.00471735 | F191: 57.6 | G191: 38.22 | H191: 39.85 | I191: 36.4 | J191: 42.42177183 | K191: 72.49 | L191: 44.71 | M191: 41.94418197 | N191: 91.32 | O191: 36 | P191: 39.19331235 | Q191: 44 | R191: 74.97 | S191: 53.86 | T191: 75.2173732 | U191: 69.70912558 | V191: 47.80315965 | W191: 46.77292003
B192: 2014-07-20 | C192: 42 | D192: 50.11402568 | E192: 44.92621439 | F192: 55.4 | G192: 38.62 | H192: 37.92 | I192: 34.6 | J192: 42.34866102 | K192: 72.49 | L192: 38.53 | M192: 38.73216706 | N192: 91.32 | O192: 33.5 | P192: 40.16235155 | Q192: 44 | R192: 74.97 | S192: 51.2 | T192: 77.11 | U192: 69.70854887 | V192: 46.22950089 | W192: 45.15053944
B193: 2014-07-27 | C193: 41 | D193: 48.34515612 | E193: 43.85208685 | F193: 53.1 | G193: 39.56 | H193: 37.3 | I193: 33.8 | J193: 42.45008105 | K193: 72.49 | L193: 39.65 | M193: 40.50419623 | N193: 91.32 | O193: 31.5 | P193: 39.55625728 | Q193: 44 | R193: 43.97 | S193: 53.43 | T193: 75.09337271 | U193: 72.07491848 | V193: 45.14160467 | W193: 43.94678568
B194: 2014-08-03 | C194: 40 | D194: 47.88701714 | E194: 43.85511145 | F194: 52.7 | G194: 38.57 | H194: 37.3 | I194: 33.2 | J194: 42.36156565 | K194: 72.1 | L194: 40.61 | M194: 38.5391815 | N194: 91.32 | O194: 30 | P194: 39.02996523 | Q194: 44 | R194: 56.65 | S194: 53.09 | T194: 75.18666683 | U194: 72.25985444 | V194: 44.64166844 | W194: 43.48156531
B195: 2014-08-10 | C195: 39 | D195: 47.52223503 | E195: 43.86040549 | F195: 52.5 | G195: 37.6 | H195: 37.3 | I195: 32.2 | J195: 41.45780515 | K195: 71.95 | L195: 43.76 | M195: 35.55610908 | N195: 91.32 | O195: 28.5 | P195: 39.59257669 | Q195: 44 | R195: 66.44 | S195: 51.03 | T195: 73.80781498 | U195: 65.05312127 | V195: 43.9141437 | W195: 42.92897438
B196: 2014-08-17 | C196: 38 | D196: 57.1575 | E196: 44.2628 | F196: 52 | G196: 37.36 | H196: 35.13 | I196: 31.8 | J196: 46.1969 | K196: 71.95 | L196: 42.87 | M196: 35.0888 | N196: 91.32 | O196: 27 | P196: 39.135 | Q196: 44 | R196: 64.86 | S196: 53.52 | T196: 75.2942 | U196: 69.5071 | V196: 43.7255726 | W196: 42.5606038
B197: 2014-08-24 | C197: 36.5 | D197: 56.3718 | E197: 44.5301 | F197: 50.3 | G197: 37.78 | H197: 34.38 | I197: 30.8 | J197: 45.3657 | K197: 71.41 | L197: 45.39 | M197: 47.2051 | N197: 91.32 | O197: 25.5 | P197: 39.3327 | Q197: 44 | R197: 64.86 | S197: 51.77 | T197: 73.6267 | U197: 64.0163 | V197: 42.95894557 | W197: 41.96435165
B198: 2014-08-31 | C198: 36 | D198: 56.3718 | E198: 44.5424 | F198: 48.7 | G198: 39.23 | H198: 33.96 | I198: 30 | J198: 50.6603 | K198: 70.44 | L198: 42.46 | M198: 36.6556 | N198: 91.32 | O198: 24 | P198: 38.783 | Q198: 44 | R198: 64.86 | S198: 53.11 | T198: 72.5558 | U198: 67.5358 | V198: 42.12243861 | W198: 40.99875904
B199: 2014-09-07 | C199: 36 | D199: 56.3718 | E199: 44.5768 | F199: 47.3 | G199: 38.6 | H199: 33.92 | I199: 29.4 | J199: 44.3599 | K199: 69.54 | L199: 44.26 | M199: 37.9625 | N199: 91.32 | O199: 24 | P199: 39.3287 | Q199: 44 | R199: 64.03 | S199: 53.02 | T199: 73.1134 | U199: 66.1762 | V199: 41.68584369 | W199: 40.60546981
B200: 2014-09-14 | C200: 34 | D200: 41.3552 | E200: 45.9403 | F200: 46.8 | G200: 37.96 | H200: 33.85 | I200: 29.2 | J200: 46.1533 | K200: 68.69 | L200: 44.44 | M200: 38.0859 | N200: 91.32 | O200: 23.5 | P200: 40.057 | Q200: 43.2 | R200: 63.58 | S200: 54.02 | T200: 72.5555 | U200: 65.1437 | V200: 41.32890977 | W200: 40.29396947
B201: 2014-09-21 | C201: 32 | D201: 53.619 | E201: 44.865 | F201: 44.9 | G201: 36.53 | H201: 33.85 | I201: 28.6 | J201: 47.8435 | K201: 67.77 | L201: 42.54 | M201: 42.804 | N201: 91.32 | O201: 22 | P201: 39.981 | Q201: 43.2 | R201: 63.58 | S201: 52.69 | T201: 71.7533 | U201: 66.5855 | V201: 40.75808288 | W201: 39.67391421
B202: 2014-09-28 | C202: 30 | D202: 53.619 | E202: 43.9233 | F202: 41.9 | G202: 38.35 | H202: 31.62 | I202: 28 | J202: 47.4541 | K202: 66.31 | L202: 38.51 | M202: 34.9928 | N202: 91.32 | O202: 19.5 | P202: 39.9633 | Q202: 43.2 | R202: 57.64 | S202: 53.96 | T202: 72.4907 | U202: 64.7523 | V202: 38.89459023 | W202: 37.79861624
... 352 more rows

Sheet Sterling
A2: EU weaner reference prices
A3: Source: EU Commission
A4: Units: £/head
A5: Last updated: 02/07/2021
B7: Week ended | C7: €:£ exchange rate | D7: Belgium | E7: Czech Rep | F7: Denmark | G7: Germany | H7: Estonia | I7: Spain | J7: France | K7: Croatia | L7: Italy | M7: Luxembourg | N7: Hungary | O7: Malta | P7: Netherlands | Q7: Poland | R7: Portugal | S7: Slovakia | T7: Finland | U7: Sweden | V7: GB | W7: EU | X7: EU excluding UK
B8: 2011-01-09 | C8: 0.85003 | D8: =Euro!C8*Sterling!$C8 -> 31.45111 | E8: =IFERROR(Euro!D8*Sterling!$C8,"na") -> 38.25135 | F8: =Euro!E8*Sterling!$C8 -> 30.686083 | G8: =Euro!F8*Sterling!$C8 -> 38.846371 | H8: =IFERROR(Euro!G8*Sterling!$C8,"na") -> 35.531254 | I8: =Euro!H8*Sterling!$C8 -> 26.8184465 | J8: =Euro!I8*Sterling!$C8 -> 22.610798 | L8: =Euro!K8*Sterling!$C8 -> 45.7401143 | M8: =Euro!L8*Sterling!$C8 -> 35.361248 | N8: =Euro!M8*Sterling!$C8 -> 26.0449192 | O8: =IFERROR(Euro!N8*Sterling!$C8,"na") -> 68.0024 | P8: =Euro!O8*Sterling!$C8 -> 24.225855 | Q8: =IFERROR(Euro!P8*Sterling!$C8,"na") -> 18.2416438 | R8: =IFERROR(Euro!Q8*Sterling!$C8,"na") -> 34.0012 | S8: =IFERROR(Euro!R8*Sterling!$C8,"na") -> 40.8609421 | T8: =Euro!S8*Sterling!$C8 -> 40.2574208 | U8: =Euro!T8*Sterling!$C8 -> 50.6277868 | V8: =Euro!U8*Sterling!$C8 -> 41.311458 | W8: =Euro!V8*Sterling!$C8 -> 30.516077
B9: 2011-01-16 | C9: 0.8362428571 | D9: =Euro!C9*Sterling!$C9 -> 30.94098571 | E9: =IFERROR(Euro!D9*Sterling!$C9,"na") -> 38.17448643 | F9: =Euro!E9*Sterling!$C9 -> 29.51937286 | G9: =Euro!F9*Sterling!$C9 -> 36.20931571 | H9: =IFERROR(Euro!G9*Sterling!$C9,"na") -> 30.17164229 | I9: =Euro!H9*Sterling!$C9 -> 25.65593086 | J9: =Euro!I9*Sterling!$C9 -> 22.41130857 | L9: =Euro!K9*Sterling!$C9 -> 45.57523571 | M9: =Euro!L9*Sterling!$C9 -> 34.62045429 | N9: =Euro!M9*Sterling!$C9 -> 26.81830843 | O9: =IFERROR(Euro!N9*Sterling!$C9,"na") -> 66.89942857 | P9: =Euro!O9*Sterling!$C9 -> 22.16043571 | Q9: =IFERROR(Euro!P9*Sterling!$C9,"na") -> 16.83356871 | R9: =IFERROR(Euro!Q9*Sterling!$C9,"na") -> 33.44971429 | S9: =IFERROR(Euro!R9*Sterling!$C9,"na") -> 19.961117 | T9: =Euro!S9*Sterling!$C9 -> 41.736881 | U9: =Euro!T9*Sterling!$C9 -> 49.70627543 | V9: =Euro!U9*Sterling!$C9 -> 42.31388857 | W9: =Euro!V9*Sterling!$C9 -> 29.39393643
B10: 2011-01-23 | C10: 0.8424785714 | D10: =Euro!C10*Sterling!$C10 -> 28.22303214 | E10: =IFERROR(Euro!D10*Sterling!$C10,"na") -> 38.69504079 | F10: =Euro!E10*Sterling!$C10 -> 29.73949357 | G10: =Euro!F10*Sterling!$C10 -> 29.82374143 | H10: =IFERROR(Euro!G10*Sterling!$C10,"na") -> 30.49772429 | I10: =Euro!H10*Sterling!$C10 -> 25.82196821 | J10: =Euro!I10*Sterling!$C10 -> 22.74692143 | L10: =Euro!K10*Sterling!$C10 -> 46.471118 | M10: =Euro!L10*Sterling!$C10 -> 30.83471571 | N10: =Euro!M10*Sterling!$C10 -> 25.22380843 | O10: =IFERROR(Euro!N10*Sterling!$C10,"na") -> 67.39828571 | P10: =Euro!O10*Sterling!$C10 -> 18.11328929 | Q10: =IFERROR(Euro!P10*Sterling!$C10,"na") -> 17.12758936 | R10: =IFERROR(Euro!Q10*Sterling!$C10,"na") -> 30.32922857 | S10: =IFERROR(Euro!R10*Sterling!$C10,"na") -> 37.98735879 | T10: =Euro!S10*Sterling!$C10 -> 42.64626529 | U10: =Euro!T10*Sterling!$C10 -> 49.44506736 | V10: =Euro!U10*Sterling!$C10 -> 42.14920293 | W10: =Euro!V10*Sterling!$C10 -> 27.85234157
B11: 2011-01-30 | C11: 0.8580642857 | D11: =Euro!C11*Sterling!$C11 -> 28.74515357 | E11: =IFERROR(Euro!D11*Sterling!$C11,"na") -> 39.53960229 | F11: =Euro!E11*Sterling!$C11 -> 29.47450821 | G11: =Euro!F11*Sterling!$C11 -> 32.94966857 | H11: =IFERROR(Euro!G11*Sterling!$C11,"na") -> 31.82560436 | I11: =Euro!H11*Sterling!$C11 -> 27.31218621 | J11: =Euro!I11*Sterling!$C11 -> 22.99612286 | L11: =Euro!K11*Sterling!$C11 -> 47.96579357 | M11: =Euro!L11*Sterling!$C11 -> 25.91354143 | N11: =Euro!M11*Sterling!$C11 -> 26.33399293 | O11: =IFERROR(Euro!N11*Sterling!$C11,"na") -> 68.64514286 | P11: =Euro!O11*Sterling!$C11 -> 18.44838214 | Q11: =IFERROR(Euro!P11*Sterling!$C11,"na") -> 16.577802 | R11: =IFERROR(Euro!Q11*Sterling!$C11,"na") -> 30.89031429 | S11: =IFERROR(Euro!R11*Sterling!$C11,"na") -> 38.69011864 | T11: =Euro!S11*Sterling!$C11 -> 43.50385929 | U11: =Euro!T11*Sterling!$C11 -> 45.11702014 | V11: =Euro!U11*Sterling!$C11 -> 42.15669836 | W11: =Euro!V11*Sterling!$C11 -> 28.87386321
B12: 2011-02-06 | C12: 0.8529071429 | D12: =Euro!C12*Sterling!$C12 -> 31.13111071 | E12: =IFERROR(Euro!D12*Sterling!$C12,"na") -> 39.49812979 | F12: =Euro!E12*Sterling!$C12 -> 30.090564 | G12: =Euro!F12*Sterling!$C12 -> 38.12494929 | H12: =IFERROR(Euro!G12*Sterling!$C12,"na") -> 32.54693657 | I12: =Euro!H12*Sterling!$C12 -> 29.33147664 | J12: =Euro!I12*Sterling!$C12 -> 22.85791143 | L12: =Euro!K12*Sterling!$C12 -> 48.44512571 | M12: =Euro!L12*Sterling!$C12 -> 25.33134214 | N12: =Euro!M12*Sterling!$C12 -> 35.83062907 | O12: =IFERROR(Euro!N12*Sterling!$C12,"na") -> 68.23257143 | P12: =Euro!O12*Sterling!$C12 -> 23.45494643 | Q12: =IFERROR(Euro!P12*Sterling!$C12,"na") -> 16.34170086 | R12: =IFERROR(Euro!Q12*Sterling!$C12,"na") -> 30.70465714 | S12: =IFERROR(Euro!R12*Sterling!$C12,"na") -> 45.03349714 | T12: =Euro!S12*Sterling!$C12 -> 43.18268864 | U12: =Euro!T12*Sterling!$C12 -> 43.72854921 | V12: =Euro!U12*Sterling!$C12 -> 41.10159521 | W12: =Euro!V12*Sterling!$C12 -> 30.55966293
B13: 2011-02-13 | C13: 0.8464571429 | D13: =Euro!C13*Sterling!$C13 -> 33.43505714 | E13: =IFERROR(Euro!D13*Sterling!$C13,"na") -> 39.91891886 | F13: =Euro!E13*Sterling!$C13 -> 30.54017371 | G13: =Euro!F13*Sterling!$C13 -> 41.4764 | H13: =IFERROR(Euro!G13*Sterling!$C13,"na") -> 30.32855943 | I13: =Euro!H13*Sterling!$C13 -> 32.91871829 | J13: =Euro!I13*Sterling!$C13 -> 23.53150857 | L13: =Euro!K13*Sterling!$C13 -> 48.84904171 | M13: =Euro!L13*Sterling!$C13 -> 26.83269143 | N13: =Euro!M13*Sterling!$C13 -> 29.151984 | O13: =IFERROR(Euro!N13*Sterling!$C13,"na") -> 67.71657143 | P13: =Euro!O13*Sterling!$C13 -> 27.50985714 | Q13: =IFERROR(Euro!P13*Sterling!$C13,"na") -> 16.78524514 | R13: =IFERROR(Euro!Q13*Sterling!$C13,"na") -> 30.47245714 | S13: =IFERROR(Euro!R13*Sterling!$C13,"na") -> 52.36183886 | T13: =Euro!S13*Sterling!$C13 -> 43.44864514 | U13: =Euro!T13*Sterling!$C13 -> 41.20553371 | V13: =Euro!U13*Sterling!$C13 -> 41.13781714 | W13: =Euro!V13*Sterling!$C13 -> 32.84253714
B14: 2011-02-20 | C14: 0.8407142857 | D14: =Euro!C14*Sterling!$C14 -> 33.62857143 | E14: =IFERROR(Euro!D14*Sterling!$C14,"na") -> 39.38746429 | F14: =Euro!E14*Sterling!$C14 -> 31.68652143 | G14: =Euro!F14*Sterling!$C14 -> 41.86757143 | H14: =IFERROR(Euro!G14*Sterling!$C14,"na") -> 27.07940714 | I14: =Euro!H14*Sterling!$C14 -> 36.83169286 | J14: =Euro!I14*Sterling!$C14 -> 23.70814286 | L14: =Euro!K14*Sterling!$C14 -> 49.34152143 | M14: =Euro!L14*Sterling!$C14 -> 25.38957143 | N14: =Euro!M14*Sterling!$C14 -> 23.25415714 | O14: =IFERROR(Euro!N14*Sterling!$C14,"na") -> 67.25714286 | P14: =Euro!O14*Sterling!$C14 -> 29.84535714 | Q14: =IFERROR(Euro!P14*Sterling!$C14,"na") -> 17.59615 | R14: =IFERROR(Euro!Q14*Sterling!$C14,"na") -> 30.26571429 | S14: =IFERROR(Euro!R14*Sterling!$C14,"na") -> 49.05567857 | T14: =Euro!S14*Sterling!$C14 -> 42.24589286 | U14: =Euro!T14*Sterling!$C14 -> 41.3127 | V14: =Euro!U14*Sterling!$C14 -> 41.25385 | W14: =Euro!V14*Sterling!$C14 -> 33.91441429
B15: 2011-02-27 | C15: 0.8479485714 | D15: =Euro!C15*Sterling!$C15 -> 33.91794286 | E15: =IFERROR(Euro!D15*Sterling!$C15,"na") -> 30.72965623 | F15: =Euro!E15*Sterling!$C15 -> 31.95918166 | G15: =Euro!F15*Sterling!$C15 -> 42.31263371 | H15: =IFERROR(Euro!G15*Sterling!$C15,"na") -> 32.19660726 | I15: =Euro!H15*Sterling!$C15 -> 38.5223036 | J15: =Euro!I15*Sterling!$C15 -> 24.25132914 | L15: =Euro!K15*Sterling!$C15 -> 50.37662463 | M15: =Euro!L15*Sterling!$C15 -> 26.20161086 | N15: =Euro!M15*Sterling!$C15 -> 29.66972051 | O15: =IFERROR(Euro!N15*Sterling!$C15,"na") -> 67.83588571 | P15: =Euro!O15*Sterling!$C15 -> 30.52614857 | Q15: =IFERROR(Euro!P15*Sterling!$C15,"na") -> 18.18001737 | R15: =IFERROR(Euro!Q15*Sterling!$C15,"na") -> 30.52614857 | S15: =IFERROR(Euro!R15*Sterling!$C15,"na") -> 49.47779914 | T15: =Euro!S15*Sterling!$C15 -> 41.75298766 | U15: =Euro!T15*Sterling!$C15 -> 38.71733177 | V15: =Euro!U15*Sterling!$C15 -> 40.98135446 | W15: =Euro!V15*Sterling!$C15 -> 34.59630171
B16: 2011-03-06 | C16: 0.8532428571 | D16: =Euro!C16*Sterling!$C16 -> 34.12971429 | E16: =IFERROR(Euro!D16*Sterling!$C16,"na") -> 34.54780329 | F16: =Euro!E16*Sterling!$C16 -> 32.15872329 | G16: =Euro!F16*Sterling!$C16 -> 42.74746714 | H16: =IFERROR(Euro!G16*Sterling!$C16,"na") -> 31.61264786 | I16: =Euro!H16*Sterling!$C16 -> 38.99319857 | J16: =Euro!I16*Sterling!$C16 -> 24.74404286 | L16: =Euro!K16*Sterling!$C16 -> 51.41641457 | M16: =Euro!L16*Sterling!$C16 -> 26.36520429 | N16: =Euro!M16*Sterling!$C16 -> 33.566574 | O16: =IFERROR(Euro!N16*Sterling!$C16,"na") -> 68.25942857 | P16: =Euro!O16*Sterling!$C16 -> 30.71674286 | Q16: =IFERROR(Euro!P16*Sterling!$C16,"na") -> 18.44711057 | R16: =IFERROR(Euro!Q16*Sterling!$C16,"na") -> 30.71674286 | S16: =IFERROR(Euro!R16*Sterling!$C16,"na") -> 48.72016714 | T16: =Euro!S16*Sterling!$C16 -> 42.03927557 | U16: =Euro!T16*Sterling!$C16 -> 40.255998 | V16: =Euro!U16*Sterling!$C16 -> 40.82767071 | W16: =Euro!V16*Sterling!$C16 -> 35.119476
B17: 2011-03-13 | C17: 0.8596428571 | D17: =Euro!C17*Sterling!$C17 -> 34.38571429 | E17: =IFERROR(Euro!D17*Sterling!$C17,"na") -> 34.84992143 | F17: =Euro!E17*Sterling!$C17 -> 32.39134286 | G17: =Euro!F17*Sterling!$C17 -> 43.15407143 | H17: =IFERROR(Euro!G17*Sterling!$C17,"na") -> 34.31694286 | I17: =Euro!H17*Sterling!$C17 -> 38.58077143 | J17: =Euro!I17*Sterling!$C17 -> 25.2735 | L17: =Euro!K17*Sterling!$C17 -> 52.35225 | M17: =Euro!L17*Sterling!$C17 -> 28.28225 | N17: =Euro!M17*Sterling!$C17 -> 30.51732143 | O17: =IFERROR(Euro!N17*Sterling!$C17,"na") -> 68.77142857 | P17: =Euro!O17*Sterling!$C17 -> 30.94714286 | Q17: =IFERROR(Euro!P17*Sterling!$C17,"na") -> 19.47091071 | R17: =IFERROR(Euro!Q17*Sterling!$C17,"na") -> 30.94714286 | S17: =IFERROR(Euro!R17*Sterling!$C17,"na") -> 42.98214286 | T17: =Euro!S17*Sterling!$C17 -> 42.75003929 | U17: =Euro!T17*Sterling!$C17 -> 42.04513214 | V17: =Euro!U17*Sterling!$C17 -> 40.79005357 | W17: =Euro!V17*Sterling!$C17 -> 35.33991786
B18: 2011-03-20 | C18: 0.8681214286 | D18: =Euro!C18*Sterling!$C18 -> 35.59297857 | E18: =IFERROR(Euro!D18*Sterling!$C18,"na") -> 44.74297843 | F18: =Euro!E18*Sterling!$C18 -> 32.71081543 | G18: =Euro!F18*Sterling!$C18 -> 44.18738071 | H18: =IFERROR(Euro!G18*Sterling!$C18,"na") -> 42.63344336 | I18: =Euro!H18*Sterling!$C18 -> 37.433396 | J18: =Euro!I18*Sterling!$C18 -> 25.87001857 | L18: =Euro!K18*Sterling!$C18 -> 52.868595 | M18: =Euro!L18*Sterling!$C18 -> 28.99525571 | N18: =Euro!M18*Sterling!$C18 -> 22.484345 | O18: =IFERROR(Euro!N18*Sterling!$C18,"na") -> 69.44971429 | P18: =Euro!O18*Sterling!$C18 -> 31.25237143 | Q18: =IFERROR(Euro!P18*Sterling!$C18,"na") -> 20.80887064 | R18: =IFERROR(Euro!Q18*Sterling!$C18,"na") -> 31.25237143 | S18: =IFERROR(Euro!R18*Sterling!$C18,"na") -> 43.59705814 | T18: =Euro!S18*Sterling!$C18 -> 41.67850979 | U18: =Euro!T18*Sterling!$C18 -> 44.26551164 | V18: =Euro!U18*Sterling!$C18 -> 40.94060657 | W18: =Euro!V18*Sterling!$C18 -> 35.89682107
B19: 2011-03-27 | C19: 0.8732714286 | D19: =Euro!C19*Sterling!$C19 -> 35.80412857 | E19: =IFERROR(Euro!D19*Sterling!$C19,"na") -> 44.807557 | F19: =Euro!E19*Sterling!$C19 -> 34.660143 | G19: =Euro!F19*Sterling!$C19 -> 44.88615143 | H19: =IFERROR(Euro!G19*Sterling!$C19,"na") -> 33.71700986 | I19: =Euro!H19*Sterling!$C19 -> 36.84332157 | J19: =Euro!I19*Sterling!$C19 -> 26.89676 | L19: =Euro!K19*Sterling!$C19 -> 53.61886571 | M19: =Euro!L19*Sterling!$C19 -> 29.69122857 | N19: =Euro!M19*Sterling!$C19 -> 31.481435 | O19: =IFERROR(Euro!N19*Sterling!$C19,"na") -> 69.86171429 | P19: =Euro!O19*Sterling!$C19 -> 31.43777143 | Q19: =IFERROR(Euro!P19*Sterling!$C19,"na") -> 21.31655557 | R19: =IFERROR(Euro!Q19*Sterling!$C19,"na") -> 31.43777143 | S19: =IFERROR(Euro!R19*Sterling!$C19,"na") -> 48.02992857 | T19: =Euro!S19*Sterling!$C19 -> 44.02161271 | U19: =Euro!T19*Sterling!$C19 -> 45.50617414 | V19: =Euro!U19*Sterling!$C19 -> 41.18348057 | W19: =Euro!V19*Sterling!$C19 -> 36.39795314
B20: 2011-04-03 | C20: 0.8804428571 | D20: =Euro!C20*Sterling!$C20 -> 36.9786 | E20: =IFERROR(Euro!D20*Sterling!$C20,"na") -> 45.70378871 | F20: =Euro!E20*Sterling!$C20 -> 34.944777 | G20: =Euro!F20*Sterling!$C20 -> 45.43085143 | H20: =IFERROR(Euro!G20*Sterling!$C20,"na") -> 32.49714586 | I20: =Euro!H20*Sterling!$C20 -> 35.47304271 | J20: =Euro!I20*Sterling!$C20 -> 27.46981714 | L20: =Euro!K20*Sterling!$C20 -> 54.20006229 | M20: =Euro!L20*Sterling!$C20 -> 30.46332286 | N20: =Euro!M20*Sterling!$C20 -> 37.45403914 | O20: =IFERROR(Euro!N20*Sterling!$C20,"na") -> 70.43542857 | P20: =Euro!O20*Sterling!$C20 -> 31.69594286 | Q20: =IFERROR(Euro!P20*Sterling!$C20,"na") -> 22.99716743 | R20: =IFERROR(Euro!Q20*Sterling!$C20,"na") -> 31.69594286 | S20: =IFERROR(Euro!R20*Sterling!$C20,"na") -> 43.73159671 | T20: =Euro!S20*Sterling!$C20 -> 42.833545 | U20: =Euro!T20*Sterling!$C20 -> 44.66486614 | V20: =Euro!U20*Sterling!$C20 -> 41.46005414 | W20: =Euro!V20*Sterling!$C20 -> 36.74968486
B21: 2011-04-10 | C21: 0.8786571429 | D21: =Euro!C21*Sterling!$C21 -> 36.9036 | E21: =IFERROR(Euro!D21*Sterling!$C21,"na") -> 37.77144966 | F21: =Euro!E21*Sterling!$C21 -> 35.82056721 | G21: =Euro!F21*Sterling!$C21 -> 45.33870857 | H21: =IFERROR(Euro!G21*Sterling!$C21,"na") -> 33.582276 | I21: =Euro!H21*Sterling!$C21 -> 35.15507229 | J21: =Euro!I21*Sterling!$C21 -> 28.11702857 | L21: =Euro!K21*Sterling!$C21 -> 54.13406657 | M21: =Euro!L21*Sterling!$C21 -> 28.73208857 | N21: =Euro!M21*Sterling!$C21 -> 31.04014515 | O21: =IFERROR(Euro!N21*Sterling!$C21,"na") -> 70.29257143 | P21: =Euro!O21*Sterling!$C21 -> 31.63165714 | Q21: =IFERROR(Euro!P21*Sterling!$C21,"na") -> 23.68982669 | R21: =IFERROR(Euro!Q21*Sterling!$C21,"na") -> 31.63165714 | S21: =IFERROR(Euro!R21*Sterling!$C21,"na") -> 48.08011886 | T21: =Euro!S21*Sterling!$C21 -> 43.34415686 | U21: =Euro!T21*Sterling!$C21 -> 46.34398021 | V21: =Euro!U21*Sterling!$C21 -> 42.50003094 | W21: =Euro!V21*Sterling!$C21 -> 36.7008938
B22: 2011-04-17 | C22: 0.8847 | D22: =Euro!C22*Sterling!$C22 -> 38.0421 | E22: =IFERROR(Euro!D22*Sterling!$C22,"na") -> 49.976703 | F22: =Euro!E22*Sterling!$C22 -> 36.060372 | G22: =Euro!F22*Sterling!$C22 -> 46.62369 | H22: =IFERROR(Euro!G22*Sterling!$C22,"na") -> 36.201924 | I22: =Euro!H22*Sterling!$C22 -> 34.910262 | J22: =Euro!I22*Sterling!$C22 -> 29.54898 | L22: =Euro!K22*Sterling!$C22 -> 54.506367 | M22: =Euro!L22*Sterling!$C22 -> 26.80641 | N22: =Euro!M22*Sterling!$C22 -> 42.686775 | O22: =IFERROR(Euro!N22*Sterling!$C22,"na") -> 70.776 | P22: =Euro!O22*Sterling!$C22 -> 31.8492 | Q22: =IFERROR(Euro!P22*Sterling!$C22,"na") -> 24.656589 | R22: =IFERROR(Euro!Q22*Sterling!$C22,"na") -> 31.8492 | S22: =IFERROR(Euro!R22*Sterling!$C22,"na") -> 53.87823 | T22: =Euro!S22*Sterling!$C22 -> 43.739568 | U22: =Euro!T22*Sterling!$C22 -> 47.15451 | V22: =Euro!U22*Sterling!$C22 -> 43.244136 | W22: =Euro!V22*Sterling!$C22 -> 37.803231
B23: 2011-04-24 | C23: 0.8814142857 | D23: =Euro!C23*Sterling!$C23 -> 38.34152143 | E23: =IFERROR(Euro!D23*Sterling!$C23,"na") -> 40.68608343 | F23: =Euro!E23*Sterling!$C23 -> 35.22131486 | G23: =Euro!F23*Sterling!$C23 -> 46.27425 | H23: =IFERROR(Euro!G23*Sterling!$C23,"na") -> 32.90319529 | I23: =Euro!H23*Sterling!$C23 -> 34.58669657 | J23: =Euro!I23*Sterling!$C23 -> 32.08348 | L23: =Euro!K23*Sterling!$C23 -> 54.30393414 | M23: =Euro!L23*Sterling!$C23 -> 19.12669 | N23: =Euro!M23*Sterling!$C23 -> 34.01377729 | O23: =IFERROR(Euro!N23*Sterling!$C23,"na") -> 70.51314286 | P23: =Euro!O23*Sterling!$C23 -> 31.73091429 | Q23: =IFERROR(Euro!P23*Sterling!$C23,"na") -> 25.64034157 | R23: =IFERROR(Euro!Q23*Sterling!$C23,"na") -> 28.20525714 | S23: =IFERROR(Euro!R23*Sterling!$C23,"na") -> 48.32794529 | T23: =Euro!S23*Sterling!$C23 -> 43.48016671 | U23: =Euro!T23*Sterling!$C23 -> 47.878424 | V23: =Euro!U23*Sterling!$C23 -> 43.559494 | W23: =Euro!V23*Sterling!$C23 -> 37.36315157
B24: 2011-05-01 | C24: 0.8869071429 | D24: =Euro!C24*Sterling!$C24 -> 39.46736786 | E24: =IFERROR(Euro!D24*Sterling!$C24,"na") -> 56.92170043 | F24: =Euro!E24*Sterling!$C24 -> 35.44080943 | G24: =Euro!F24*Sterling!$C24 -> 47.00607857 | H24: =IFERROR(Euro!G24*Sterling!$C24,"na") -> 33.30336321 | I24: =Euro!H24*Sterling!$C24 -> 32.80669521 | J24: =Euro!I24*Sterling!$C24 -> 30.68698714 | L24: =Euro!K24*Sterling!$C24 -> 54.80199236 | M24: =Euro!L24*Sterling!$C24 -> 24.56732786 | N24: =Euro!M24*Sterling!$C24 -> 36.72682479 | O24: =IFERROR(Euro!N24*Sterling!$C24,"na") -> 70.95257143 | P24: =Euro!O24*Sterling!$C24 -> 31.92865714 | Q24: =IFERROR(Euro!P24*Sterling!$C24,"na") -> 26.17262979 | R24: =IFERROR(Euro!Q24*Sterling!$C24,"na") -> 28.38102857 | S24: =IFERROR(Euro!R24*Sterling!$C24,"na") -> 48.4872135 | T24: =Euro!S24*Sterling!$C24 -> 43.60035514 | U24: =Euro!T24*Sterling!$C24 -> 49.27656086 | V24: =Euro!U24*Sterling!$C24 -> 43.75112936 | W24: =Euro!V24*Sterling!$C24 -> 37.79998243
B25: 2011-05-08 | C25: 0.8962428571 | D25: =Euro!C25*Sterling!$C25 -> 39.88280714 | E25: =IFERROR(Euro!D25*Sterling!$C25,"na") -> 41.908316 | F25: =Euro!E25*Sterling!$C25 -> 37.25681557 | G25: =Euro!F25*Sterling!$C25 -> 48.03861714 | H25: =IFERROR(Euro!G25*Sterling!$C25,"na") -> 34.84592229 | I25: =Euro!H25*Sterling!$C25 -> 31.88832086 | J25: =Euro!I25*Sterling!$C25 -> 32.08549429 | L25: =Euro!K25*Sterling!$C25 -> 55.35195886 | M25: =Euro!L25*Sterling!$C25 -> 25.00517571 | N25: =Euro!M25*Sterling!$C25 -> 33.84213029 | O25: =IFERROR(Euro!N25*Sterling!$C25,"na") -> 71.69942857 | P25: =Euro!O25*Sterling!$C25 -> 32.26474286 | Q25: =IFERROR(Euro!P25*Sterling!$C25,"na") -> 26.17925386 | R25: =IFERROR(Euro!Q25*Sterling!$C25,"na") -> 28.67977143 | S25: =IFERROR(Euro!R25*Sterling!$C25,"na") -> 47.59945814 | T25: =Euro!S25*Sterling!$C25 -> 43.86212543 | U25: =Euro!T25*Sterling!$C25 -> 49.77732829 | V25: =Euro!U25*Sterling!$C25 -> 44.89280471 | W25: =Euro!V25*Sterling!$C25 -> 37.91107286
B26: 2011-05-15 | C26: 0.8789428571 | D26: =Euro!C26*Sterling!$C26 -> 38.23401429 | E26: =IFERROR(Euro!D26*Sterling!$C26,"na") -> 50.00305914 | F26: =Euro!E26*Sterling!$C26 -> 36.546444 | G26: =Euro!F26*Sterling!$C26 -> 46.75976 | H26: =IFERROR(Euro!G26*Sterling!$C26,"na") -> 34.84129486 | I26: =Euro!H26*Sterling!$C26 -> 29.84889943 | J26: =Euro!I26*Sterling!$C26 -> 31.99352 | L26: =Euro!K26*Sterling!$C26 -> 54.28351086 | M26: =Euro!L26*Sterling!$C26 -> 29.53248 | N26: =Euro!M26*Sterling!$C26 -> 32.07262486 | O26: =IFERROR(Euro!N26*Sterling!$C26,"na") -> 70.31542857 | P26: =Euro!O26*Sterling!$C26 -> 31.20247143 | Q26: =IFERROR(Euro!P26*Sterling!$C26,"na") -> 25.43660629 | R26: =IFERROR(Euro!Q26*Sterling!$C26,"na") -> 28.12617143 | S26: =IFERROR(Euro!R26*Sterling!$C26,"na") -> 57.43012629 | T26: =Euro!S26*Sterling!$C26 -> 40.56321286 | U26: =Euro!T26*Sterling!$C26 -> 49.53721943 | V26: =Euro!U26*Sterling!$C26 -> 45.30071486 | W26: =Euro!V26*Sterling!$C26 -> 36.94196829
B27: 2011-05-22 | C27: 0.8770571429 | D27: =Euro!C27*Sterling!$C27 -> 35.95934286 | E27: =IFERROR(Euro!D27*Sterling!$C27,"na") -> 39.967494 | F27: =Euro!E27*Sterling!$C27 -> 36.45926543 | G27: =Euro!F27*Sterling!$C27 -> 43.06350571 | H27: =IFERROR(Euro!G27*Sterling!$C27,"na") -> 33.029972 | I27: =Euro!H27*Sterling!$C27 -> 29.07444429 | J27: =Euro!I27*Sterling!$C27 -> 31.22323429 | L27: =Euro!K27*Sterling!$C27 -> 54.16704914 | M27: =Euro!L27*Sterling!$C27 -> 29.38141429 | N27: =Euro!M27*Sterling!$C27 -> 31.90733886 | O27: =IFERROR(Euro!N27*Sterling!$C27,"na") -> 70.16457143 | P27: =Euro!O27*Sterling!$C27 -> 28.50435714 | Q27: =IFERROR(Euro!P27*Sterling!$C27,"na") -> 26.08367943 | R27: =IFERROR(Euro!Q27*Sterling!$C27,"na") -> 28.06582857 | S27: =IFERROR(Euro!R27*Sterling!$C27,"na") -> 60.29767857 | T27: =Euro!S27*Sterling!$C27 -> 40.10782314 | U27: =Euro!T27*Sterling!$C27 -> 49.49233457 | V27: =Euro!U27*Sterling!$C27 -> 45.71221829 | W27: =Euro!V27*Sterling!$C27 -> 35.63483171
B28: 2011-05-29 | C28: 0.8698642857 | D28: =Euro!C28*Sterling!$C28 -> 34.79457143 | E28: =IFERROR(Euro!D28*Sterling!$C28,"na") -> 39.43964671 | F28: =Euro!E28*Sterling!$C28 -> 36.16025836 | G28: =Euro!F28*Sterling!$C28 -> 40.27471643 | H28: =IFERROR(Euro!G28*Sterling!$C28,"na") -> 32.25456771 | I28: =Euro!H28*Sterling!$C28 -> 26.38298379 | J28: =Euro!I28*Sterling!$C28 -> 30.09730429 | L28: =Euro!K28*Sterling!$C28 -> 53.6445305 | M28: =Euro!L28*Sterling!$C28 -> 24.87811857 | N28: =Euro!M28*Sterling!$C28 -> 40.92711464 | O28: =IFERROR(Euro!N28*Sterling!$C28,"na") -> 69.58914286 | P28: =Euro!O28*Sterling!$C28 -> 26.09592857 | Q28: =IFERROR(Euro!P28*Sterling!$C28,"na") -> 25.19126971 | R28: =IFERROR(Euro!Q28*Sterling!$C28,"na") -> 26.96579286 | S28: =IFERROR(Euro!R28*Sterling!$C28,"na") -> 44.83280529 | T28: =Euro!S28*Sterling!$C28 -> 39.42224943 | U28: =Euro!T28*Sterling!$C28 -> 49.79103171 | V28: =Euro!U28*Sterling!$C28 -> 45.77225871 | W28: =Euro!V28*Sterling!$C28 -> 34.15087186
B29: 2011-06-05 | C29: 0.8772857143 | D29: =Euro!C29*Sterling!$C29 -> 35.09142857 | E29: =IFERROR(Euro!D29*Sterling!$C29,"na") -> 42.73258714 | F29: =Euro!E29*Sterling!$C29 -> 35.65289143 | G29: =Euro!F29*Sterling!$C29 -> 40.00422857 | H29: =IFERROR(Euro!G29*Sterling!$C29,"na") -> 38.44266 | I29: =Euro!H29*Sterling!$C29 -> 24.28326857 | J29: =Euro!I29*Sterling!$C29 -> 30.35408571 | L29: =Euro!K29*Sterling!$C29 -> 53.85657 | M29: =Euro!L29*Sterling!$C29 -> 26.14311429 | N29: =Euro!M29*Sterling!$C29 -> 28.69601571 | O29: =IFERROR(Euro!N29*Sterling!$C29,"na") -> 70.18285714 | P29: =Euro!O29*Sterling!$C29 -> 25.00264286 | Q29: =IFERROR(Euro!P29*Sterling!$C29,"na") -> 24.96755143 | R29: =IFERROR(Euro!Q29*Sterling!$C29,"na") -> 24.564 | S29: =IFERROR(Euro!R29*Sterling!$C29,"na") -> 50.33865429 | T29: =Euro!S29*Sterling!$C29 -> 40.34637 | U29: =Euro!T29*Sterling!$C29 -> 49.98774 | V29: =Euro!U29*Sterling!$C29 -> 45.66272143 | W29: =Euro!V29*Sterling!$C29 -> 33.26667429
B30: 2011-06-12 | C30: 0.8899071429 | D30: =Euro!C30*Sterling!$C30 -> 36.48619286 | E30: =IFERROR(Euro!D30*Sterling!$C30,"na") -> 46.1594835 | F30: =Euro!E30*Sterling!$C30 -> 35.68527643 | G30: =Euro!F30*Sterling!$C30 -> 40.57976571 | H30: =IFERROR(Euro!G30*Sterling!$C30,"na") -> 33.36261879 | I30: =Euro!H30*Sterling!$C30 -> 21.70483521 | J30: =Euro!I30*Sterling!$C30 -> 28.65501 | L30: =Euro!K30*Sterling!$C30 -> 54.02626264 | M30: =Euro!L30*Sterling!$C30 -> 27.85409357 | N30: =Euro!M30*Sterling!$C30 -> 33.18463736 | O30: =IFERROR(Euro!N30*Sterling!$C30,"na") -> 71.19257143 | P30: =Euro!O30*Sterling!$C30 -> 25.36235357 | Q30: =IFERROR(Euro!P30*Sterling!$C30,"na") -> 25.2288675 | R30: =IFERROR(Euro!Q30*Sterling!$C30,"na") -> 24.9174 | S30: =IFERROR(Euro!R30*Sterling!$C30,"na") -> 41.45187471 | T30: =Euro!S30*Sterling!$C30 -> 36.66417429 | U30: =Euro!T30*Sterling!$C30 -> 47.36975721 | V30: =Euro!U30*Sterling!$C30 -> 45.69673179 | W30: =Euro!V30*Sterling!$C30 -> 33.00665593
B31: 2011-06-19 | C31: 0.8814571429 | D31: =Euro!C31*Sterling!$C31 -> 36.13974286 | E31: =IFERROR(Euro!D31*Sterling!$C31,"na") -> 50.74548771 | F31: =Euro!E31*Sterling!$C31 -> 36.39536543 | G31: =Euro!F31*Sterling!$C31 -> 40.01815429 | H31: =IFERROR(Euro!G31*Sterling!$C31,"na") -> 34.306312 | I31: =Euro!H31*Sterling!$C31 -> 21.49873971 | J31: =Euro!I31*Sterling!$C31 -> 27.32517143 | L31: =Euro!K31*Sterling!$C31 -> 52.88742857 | M31: =Euro!L31*Sterling!$C31 -> 33.05464286 | N31: =Euro!M31*Sterling!$C31 -> 36.67743171 | O31: =IFERROR(Euro!N31*Sterling!$C31,"na") -> 70.51657143 | P31: =Euro!O31*Sterling!$C31 -> 25.12152857 | Q31: =IFERROR(Euro!P31*Sterling!$C31,"na") -> 24.927608 | R31: =IFERROR(Euro!Q31*Sterling!$C31,"na") -> 24.6808 | S31: =IFERROR(Euro!R31*Sterling!$C31,"na") -> 46.30294371 | T31: =Euro!S31*Sterling!$C31 -> 33.750994 | U31: =Euro!T31*Sterling!$C31 -> 45.94154629 | V31: =Euro!U31*Sterling!$C31 -> 45.75644029 | W31: =Euro!V31*Sterling!$C31 -> 32.77257657
B32: 2011-06-26 | C32: 0.8824571429 | D32: =Euro!C32*Sterling!$C32 -> 35.29828571 | E32: =IFERROR(Euro!D32*Sterling!$C32,"na") -> 45.86129771 | F32: =Euro!E32*Sterling!$C32 -> 36.20721657 | G32: =Euro!F32*Sterling!$C32 -> 39.71057143 | H32: =IFERROR(Euro!G32*Sterling!$C32,"na") -> 36.24251486 | I32: =Euro!H32*Sterling!$C32 -> 21.73491943 | J32: =Euro!I32*Sterling!$C32 -> 26.47371429 | L32: =Euro!K32*Sterling!$C32 -> 52.25028743 | M32: =Euro!L32*Sterling!$C32 -> 32.20968571 | N32: =Euro!M32*Sterling!$C32 -> 34.74233771 | O32: =IFERROR(Euro!N32*Sterling!$C32,"na") -> 70.59657143 | P32: =Euro!O32*Sterling!$C32 -> 25.15002857 | Q32: =IFERROR(Euro!P32*Sterling!$C32,"na") -> 25.573608 | R32: =IFERROR(Euro!Q32*Sterling!$C32,"na") -> 24.7088 | S32: =IFERROR(Euro!R32*Sterling!$C32,"na") -> 42.35794286 | T32: =Euro!S32*Sterling!$C32 -> 39.657624 | U32: =Euro!T32*Sterling!$C32 -> 46.15250857 | V32: =Euro!U32*Sterling!$C32 -> 45.53478857 | W32: =Euro!V32*Sterling!$C32 -> 32.56266857
B33: 2011-07-03 | C33: 0.8955857143 | D33: =Euro!C33*Sterling!$C33 -> 34.92784286 | E33: =IFERROR(Euro!D33*Sterling!$C33,"na") -> 46.35551657 | F33: =Euro!E33*Sterling!$C33 -> 36.74588186 | G33: =Euro!F33*Sterling!$C33 -> 40.21179857 | H33: =IFERROR(Euro!G33*Sterling!$C33,"na") -> 39.746094 | I33: =Euro!H33*Sterling!$C33 -> 22.52398071 | J33: =Euro!I33*Sterling!$C33 -> 25.25551714 | L33: =Euro!K33*Sterling!$C33 -> 52.221603 | M33: =Euro!L33*Sterling!$C33 -> 32.68887857 | N33: =Euro!M33*Sterling!$C33 -> 33.70984629 | O33: =IFERROR(Euro!N33*Sterling!$C33,"na") -> 71.64685714 | P33: =Euro!O33*Sterling!$C33 -> 25.52419286 | Q33: =IFERROR(Euro!P33*Sterling!$C33,"na") -> 26.079456 | R33: =IFERROR(Euro!Q33*Sterling!$C33,"na") -> 25.0764 | S33: =IFERROR(Euro!R33*Sterling!$C33,"na") -> 51.74694257 | T33: =Euro!S33*Sterling!$C33 -> 39.61175614 | U33: =Euro!T33*Sterling!$C33 -> 47.331705 | V33: =Euro!U33*Sterling!$C33 -> 45.88085614 | W33: =Euro!V33*Sterling!$C33 -> 32.86799571
B34: 2011-07-10 | C34: 0.8968928571 | D34: =Euro!C34*Sterling!$C34 -> 34.08192857 | E34: =IFERROR(Euro!D34*Sterling!$C34,"na") -> 46.59358393 | F34: =Euro!E34*Sterling!$C34 -> 36.790545 | G34: =Euro!F34*Sterling!$C34 -> 40.27048929 | H34: =IFERROR(Euro!G34*Sterling!$C34,"na") -> 32.94287464 | I34: =Euro!H34*Sterling!$C34 -> 23.84838107 | J34: =Euro!I34*Sterling!$C34 -> 24.75424286 | L34: =Euro!K34*Sterling!$C34 -> 51.607215 | M34: =Euro!L34*Sterling!$C34 -> 36.14478214 | N34: =Euro!M34*Sterling!$C34 -> 29.79478071 | O34: =IFERROR(Euro!N34*Sterling!$C34,"na") -> 71.75142857 | P34: =Euro!O34*Sterling!$C34 -> 24.66455357 | Q34: =IFERROR(Euro!P34*Sterling!$C34,"na") -> 27.71398929 | R34: =IFERROR(Euro!Q34*Sterling!$C34,"na") -> 25.113 | S34: =IFERROR(Euro!R34*Sterling!$C34,"na") -> 43.84012286 | T34: =Euro!S34*Sterling!$C34 -> 41.19428893 | U34: =Euro!T34*Sterling!$C34 -> 49.56229929 | V34: =Euro!U34*Sterling!$C34 -> 46.0195725 | W34: =Euro!V34*Sterling!$C34 -> 32.91596786
B35: 2011-07-17 | C35: 0.8821142857 | D35: =Euro!C35*Sterling!$C35 -> 33.52034286 | E35: =IFERROR(Euro!D35*Sterling!$C35,"na") -> 46.48742286 | F35: =Euro!E35*Sterling!$C35 -> 36.19314914 | G35: =Euro!F35*Sterling!$C35 -> 39.07766286 | H35: =IFERROR(Euro!G35*Sterling!$C35,"na") -> 34.12018057 | I35: =Euro!H35*Sterling!$C35 -> 23.41131314 | J35: =Euro!I35*Sterling!$C35 -> 23.81708571 | L35: =Euro!K35*Sterling!$C35 -> 50.22758743 | M35: =Euro!L35*Sterling!$C35 -> 36.07847429 | N35: =Euro!M35*Sterling!$C35 -> 32.87639943 | O35: =IFERROR(Euro!N35*Sterling!$C35,"na") -> 70.56914286 | P35: =Euro!O35*Sterling!$C35 -> 23.81708571 | Q35: =IFERROR(Euro!P35*Sterling!$C35,"na") -> 27.82188457 | R35: =IFERROR(Euro!Q35*Sterling!$C35,"na") -> 24.6992 | S35: =IFERROR(Euro!R35*Sterling!$C35,"na") -> 54.19710171 | T35: =Euro!S35*Sterling!$C35 -> 40.83307029 | U35: =Euro!T35*Sterling!$C35 -> 47.63417143 | V35: =Euro!U35*Sterling!$C35 -> 45.91404857 | W35: =Euro!V35*Sterling!$C35 -> 32.44416343
B36: 2011-07-24 | C36: 0.8791857143 | D36: =Euro!C36*Sterling!$C36 -> 32.52987143 | E36: =IFERROR(Euro!D36*Sterling!$C36,"na") -> 46.14845814 | F36: =Euro!E36*Sterling!$C36 -> 36.08178171 | G36: =Euro!F36*Sterling!$C36 -> 37.10163714 | H36: =IFERROR(Euro!G36*Sterling!$C36,"na") -> 32.90792129 | I36: =Euro!H36*Sterling!$C36 -> 23.17533543 | J36: =Euro!I36*Sterling!$C36 -> 23.21050286 | L36: =Euro!K36*Sterling!$C36 -> 49.43661271 | M36: =Euro!L36*Sterling!$C36 -> 32.09027857 | N36: =Euro!M36*Sterling!$C36 -> 30.833043 | O36: =IFERROR(Euro!N36*Sterling!$C36,"na") -> 70.33485714 | P36: =Euro!O36*Sterling!$C36 -> 23.73801429 | Q36: =IFERROR(Euro!P36*Sterling!$C36,"na") -> 28.494409 | R36: =IFERROR(Euro!Q36*Sterling!$C36,"na") -> 24.6172 | S36: =IFERROR(Euro!R36*Sterling!$C36,"na") -> 43.72190557 | T36: =Euro!S36*Sterling!$C36 -> 40.97005429 | U36: =Euro!T36*Sterling!$C36 -> 50.07841829 | V36: =Euro!U36*Sterling!$C36 -> 45.61215486 | W36: =Euro!V36*Sterling!$C36 -> 31.72102057
B37: 2011-07-31 | C37: 0.8791785714 | D37: =Euro!C37*Sterling!$C37 -> 31.65042857 | E37: =IFERROR(Euro!D37*Sterling!$C37,"na") -> 46.403045 | F37: =Euro!E37*Sterling!$C37 -> 36.10786393 | G37: =Euro!F37*Sterling!$C37 -> 35.16714286 | H37: =IFERROR(Euro!G37*Sterling!$C37,"na") -> 38.07722393 | I37: =Euro!H37*Sterling!$C37 -> 21.66296 | J37: =Euro!I37*Sterling!$C37 -> 22.68280714 | L37: =Euro!K37*Sterling!$C37 -> 48.70649286 | M37: =Euro!L37*Sterling!$C37 -> 35.34297857 | N37: =Euro!M37*Sterling!$C37 -> 36.01115429 | O37: =IFERROR(Euro!N37*Sterling!$C37,"na") -> 70.33428571 | P37: =Euro!O37*Sterling!$C37 -> 22.19925893 | Q37: =IFERROR(Euro!P37*Sterling!$C37,"na") -> 27.694125 | R37: =IFERROR(Euro!Q37*Sterling!$C37,"na") -> 24.617 | S37: =IFERROR(Euro!R37*Sterling!$C37,"na") -> 43.95892857 | T37: =Euro!S37*Sterling!$C37 -> 41.42689429 | U37: =Euro!T37*Sterling!$C37 -> 51.07148321 | V37: =Euro!U37*Sterling!$C37 -> 45.61178429 | W37: =Euro!V37*Sterling!$C37 -> 30.85916786
B38: 2011-08-07 | C38: 0.8726142857 | D38: =Euro!C38*Sterling!$C38 -> 31.41411429 | E38: =IFERROR(Euro!D38*Sterling!$C38,"na") -> 43.88377243 | F38: =Euro!E38*Sterling!$C38 -> 35.84699486 | G38: =Euro!F38*Sterling!$C38 -> 34.46826429 | H38: =IFERROR(Euro!G38*Sterling!$C38,"na") -> 33.56074543 | I38: =Euro!H38*Sterling!$C38 -> 20.83802914 | J38: =Euro!I38*Sterling!$C38 -> 21.98988 | L38: =Euro!K38*Sterling!$C38 -> 47.766906 | M38: =Euro!L38*Sterling!$C38 -> 33.94469571 | N38: =Euro!M38*Sterling!$C38 -> 25.68976457 | O38: =IFERROR(Euro!N38*Sterling!$C38,"na") -> 69.80914286 | P38: =Euro!O38*Sterling!$C38 -> 21.37905 | Q38: =IFERROR(Euro!P38*Sterling!$C38,"na") -> 27.31282714 | R38: =IFERROR(Euro!Q38*Sterling!$C38,"na") -> 24.4332 | S38: =IFERROR(Euro!R38*Sterling!$C38,"na") -> 49.293981 | T38: =Euro!S38*Sterling!$C38 -> 39.51197486 | U38: =Euro!T38*Sterling!$C38 -> 47.54002629 | V38: =Euro!U38*Sterling!$C38 -> 44.773839 | W38: =Euro!V38*Sterling!$C38 -> 29.93939614
B39: 2011-08-14 | C39: 0.87485 | D39: =Euro!C39*Sterling!$C39 -> 31.057175 | E39: =IFERROR(Euro!D39*Sterling!$C39,"na") -> 44.09244 | F39: =Euro!E39*Sterling!$C39 -> 35.116479 | G39: =Euro!F39*Sterling!$C39 -> 34.46909 | H39: =IFERROR(Euro!G39*Sterling!$C39,"na") -> 34.0754075 | I39: =Euro!H39*Sterling!$C39 -> 20.576472 | J39: =Euro!I39*Sterling!$C39 -> 21.17137 | L39: =Euro!K39*Sterling!$C39 -> 47.5131035 | M39: =Euro!L39*Sterling!$C39 -> 32.71939 | N39: =Euro!M39*Sterling!$C39 -> 27.1116015 | O39: =IFERROR(Euro!N39*Sterling!$C39,"na") -> 69.988 | P39: =Euro!O39*Sterling!$C39 -> 20.558975 | Q39: =IFERROR(Euro!P39*Sterling!$C39,"na") -> 26.5167035 | R39: =IFERROR(Euro!Q39*Sterling!$C39,"na") -> 24.4958 | S39: =IFERROR(Euro!R39*Sterling!$C39,"na") -> 49.4202765 | T39: =Euro!S39*Sterling!$C39 -> 40.488058 | U39: =Euro!T39*Sterling!$C39 -> 47.7405645 | V39: =Euro!U39*Sterling!$C39 -> 43.6812605 | W39: =Euro!V39*Sterling!$C39 -> 29.7011575
B40: 2011-08-21 | C40: 0.8741928571 | D40: =Euro!C40*Sterling!$C40 -> 30.15965357 | E40: =IFERROR(Euro!D40*Sterling!$C40,"na") -> 40.76361293 | F40: =Euro!E40*Sterling!$C40 -> 35.08135936 | G40: =Euro!F40*Sterling!$C40 -> 34.35577929 | H40: =IFERROR(Euro!G40*Sterling!$C40,"na") -> 34.24213421 | I40: =Euro!H40*Sterling!$C40 -> 19.5207265 | J40: =Euro!I40*Sterling!$C40 -> 20.45611286 | L40: =Euro!K40*Sterling!$C40 -> 47.32005936 | M40: =Euro!L40*Sterling!$C40 -> 35.84190714 | N40: =Euro!M40*Sterling!$C40 -> 33.85748936 | O40: =IFERROR(Euro!N40*Sterling!$C40,"na") -> 69.93542857 | P40: =Euro!O40*Sterling!$C40 -> 20.10643571 | Q40: =IFERROR(Euro!P40*Sterling!$C40,"na") -> 26.67162407 | R40: =IFERROR(Euro!Q40*Sterling!$C40,"na") -> 24.4774 | S40: =IFERROR(Euro!R40*Sterling!$C40,"na") -> 41.35806407 | T40: =Euro!S40*Sterling!$C40 -> 41.55912843 | U40: =Euro!T40*Sterling!$C40 -> 49.9950895 | V40: =Euro!U40*Sterling!$C40 -> 43.03651436 | W40: =Euro!V40*Sterling!$C40 -> 29.6788475
B41: 2011-08-28 | C41: 0.8784142857 | D41: =Euro!C41*Sterling!$C41 -> 29.86608571 | E41: =IFERROR(Euro!D41*Sterling!$C41,"na") -> 41.02194714 | F41: =Euro!E41*Sterling!$C41 -> 35.25954943 | G41: =Euro!F41*Sterling!$C41 -> 34.43384 | H41: =IFERROR(Euro!G41*Sterling!$C41,"na") -> 45.67754286 | I41: =Euro!H41*Sterling!$C41 -> 19.42173986 | J41: =Euro!I41*Sterling!$C41 -> 20.37921143 | L41: =Euro!K41*Sterling!$C41 -> 47.35531414 | M41: =Euro!L41*Sterling!$C41 -> 33.99463286 | N41: =Euro!M41*Sterling!$C41 -> 27.41530986 | O41: =IFERROR(Euro!N41*Sterling!$C41,"na") -> 70.27314286 | P41: =Euro!O41*Sterling!$C41 -> 20.20352857 | Q41: =IFERROR(Euro!P41*Sterling!$C41,"na") -> 26.932182 | R41: =IFERROR(Euro!Q41*Sterling!$C41,"na") -> 24.5956 | S41: =IFERROR(Euro!R41*Sterling!$C41,"na") -> 49.27904143 | T41: =Euro!S41*Sterling!$C41 -> 41.10100443 | U41: =Euro!T41*Sterling!$C41 -> 51.38723571 | V41: =Euro!U41*Sterling!$C41 -> 42.62944529 | W41: =Euro!V41*Sterling!$C41 -> 29.23362743
B42: 2011-09-04 | C42: 0.8826428571 | D42: =Euro!C42*Sterling!$C42 -> 30.00985714 | E42: =IFERROR(Euro!D42*Sterling!$C42,"na") -> 44.93534786 | F42: =Euro!E42*Sterling!$C42 -> 35.42045786 | G42: =Euro!F42*Sterling!$C42 -> 34.5996 | H42: =IFERROR(Euro!G42*Sterling!$C42,"na") -> 38.09486571 | I42: =Euro!H42*Sterling!$C42 -> 19.26809357 | J42: =Euro!I42*Sterling!$C42 -> 20.30078571 | L42: =Euro!K42*Sterling!$C42 -> 47.57445 | M42: =Euro!L42*Sterling!$C42 -> 35.04092143 | N42: =Euro!M42*Sterling!$C42 -> 24.50216571 | O42: =IFERROR(Euro!N42*Sterling!$C42,"na") -> 70.61142857 | P42: =Euro!O42*Sterling!$C42 -> 20.30078571 | Q42: =IFERROR(Euro!P42*Sterling!$C42,"na") -> 26.90295429 | R42: =IFERROR(Euro!Q42*Sterling!$C42,"na") -> 24.714 | S42: =IFERROR(Euro!R42*Sterling!$C42,"na") -> 62.341065 | T42: =Euro!S42*Sterling!$C42 -> 41.81079214 | U42: =Euro!T42*Sterling!$C42 -> 54.11483357 | V42: =Euro!U42*Sterling!$C42 -> 41.84609786 | W42: =Euro!V42*Sterling!$C42 -> 29.31256929
B43: 2011-09-11 | C43: 0.8739428571 | D43: =Euro!C43*Sterling!$C43 -> 29.71405714 | E43: =IFERROR(Euro!D43*Sterling!$C43,"na") -> 40.22758971 | F43: =Euro!E43*Sterling!$C43 -> 36.02392457 | G43: =Euro!F43*Sterling!$C43 -> 33.90898286 | H43: =IFERROR(Euro!G43*Sterling!$C43,"na") -> 31.81152 | I43: =Euro!H43*Sterling!$C43 -> 19.48892571 | J43: =Euro!I43*Sterling!$C43 -> 19.92589714 | L43: =Euro!K43*Sterling!$C43 -> 47.10552 | M43: =Euro!L43*Sterling!$C43 -> 36.88038857 | N43: =Euro!M43*Sterling!$C43 -> 28.324488 | O43: =IFERROR(Euro!N43*Sterling!$C43,"na") -> 69.91542857 | P43: =Euro!O43*Sterling!$C43 -> 20.10068571 | Q43: =IFERROR(Euro!P43*Sterling!$C43,"na") -> 26.94365829 | R43: =IFERROR(Euro!Q43*Sterling!$C43,"na") -> 24.4704 | S43: =IFERROR(Euro!R43*Sterling!$C43,"na") -> 39.57213257 | T43: =Euro!S43*Sterling!$C43 -> 41.36371543 | U43: =Euro!T43*Sterling!$C43 -> 53.651352 | V43: =Euro!U43*Sterling!$C43 -> 40.926744 | W43: =Euro!V43*Sterling!$C43 -> 29.01490286
B44: 2011-09-18 | C44: 0.8678642857 | D44: =Euro!C44*Sterling!$C44 -> 29.50738571 | E44: =IFERROR(Euro!D44*Sterling!$C44,"na") -> 42.47327814 | F44: =Euro!E44*Sterling!$C44 -> 35.77336586 | G44: =Euro!F44*Sterling!$C44 -> 33.58634786 | H44: =IFERROR(Euro!G44*Sterling!$C44,"na") -> 34.51496264 | I44: =Euro!H44*Sterling!$C44 -> 21.76603629 | J44: =Euro!I44*Sterling!$C44 -> 19.61373286 | L44: =Euro!K44*Sterling!$C44 -> 46.777885 | M44: =Euro!L44*Sterling!$C44 -> 32.97884286 | N44: =Euro!M44*Sterling!$C44 -> 29.31645557 | O44: =IFERROR(Euro!N44*Sterling!$C44,"na") -> 69.42914286 | P44: =Euro!O44*Sterling!$C44 -> 19.96087857 | Q44: =IFERROR(Euro!P44*Sterling!$C44,"na") -> 26.19214414 | R44: =IFERROR(Euro!Q44*Sterling!$C44,"na") -> 24.3002 | S44: =IFERROR(Euro!R44*Sterling!$C44,"na") -> 52.46239607 | T44: =Euro!S44*Sterling!$C44 -> 41.39712643 | U44: =Euro!T44*Sterling!$C44 -> 51.49038807 | V44: =Euro!U44*Sterling!$C44 -> 40.79830007 | W44: =Euro!V44*Sterling!$C44 -> 29.29909829
B45: 2011-09-25 | C45: 0.8718785714 | D45: =Euro!C45*Sterling!$C45 -> 29.64387143 | E45: =IFERROR(Euro!D45*Sterling!$C45,"na") -> 42.12045379 | F45: =Euro!E45*Sterling!$C45 -> 35.9475535 | G45: =Euro!F45*Sterling!$C45 -> 33.65451286 | H45: =IFERROR(Euro!G45*Sterling!$C45,"na") -> 34.543829 | I45: =Euro!H45*Sterling!$C45 -> 24.25566186 | J45: =Euro!I45*Sterling!$C45 -> 19.70445571 | L45: =Euro!K45*Sterling!$C45 -> 46.994255 | M45: =Euro!L45*Sterling!$C45 -> 34.43920357 | N45: =Euro!M45*Sterling!$C45 -> 26.95848543 | O45: =IFERROR(Euro!N45*Sterling!$C45,"na") -> 69.75028571 | P45: =Euro!O45*Sterling!$C45 -> 20.05320714 | Q45: =IFERROR(Euro!P45*Sterling!$C45,"na") -> 25.51988579 | R45: =IFERROR(Euro!Q45*Sterling!$C45,"na") -> 24.4126 | S45: =IFERROR(Euro!R45*Sterling!$C45,"na") -> 46.84603564 | T45: =Euro!S45*Sterling!$C45 -> 39.75766286 | U45: =Euro!T45*Sterling!$C45 -> 53.951846 | V45: =Euro!U45*Sterling!$C45 -> 40.42029057 | W45: =Euro!V45*Sterling!$C45 -> 29.67874657
B46: 2011-10-02 | C46: 0.8696357143 | D46: =Euro!C46*Sterling!$C46 -> 29.56761429 | E46: =IFERROR(Euro!D46*Sterling!$C46,"na") -> 42.38604471 | F46: =Euro!E46*Sterling!$C46 -> 35.87247321 | G46: =Euro!F46*Sterling!$C46 -> 33.65490214 | H46: =IFERROR(Euro!G46*Sterling!$C46,"na") -> 39.17708893 | I46: =Euro!H46*Sterling!$C46 -> 25.28900657 | J46: =Euro!I46*Sterling!$C46 -> 20.34947571 | L46: =Euro!K46*Sterling!$C46 -> 46.873365 | M46: =Euro!L46*Sterling!$C46 -> 34.35061071 | N46: =Euro!M46*Sterling!$C46 -> 25.71512807 | O46: =IFERROR(Euro!N46*Sterling!$C46,"na") -> 69.57085714 | P46: =Euro!O46*Sterling!$C46 -> 20.00162143 | Q46: =IFERROR(Euro!P46*Sterling!$C46,"na") -> 26.20212407 | R46: =IFERROR(Euro!Q46*Sterling!$C46,"na") -> 24.3498 | S46: =IFERROR(Euro!R46*Sterling!$C46,"na") -> 41.5772835 | T46: =Euro!S46*Sterling!$C46 -> 42.75998807 | U46: =Euro!T46*Sterling!$C46 -> 53.54347093 | V46: =Euro!U46*Sterling!$C46 -> 40.3597935 | W46: =Euro!V46*Sterling!$C46 -> 29.96764671
B47: 2011-10-09 | C47: 0.8631642857 | D47: =Euro!C47*Sterling!$C47 -> 29.34758571 | E47: =IFERROR(Euro!D47*Sterling!$C47,"na") -> 40.23208736 | F47: =Euro!E47*Sterling!$C47 -> 36.52911257 | G47: =Euro!F47*Sterling!$C47 -> 33.40445786 | H47: =IFERROR(Euro!G47*Sterling!$C47,"na") -> 37.34911864 | I47: =Euro!H47*Sterling!$C47 -> 25.59282107 | J47: =Euro!I47*Sterling!$C47 -> 20.54331 | L47: =Euro!K47*Sterling!$C47 -> 46.524555 | M47: =Euro!L47*Sterling!$C47 -> 29.86548429 | N47: =Euro!M47*Sterling!$C47 -> 23.564385 | O47: =IFERROR(Euro!N47*Sterling!$C47,"na") -> 69.05314286 | P47: =Euro!O47*Sterling!$C47 -> 19.85277857 | Q47: =IFERROR(Euro!P47*Sterling!$C47,"na") -> 26.222931 | R47: =IFERROR(Euro!Q47*Sterling!$C47,"na") -> 24.1686 | S47: =IFERROR(Euro!R47*Sterling!$C47,"na") -> 43.50348 | T47: =Euro!S47*Sterling!$C47 -> 39.36029143 | U47: =Euro!T47*Sterling!$C47 -> 51.46185471 | V47: =Euro!U47*Sterling!$C47 -> 39.98176971 | W47: =Euro!V47*Sterling!$C47 -> 29.86548429
B48: 2011-10-16 | C48: 0.8721 | D48: =Euro!C48*Sterling!$C48 -> 29.6514 | E48: =IFERROR(Euro!D48*Sterling!$C48,"na") -> 40.744512 | F48: =Euro!E48*Sterling!$C48 -> 36.898551 | G48: =Euro!F48*Sterling!$C48 -> 33.92469 | H48: =IFERROR(Euro!G48*Sterling!$C48,"na") -> 33.846201 | I48: =Euro!H48*Sterling!$C48 -> 25.421715 | J48: =Euro!I48*Sterling!$C48 -> 21.8025 | L48: =Euro!K48*Sterling!$C48 -> 47.084679 | M48: =Euro!L48*Sterling!$C48 -> 33.75027 | N48: =Euro!M48*Sterling!$C48 -> 23.773446 | O48: =IFERROR(Euro!N48*Sterling!$C48,"na") -> 69.768 | P48: =Euro!O48*Sterling!$C48 -> 20.0583 | Q48: =IFERROR(Euro!P48*Sterling!$C48,"na") -> 27.087426 | R48: =IFERROR(Euro!Q48*Sterling!$C48,"na") -> 24.4188 | S48: =IFERROR(Euro!R48*Sterling!$C48,"na") -> 41.346261 | T48: =Euro!S48*Sterling!$C48 -> 39.977064 | U48: =Euro!T48*Sterling!$C48 -> 56.189403 | V48: =Euro!U48*Sterling!$C48 -> 40.395672 | W48: =Euro!V48*Sterling!$C48 -> 30.314196
B49: 2011-10-23 | C49: 0.8720642857 | D49: =Euro!C49*Sterling!$C49 -> 30.52225 | E49: =IFERROR(Euro!D49*Sterling!$C49,"na") -> 36.69646514 | F49: =Euro!E49*Sterling!$C49 -> 36.89703993 | G49: =Euro!F49*Sterling!$C49 -> 33.83609429 | H49: =IFERROR(Euro!G49*Sterling!$C49,"na") -> 36.10346143 | I49: =Euro!H49*Sterling!$C49 -> 25.516601 | J49: =Euro!I49*Sterling!$C49 -> 23.19691 | L49: =Euro!K49*Sterling!$C49 -> 47.29204621 | M49: =Euro!L49*Sterling!$C49 -> 32.09196571 | N49: =Euro!M49*Sterling!$C49 -> 20.01387536 | O49: =IFERROR(Euro!N49*Sterling!$C49,"na") -> 69.76514286 | P49: =Euro!O49*Sterling!$C49 -> 20.05747857 | Q49: =IFERROR(Euro!P49*Sterling!$C49,"na") -> 26.86830064 | R49: =IFERROR(Euro!Q49*Sterling!$C49,"na") -> 20.92954286 | S49: =IFERROR(Euro!R49*Sterling!$C49,"na") -> 41.34456779 | T49: =Euro!S49*Sterling!$C49 -> 40.08879521 | U49: =Euro!T49*Sterling!$C49 -> 52.96918471 | V49: =Euro!U49*Sterling!$C49 -> 40.26320807 | W49: =Euro!V49*Sterling!$C49 -> 30.278072
B50: 2011-10-30 | C50: 0.8734071429 | D50: =Euro!C50*Sterling!$C50 -> 31.44265714 | E50: =IFERROR(Euro!D50*Sterling!$C50,"na") -> 36.77917479 | F50: =Euro!E50*Sterling!$C50 -> 37.77485893 | G50: =Euro!F50*Sterling!$C50 -> 34.93628571 | H50: =IFERROR(Euro!G50*Sterling!$C50,"na") -> 34.71793393 | I50: =Euro!H50*Sterling!$C50 -> 26.18474614 | J50: =Euro!I50*Sterling!$C50 -> 24.97944429 | L50: =Euro!K50*Sterling!$C50 -> 47.71423221 | M50: =Euro!L50*Sterling!$C50 -> 38.69193643 | N50: =Euro!M50*Sterling!$C50 -> 26.28082093 | O50: =IFERROR(Euro!N50*Sterling!$C50,"na") -> 69.87257143 | P50: =Euro!O50*Sterling!$C50 -> 21.61682679 | Q50: =IFERROR(Euro!P50*Sterling!$C50,"na") -> 27.90535821 | R50: =IFERROR(Euro!Q50*Sterling!$C50,"na") -> 20.96177143 | S50: =IFERROR(Euro!R50*Sterling!$C50,"na") -> 46.45652593 | T50: =Euro!S50*Sterling!$C50 -> 43.1026425 | U50: =Euro!T50*Sterling!$C50 -> 55.05085221 | V50: =Euro!U50*Sterling!$C50 -> 40.89292243 | W50: =Euro!V50*Sterling!$C50 -> 31.45139121
B51: 2011-11-06 | C51: 0.8644714286 | D51: =Euro!C51*Sterling!$C51 -> 32.41767857 | E51: =IFERROR(Euro!D51*Sterling!$C51,"na") -> 36.29051057 | F51: =Euro!E51*Sterling!$C51 -> 37.40567871 | G51: =Euro!F51*Sterling!$C51 -> 36.04845857 | H51: =IFERROR(Euro!G51*Sterling!$C51,"na") -> 33.95643771 | I51: =Euro!H51*Sterling!$C51 -> 26.98015329 | J51: =Euro!I51*Sterling!$C51 -> 25.58835429 | L51: =Euro!K51*Sterling!$C51 -> 47.77933586 | M51: =Euro!L51*Sterling!$C51 -> 34.49241 | N51: =Euro!M51*Sterling!$C51 -> 19.91742171 | O51: =IFERROR(Euro!N51*Sterling!$C51,"na") -> 69.15771429 | P51: =Euro!O51*Sterling!$C51 -> 22.90849286 | Q51: =IFERROR(Euro!P51*Sterling!$C51,"na") -> 26.83319314 | R51: =IFERROR(Euro!Q51*Sterling!$C51,"na") -> 20.74731429 | S51: =IFERROR(Euro!R51*Sterling!$C51,"na") -> 54.02946429 | T51: =Euro!S51*Sterling!$C51 -> 41.32173429 | U51: =Euro!T51*Sterling!$C51 -> 55.14463243 | V51: =Euro!U51*Sterling!$C51 -> 41.27851071 | W51: =Euro!V51*Sterling!$C51 -> 31.769325
B52: 2011-11-13 | C52: 0.8566642857 | D52: =Euro!C52*Sterling!$C52 -> 32.981575 | E52: =IFERROR(Euro!D52*Sterling!$C52,"na") -> 35.37166836 | F52: =Euro!E52*Sterling!$C52 -> 38.4385265 | G52: =Euro!F52*Sterling!$C52 -> 37.43622929 | H52: =IFERROR(Euro!G52*Sterling!$C52,"na") -> 36.23689929 | I52: =Euro!H52*Sterling!$C52 -> 28.37272114 | J52: =Euro!I52*Sterling!$C52 -> 26.89925857 | L52: =Euro!K52*Sterling!$C52 -> 47.96463336 | M52: =Euro!L52*Sterling!$C52 -> 32.72457571 | N52: =Euro!M52*Sterling!$C52 -> 27.96152229 | O52: =IFERROR(Euro!N52*Sterling!$C52,"na") -> 68.53314286 | P52: =Euro!O52*Sterling!$C52 -> 24.41493214 | Q52: =IFERROR(Euro!P52*Sterling!$C52,"na") -> 27.74735621 | R52: =IFERROR(Euro!Q52*Sterling!$C52,"na") -> 22.27327143 | S52: =IFERROR(Euro!R52*Sterling!$C52,"na") -> 53.54151786 | T52: =Euro!S52*Sterling!$C52 -> 38.4385265 | U52: =Euro!T52*Sterling!$C52 -> 55.61464543 | V52: =Euro!U52*Sterling!$C52 -> 41.65958421 | W52: =Euro!V52*Sterling!$C52 -> 32.99870829
B53: 2011-11-20 | C53: 0.8558928571 | D53: =Euro!C53*Sterling!$C53 -> 32.951875 | E53: =IFERROR(Euro!D53*Sterling!$C53,"na") -> 40.20984643 | F53: =Euro!E53*Sterling!$C53 -> 38.41247143 | G53: =Euro!F53*Sterling!$C53 -> 38.68635714 | H53: =IFERROR(Euro!G53*Sterling!$C53,"na") -> 37.3254875 | I53: =Euro!H53*Sterling!$C53 -> 29.54542143 | J53: =Euro!I53*Sterling!$C53 -> 28.07328571 | L53: =Euro!K53*Sterling!$C53 -> 48.87148214 | M53: =Euro!L53*Sterling!$C53 -> 33.89335714 | N53: =Euro!M53*Sterling!$C53 -> 29.57965714 | O53: =IFERROR(Euro!N53*Sterling!$C53,"na") -> 68.47142857 | P53: =Euro!O53*Sterling!$C53 -> 25.24883929 | Q53: =IFERROR(Euro!P53*Sterling!$C53,"na") -> 26.9007125 | R53: =IFERROR(Euro!Q53*Sterling!$C53,"na") -> 22.25321429 | S53: =IFERROR(Euro!R53*Sterling!$C53,"na") -> 40.26975893 | T53: =Euro!S53*Sterling!$C53 -> 40.77473571 | U53: =Euro!T53*Sterling!$C53 -> 53.57889286 | V53: =Euro!U53*Sterling!$C53 -> 42.16984107 | W53: =Euro!V53*Sterling!$C53 -> 33.670825
B54: 2011-11-27 | C54: 0.8594785714 | D54: =Euro!C54*Sterling!$C54 -> 34.80888214 | E54: =IFERROR(Euro!D54*Sterling!$C54,"na") -> 41.151834 | F54: =Euro!E54*Sterling!$C54 -> 38.57339829 | G54: =Euro!F54*Sterling!$C54 -> 39.87980571 | H54: =IFERROR(Euro!G54*Sterling!$C54,"na") -> 32.86646057 | I54: =Euro!H54*Sterling!$C54 -> 30.442731 | J54: =Euro!I54*Sterling!$C54 -> 28.19089714 | L54: =Euro!K54*Sterling!$C54 -> 49.84975714 | M54: =Euro!L54*Sterling!$C54 -> 32.48829 | N54: =Euro!M54*Sterling!$C54 -> 25.92187371 | O54: =IFERROR(Euro!N54*Sterling!$C54,"na") -> 68.75828571 | P54: =Euro!O54*Sterling!$C54 -> 27.073575 | Q54: =IFERROR(Euro!P54*Sterling!$C54,"na") -> 28.01900143 | R54: =IFERROR(Euro!Q54*Sterling!$C54,"na") -> 24.0654 | S54: =IFERROR(Euro!R54*Sterling!$C54,"na") -> 48.74962457 | T54: =Euro!S54*Sterling!$C54 -> 43.40366786 | U54: =Euro!T54*Sterling!$C54 -> 55.74578014 | V54: =Euro!U54*Sterling!$C54 -> 42.25196657 | W54: =Euro!V54*Sterling!$C54 -> 34.60260729
B55: 2011-12-04 | C55: 0.8618571429 | D55: =Euro!C55*Sterling!$C55 -> 35.76707143 | E55: =IFERROR(Euro!D55*Sterling!$C55,"na") -> 42.86015571 | F55: =Euro!E55*Sterling!$C55 -> 39.29206714 | G55: =Euro!F55*Sterling!$C55 -> 41.11058571 | H55: =IFERROR(Euro!G55*Sterling!$C55,"na") -> 35.94806143 | I55: =Euro!H55*Sterling!$C55 -> 31.62153857 | J55: =Euro!I55*Sterling!$C55 -> 28.61365714 | L55: =Euro!K55*Sterling!$C55 -> 51.07365429 | M55: =Euro!L55*Sterling!$C55 -> 33.26768571 | N55: =Euro!M55*Sterling!$C55 -> 28.67398714 | O55: =IFERROR(Euro!N55*Sterling!$C55,"na") -> 68.94857143 | P55: =Euro!O55*Sterling!$C55 -> 28.87221429 | Q55: =IFERROR(Euro!P55*Sterling!$C55,"na") -> 28.11378 | R55: =IFERROR(Euro!Q55*Sterling!$C55,"na") -> 24.132 | S55: =IFERROR(Euro!R55*Sterling!$C55,"na") -> 50.53930286 | T55: =Euro!S55*Sterling!$C55 -> 43.23937286 | U55: =Euro!T55*Sterling!$C55 -> 56.31374571 | V55: =Euro!U55*Sterling!$C55 -> 43.19628 | W55: =Euro!V55*Sterling!$C55 -> 35.57746286
B56: 2011-12-11 | C56: 0.8560785714 | D56: =Euro!C56*Sterling!$C56 -> 36.38333929 | E56: =IFERROR(Euro!D56*Sterling!$C56,"na") -> 42.87241486 | F56: =Euro!E56*Sterling!$C56 -> 39.03718286 | G56: =Euro!F56*Sterling!$C56 -> 42.03345786 | H56: =IFERROR(Euro!G56*Sterling!$C56,"na") -> 35.70703721 | I56: =Euro!H56*Sterling!$C56 -> 32.36833079 | J56: =Euro!I56*Sterling!$C56 -> 28.59302429 | L56: =Euro!K56*Sterling!$C56 -> 51.97253007 | M56: =Euro!L56*Sterling!$C56 -> 43.14636 | N56: =Euro!M56*Sterling!$C56 -> 28.35332229 | O56: =IFERROR(Euro!N56*Sterling!$C56,"na") -> 68.48628571 | P56: =Euro!O56*Sterling!$C56 -> 29.96275 | Q56: =IFERROR(Euro!P56*Sterling!$C56,"na") -> 28.55878114 | R56: =IFERROR(Euro!Q56*Sterling!$C56,"na") -> 23.9702 | S56: =IFERROR(Euro!R56*Sterling!$C56,"na") -> 52.00677321 | T56: =Euro!S56*Sterling!$C56 -> 41.35715579 | U56: =Euro!T56*Sterling!$C56 -> 56.1501935 | V56: =Euro!U56*Sterling!$C56 -> 42.906658 | W56: =Euro!V56*Sterling!$C56 -> 36.08371179
B57: 2011-12-18 | C57: 0.8438357143 | D57: =Euro!C57*Sterling!$C57 -> 35.86301786 | E57: =IFERROR(Euro!D57*Sterling!$C57,"na") -> 42.25929257 | F57: =Euro!E57*Sterling!$C57 -> 38.47890857 | G57: =Euro!F57*Sterling!$C57 -> 42.86685429 | H57: =IFERROR(Euro!G57*Sterling!$C57,"na") -> 33.76186693 | I57: =Euro!H57*Sterling!$C57 -> 32.96866136 | J57: =Euro!I57*Sterling!$C57 -> 28.35288 | L57: =Euro!K57*Sterling!$C57 -> 52.46126636 | M57: =Euro!L57*Sterling!$C57 -> 38.14137429 | N57: =Euro!M57*Sterling!$C57 -> 29.416113 | O57: =IFERROR(Euro!N57*Sterling!$C57,"na") -> 67.50685714 | P57: =Euro!O57*Sterling!$C57 -> 31.22192143 | Q57: =IFERROR(Euro!P57*Sterling!$C57,"na") -> 29.40767464 | R57: =IFERROR(Euro!Q57*Sterling!$C57,"na") -> 23.6274 | S57: =IFERROR(Euro!R57*Sterling!$C57,"na") -> 51.78619779 | T57: =Euro!S57*Sterling!$C57 -> 41.63485414 | U57: =Euro!T57*Sterling!$C57 -> 56.81545864 | V57: =Euro!U57*Sterling!$C57 -> 44.03134757 | W57: =Euro!V57*Sterling!$C57 -> 36.49589464
B58: 2011-12-25 | C58: 0.83545 | D58: =Euro!C58*Sterling!$C58 -> 37.177525 | E58: =IFERROR(Euro!D58*Sterling!$C58,"na") -> 45.9246865 | F58: =Euro!E58*Sterling!$C58 -> 36.7514455 | G58: =Euro!F58*Sterling!$C58 -> 43.10922 | H58: =IFERROR(Euro!G58*Sterling!$C58,"na") -> 30.828105 | I58: =Euro!H58*Sterling!$C58 -> 34.019524 | J58: =Euro!I58*Sterling!$C58 -> 28.4053 | L58: =Euro!K58*Sterling!$C58 -> 53.3769005 | M58: =Euro!L58*Sterling!$C58 -> 37.76234 | N58: =Euro!M58*Sterling!$C58 -> 27.4612415 | O58: =IFERROR(Euro!N58*Sterling!$C58,"na") -> 66.836 | P58: =Euro!O58*Sterling!$C58 -> 32.164825 | Q58: =IFERROR(Euro!P58*Sterling!$C58,"na") -> 29.975946 | R58: =IFERROR(Euro!Q58*Sterling!$C58,"na") -> 23.3926 | S58: =IFERROR(Euro!R58*Sterling!$C58,"na") -> 52.7586675 | T58: =Euro!S58*Sterling!$C58 -> 41.805918 | U58: =Euro!T58*Sterling!$C58 -> 57.0862985 | V58: =Euro!U58*Sterling!$C58 -> 44.1535325 | W58: =Euro!V58*Sterling!$C58 -> 36.893472
B59: 2012-01-01 | C59: 0.8343571429 | D59: =Euro!C59*Sterling!$C59 -> 37.12889286 | E59: =IFERROR(Euro!D59*Sterling!$C59,"na") -> 41.67613929 | F59: =Euro!E59*Sterling!$C59 -> 35.91073143 | G59: =Euro!F59*Sterling!$C59 -> 43.55344286 | H59: =IFERROR(Euro!G59*Sterling!$C59,"na") -> 32.64005143 | I59: =Euro!H59*Sterling!$C59 -> 34.50066786 | J59: =Euro!I59*Sterling!$C59 -> 28.86875714 | L59: =Euro!K59*Sterling!$C59 -> 54.07468643 | M59: =Euro!L59*Sterling!$C59 -> 37.71294286 | N59: =Euro!M59*Sterling!$C59 -> 26.95807929 | O59: =IFERROR(Euro!N59*Sterling!$C59,"na") -> 66.74857143 | P59: =Euro!O59*Sterling!$C59 -> 32.12275 | Q59: =IFERROR(Euro!P59*Sterling!$C59,"na") -> 30.52912786 | R59: =IFERROR(Euro!Q59*Sterling!$C59,"na") -> 23.362 | S59: =IFERROR(Euro!R59*Sterling!$C59,"na") -> 51.47149214 | T59: =Euro!S59*Sterling!$C59 -> 42.35196857 | U59: =Euro!T59*Sterling!$C59 -> 54.45849071 | V59: =Euro!U59*Sterling!$C59 -> 44.49626643 | W59: =Euro!V59*Sterling!$C59 -> 37.07048786
B60: 2012-01-08 | C60: 0.8308842857 | D60: =Euro!C60*Sterling!$C60 -> 36.97435071 | E60: =IFERROR(Euro!D60*Sterling!$C60,"na") -> 39.99046067 | F60: =Euro!E60*Sterling!$C60 -> 35.76125966 | G60: =Euro!F60*Sterling!$C60 -> 44.203044 | H60: =IFERROR(Euro!G60*Sterling!$C60,"na") -> 33.98316729 | I60: =Euro!H60*Sterling!$C60 -> 35.0716257 | J60: =Euro!I60*Sterling!$C60 -> 29.24712686 | L60: =Euro!K60*Sterling!$C60 -> 54.34814113 | M60: =Euro!L60*Sterling!$C60 -> 37.55596971 | N60: =Euro!M60*Sterling!$C60 -> 26.172855 | O60: =IFERROR(Euro!N60*Sterling!$C60,"na") -> 66.47074286 | P60: =Euro!O60*Sterling!$C60 -> 32.40448714 | Q60: =IFERROR(Euro!P60*Sterling!$C60,"na") -> 30.51007097 | R60: =IFERROR(Euro!Q60*Sterling!$C60,"na") -> 23.26476 | S60: =IFERROR(Euro!R60*Sterling!$C60,"na") -> 54.88821591 | T60: =Euro!S60*Sterling!$C60 -> 41.80178841 | U60: =Euro!T60*Sterling!$C60 -> 59.53285907 | V60: =Euro!U60*Sterling!$C60 -> 44.59355961 | W60: =Euro!V60*Sterling!$C60 -> 37.41471939
B61: 2012-01-15 | C61: 0.8287785714 | D61: =Euro!C61*Sterling!$C61 -> 36.46625714 | E61: =IFERROR(Euro!D61*Sterling!$C61,"na") -> 48.37580521 | F61: =Euro!E61*Sterling!$C61 -> 34.65951986 | G61: =Euro!F61*Sterling!$C61 -> 44.50540929 | H61: =IFERROR(Euro!G61*Sterling!$C61,"na") -> 41.32289957 | I61: =Euro!H61*Sterling!$C61 -> 31.98256507 | J61: =Euro!I61*Sterling!$C61 -> 29.67027286 | L61: =Euro!K61*Sterling!$C61 -> 55.64419329 | M61: =Euro!L61*Sterling!$C61 -> 37.46079143 | N61: =Euro!M61*Sterling!$C61 -> 31.19522543 | O61: =IFERROR(Euro!N61*Sterling!$C61,"na") -> 66.30228571 | P61: =Euro!O61*Sterling!$C61 -> 32.32236429 | Q61: =IFERROR(Euro!P61*Sterling!$C61,"na") -> 30.42446136 | R61: =IFERROR(Euro!Q61*Sterling!$C61,"na") -> 23.2058 | S61: =IFERROR(Euro!R61*Sterling!$C61,"na") -> 54.74911243 | T61: =Euro!S61*Sterling!$C61 -> 41.21515836 | U61: =Euro!T61*Sterling!$C61 -> 57.38462829 | V61: =Euro!U61*Sterling!$C61 -> 45.16843214 | W61: =Euro!V61*Sterling!$C61 -> 37.10441664
B62: 2012-01-22 | C62: 0.8326214286 | D62: =Euro!C62*Sterling!$C62 -> 37.05165357 | E62: =IFERROR(Euro!D62*Sterling!$C62,"na") -> 48.94981379 | F62: =Euro!E62*Sterling!$C62 -> 34.037564 | G62: =Euro!F62*Sterling!$C62 -> 45.29460571 | H62: =IFERROR(Euro!G62*Sterling!$C62,"na") -> 44.12893571 | I62: =Euro!H62*Sterling!$C62 -> 32.13086093 | J62: =Euro!I62*Sterling!$C62 -> 29.64132286 | L62: =Euro!K62*Sterling!$C62 -> 56.72649793 | M62: =Euro!L62*Sterling!$C62 -> 37.63448857 | N62: =Euro!M62*Sterling!$C62 -> 47.53435736 | O62: =IFERROR(Euro!N62*Sterling!$C62,"na") -> 66.60971429 | P62: =Euro!O62*Sterling!$C62 -> 33.30485714 | Q62: =IFERROR(Euro!P62*Sterling!$C62,"na") -> 31.30656571 | R62: =IFERROR(Euro!Q62*Sterling!$C62,"na") -> 23.3134 | S62: =IFERROR(Euro!R62*Sterling!$C62,"na") -> 54.74485893 | T62: =Euro!S62*Sterling!$C62 -> 42.63021714 | U62: =Euro!T62*Sterling!$C62 -> 57.75062229 | V62: =Euro!U62*Sterling!$C62 -> 44.83666393 | W62: =Euro!V62*Sterling!$C62 -> 37.91757986
B63: 2012-01-29 | C63: 0.8355 | D63: =Euro!C63*Sterling!$C63 -> 38.85075 | E63: =IFERROR(Euro!D63*Sterling!$C63,"na") -> 49.49502 | F63: =Euro!E63*Sterling!$C63 -> 34.163595 | G63: =Euro!F63*Sterling!$C63 -> 47.70705 | H63: =IFERROR(Euro!G63*Sterling!$C63,"na") -> 32.9187 | I63: =Euro!H63*Sterling!$C63 -> 32.425755 | J63: =Euro!I63*Sterling!$C63 -> 29.9109 | L63: =Euro!K63*Sterling!$C63 -> 57.574305 | M63: =Euro!L63*Sterling!$C63 -> 39.85335 | N63: =Euro!M63*Sterling!$C63 -> 34.982385 | O63: =IFERROR(Euro!N63*Sterling!$C63,"na") -> 66.84 | P63: =Euro!O63*Sterling!$C63 -> 35.9265 | Q63: =IFERROR(Euro!P63*Sterling!$C63,"na") -> 32.609565 | R63: =IFERROR(Euro!Q63*Sterling!$C63,"na") -> 22.5585 | S63: =IFERROR(Euro!R63*Sterling!$C63,"na") -> 54.967545 | T63: =Euro!S63*Sterling!$C63 -> 43.805265 | U63: =Euro!T63*Sterling!$C63 -> 57.774825 | V63: =Euro!U63*Sterling!$C63 -> 44.607345 | W63: =Euro!V63*Sterling!$C63 -> 38.66694
B64: 2012-02-05 | C64: 0.833 | D64: =Euro!C64*Sterling!$C64 -> 39.5675 | E64: =IFERROR(Euro!D64*Sterling!$C64,"na") -> 49.6468 | F64: =Euro!E64*Sterling!$C64 -> 34.06137 | G64: =Euro!F64*Sterling!$C64 -> 48.9804 | H64: =IFERROR(Euro!G64*Sterling!$C64,"na") -> 32.55364 | I64: =Euro!H64*Sterling!$C64 -> 33.41163 | J64: =Euro!I64*Sterling!$C64 -> 30.2379 | L64: =Euro!K64*Sterling!$C64 -> 58.13507 | M64: =Euro!L64*Sterling!$C64 -> 33.32 | N64: =Euro!M64*Sterling!$C64 -> 35.50246 | O64: =IFERROR(Euro!N64*Sterling!$C64,"na") -> 66.64 | P64: =Euro!O64*Sterling!$C64 -> 37.9015 | Q64: =IFERROR(Euro!P64*Sterling!$C64,"na") -> 33.37831 | R64: =IFERROR(Euro!Q64*Sterling!$C64,"na") -> 22.491 | S64: =IFERROR(Euro!R64*Sterling!$C64,"na") -> 51.66266 | T64: =Euro!S64*Sterling!$C64 -> 44.88204 | U64: =Euro!T64*Sterling!$C64 -> 57.15213 | V64: =Euro!U64*Sterling!$C64 -> 44.59049 | W64: =Euro!V64*Sterling!$C64 -> 39.47587
B65: 2012-02-12 | C65: 0.8335285714 | D65: =Euro!C65*Sterling!$C65 -> 40.42613571 | E65: =IFERROR(Euro!D65*Sterling!$C65,"na") -> 49.886685 | F65: =Euro!E65*Sterling!$C65 -> 34.64978271 | G65: =Euro!F65*Sterling!$C65 -> 49.76165571 | H65: =IFERROR(Euro!G65*Sterling!$C65,"na") -> 44.65212557 | I65: =Euro!H65*Sterling!$C65 -> 34.483077 | J65: =Euro!I65*Sterling!$C65 -> 31.00726286 | L65: =Euro!K65*Sterling!$C65 -> 58.60539386 | M65: =Euro!L65*Sterling!$C65 -> 34.75814143 | N65: =Euro!M65*Sterling!$C65 -> 41.38469357 | O65: =IFERROR(Euro!N65*Sterling!$C65,"na") -> 66.68228571 | P65: =Euro!O65*Sterling!$C65 -> 39.17584286 | Q65: =IFERROR(Euro!P65*Sterling!$C65,"na") -> 33.56619557 | R65: =IFERROR(Euro!Q65*Sterling!$C65,"na") -> 22.50527143 | S65: =IFERROR(Euro!R65*Sterling!$C65,"na") -> 48.67806857 | T65: =Euro!S65*Sterling!$C65 -> 43.30180929 | U65: =Euro!T65*Sterling!$C65 -> 57.21340114 | V65: =Euro!U65*Sterling!$C65 -> 44.54376686 | W65: =Euro!V65*Sterling!$C65 -> 40.28443586
B66: 2012-02-19 | C66: 0.8340357143 | D66: =Euro!C66*Sterling!$C66 -> 40.86775 | E66: =IFERROR(Euro!D66*Sterling!$C66,"na") -> 49.9170375 | F66: =Euro!E66*Sterling!$C66 -> 35.45485821 | G66: =Euro!F66*Sterling!$C66 -> 50.62596786 | H66: =IFERROR(Euro!G66*Sterling!$C66,"na") -> 34.22882571 | I66: =Euro!H66*Sterling!$C66 -> 39.04121179 | J66: =Euro!I66*Sterling!$C66 -> 31.69335714 | L66: =Euro!K66*Sterling!$C66 -> 59.24155679 | M66: =Euro!L66*Sterling!$C66 -> 38.78266071 | N66: =Euro!M66*Sterling!$C66 -> 44.65427214 | O66: =IFERROR(Euro!N66*Sterling!$C66,"na") -> 66.72285714 | P66: =Euro!O66*Sterling!$C66 -> 39.61669643 | Q66: =IFERROR(Euro!P66*Sterling!$C66,"na") -> 33.29470571 | R66: =IFERROR(Euro!Q66*Sterling!$C66,"na") -> 25.02107143 | S66: =IFERROR(Euro!R66*Sterling!$C66,"na") -> 57.30659393 | T66: =Euro!S66*Sterling!$C66 -> 42.12714393 | U66: =Euro!T66*Sterling!$C66 -> 61.69362179 | V66: =Euro!U66*Sterling!$C66 -> 44.53750714 | W66: =Euro!V66*Sterling!$C66 -> 41.69035943
B67: 2012-02-26 | C67: 0.8415 | D67: =Euro!C67*Sterling!$C67 -> 41.65425 | E67: =IFERROR(Euro!D67*Sterling!$C67,"na") -> 56.439405 | F67: =Euro!E67*Sterling!$C67 -> 35.772165 | G67: =Euro!F67*Sterling!$C67 -> 51.75225 | H67: =IFERROR(Euro!G67*Sterling!$C67,"na") -> 29.9574 | I67: =Euro!H67*Sterling!$C67 -> 37.04283 | J67: =Euro!I67*Sterling!$C67 -> 32.6502 | L67: =Euro!K67*Sterling!$C67 -> 60.428115 | M67: =Euro!L67*Sterling!$C67 -> 38.28825 | N67: =Euro!M67*Sterling!$C67 -> 39.340125 | O67: =IFERROR(Euro!N67*Sterling!$C67,"na") -> 67.32 | P67: =Euro!O67*Sterling!$C67 -> 39.97125 | Q67: =IFERROR(Euro!P67*Sterling!$C67,"na") -> 34.610895 | R67: =IFERROR(Euro!Q67*Sterling!$C67,"na") -> 25.245 | S67: =IFERROR(Euro!R67*Sterling!$C67,"na") -> 53.022915 | T67: =Euro!S67*Sterling!$C67 -> 45.802845 | U67: =Euro!T67*Sterling!$C67 -> 58.088745 | V67: =Euro!U67*Sterling!$C67 -> 44.64999 | W67: =Euro!V67*Sterling!$C67 -> 41.88254895
B68: 2012-03-04 | C68: 0.84075 | D68: =Euro!C68*Sterling!$C68 -> 41.617125 | E68: =IFERROR(Euro!D68*Sterling!$C68,"na") -> 56.3891025 | F68: =Euro!E68*Sterling!$C68 -> 35.731875 | G68: =Euro!F68*Sterling!$C68 -> 52.210575 | H68: =IFERROR(Euro!G68*Sterling!$C68,"na") -> 33.175995 | I68: =Euro!H68*Sterling!$C68 -> 38.1784575 | J68: =Euro!I68*Sterling!$C68 -> 33.2937 | L68: =Euro!K68*Sterling!$C68 -> 60.752595 | M68: =Euro!L68*Sterling!$C68 -> 34.554825 | N68: =Euro!M68*Sterling!$C68 -> 49.419285 | O68: =IFERROR(Euro!N68*Sterling!$C68,"na") -> 67.26 | P68: =Euro!O68*Sterling!$C68 -> 39.935625 | Q68: =IFERROR(Euro!P68*Sterling!$C68,"na") -> 35.00883 | R68: =IFERROR(Euro!Q68*Sterling!$C68,"na") -> 25.2225 | S68: =IFERROR(Euro!R68*Sterling!$C68,"na") -> 56.0696175 | T68: =Euro!S68*Sterling!$C68 -> 46.4514375 | U68: =Euro!T68*Sterling!$C68 -> 60.2901825 | V68: =Euro!U68*Sterling!$C68 -> 44.6690475 | W68: =Euro!V68*Sterling!$C68 -> 42.60231585
B69: 2012-03-11 | C69: 0.83505 | D69: =Euro!C69*Sterling!$C69 -> 41.334975 | E69: =IFERROR(Euro!D69*Sterling!$C69,"na") -> 56.5579365 | F69: =Euro!E69*Sterling!$C69 -> 35.489625 | G69: =Euro!F69*Sterling!$C69 -> 51.94011 | H69: =IFERROR(Euro!G69*Sterling!$C69,"na") -> 37.443642 | I69: =Euro!H69*Sterling!$C69 -> 39.113742 | J69: =Euro!I69*Sterling!$C69 -> 33.56901 | L69: =Euro!K69*Sterling!$C69 -> 60.591228 | M69: =Euro!L69*Sterling!$C69 -> 36.658695 | N69: =Euro!M69*Sterling!$C69 -> 51.3973275 | O69: =IFERROR(Euro!N69*Sterling!$C69,"na") -> 66.804 | P69: =Euro!O69*Sterling!$C69 -> 39.664875 | Q69: =IFERROR(Euro!P69*Sterling!$C69,"na") -> 34.637874 | R69: =IFERROR(Euro!Q69*Sterling!$C69,"na") -> 25.88655 | S69: =IFERROR(Euro!R69*Sterling!$C69,"na") -> 56.4410295 | T69: =Euro!S69*Sterling!$C69 -> 45.7690905 | U69: =Euro!T69*Sterling!$C69 -> 58.670613 | V69: =Euro!U69*Sterling!$C69 -> 45.0175455 | W69: =Euro!V69*Sterling!$C69 -> 42.61301902
B70: 2012-03-18 | C70: 0.8335357143 | D70: =Euro!C70*Sterling!$C70 -> 41.26001786 | E70: =IFERROR(Euro!D70*Sterling!$C70,"na") -> 56.90548321 | F70: =Euro!E70*Sterling!$C70 -> 35.42526786 | G70: =Euro!F70*Sterling!$C70 -> 52.01262857 | H70: =IFERROR(Euro!G70*Sterling!$C70,"na") -> 31.95775929 | I70: =Euro!H70*Sterling!$C70 -> 39.04281286 | J70: =Euro!I70*Sterling!$C70 -> 33.67484286 | L70: =Euro!K70*Sterling!$C70 -> 60.6814 | M70: =Euro!L70*Sterling!$C70 -> 40.34312857 | N70: =Euro!M70*Sterling!$C70 -> 43.7022775 | O70: =IFERROR(Euro!N70*Sterling!$C70,"na") -> 66.68285714 | P70: =Euro!O70*Sterling!$C70 -> 39.59294643 | Q70: =IFERROR(Euro!P70*Sterling!$C70,"na") -> 35.99207214 | R70: =IFERROR(Euro!Q70*Sterling!$C70,"na") -> 25.83960714 | S70: =IFERROR(Euro!R70*Sterling!$C70,"na") -> 56.71377 | T70: =Euro!S70*Sterling!$C70 -> 44.96091643 | U70: =Euro!T70*Sterling!$C70 -> 60.23129071 | V70: =Euro!U70*Sterling!$C70 -> 45.5693975 | W70: =Euro!V70*Sterling!$C70 -> 42.59917634
B71: 2012-03-25 | C71: 0.833 | D71: =Euro!C71*Sterling!$C71 -> 41.2335 | E71: =IFERROR(Euro!D71*Sterling!$C71,"na") -> 55.96927 | F71: =Euro!E71*Sterling!$C71 -> 35.4025 | G71: =Euro!F71*Sterling!$C71 -> 51.8959 | H71: =IFERROR(Euro!G71*Sterling!$C71,"na") -> 35.3192 | I71: =Euro!H71*Sterling!$C71 -> 40.21724 | J71: =Euro!I71*Sterling!$C71 -> 33.6532 | L71: =Euro!K71*Sterling!$C71 -> 60.78401 | M71: =Euro!L71*Sterling!$C71 -> 39.3176 | N71: =Euro!M71*Sterling!$C71 -> 52.87884 | O71: =IFERROR(Euro!N71*Sterling!$C71,"na") -> 66.64 | P71: =Euro!O71*Sterling!$C71 -> 39.5675 | Q71: =IFERROR(Euro!P71*Sterling!$C71,"na") -> 35.41083 | R71: =IFERROR(Euro!Q71*Sterling!$C71,"na") -> 25.823 | S71: =IFERROR(Euro!R71*Sterling!$C71,"na") -> 61.43375 | T71: =Euro!S71*Sterling!$C71 -> 44.40723 | U71: =Euro!T71*Sterling!$C71 -> 58.76815 | V71: =Euro!U71*Sterling!$C71 -> 45.92329 | W71: =Euro!V71*Sterling!$C71 -> 42.9763859
B72: 2012-04-01 | C72: 0.8357142857 | D72: =Euro!C72*Sterling!$C72 -> 41.36785714 | E72: =Euro!D72*Sterling!$C72 -> 45.60492857 | F72: =Euro!E72*Sterling!$C72 -> 35.5095 | G72: =Euro!F72*Sterling!$C72 -> 51.98142857 | H72: =Euro!G72*Sterling!$C72 -> 32.42571429 | I72: =Euro!H72*Sterling!$C72 -> 39.546 | J72: =Euro!I72*Sterling!$C72 -> 34.26428571 | K72: =Euro!J72*Sterling!$C72 -> 0 | L72: =Euro!K72*Sterling!$C72 -> 61.0155 | M72: =Euro!L72*Sterling!$C72 -> 37.52357143 | N72: =Euro!M72*Sterling!$C72 -> 55.82571429 | O72: =Euro!N72*Sterling!$C72 -> 66.85714286 | P72: =Euro!O72*Sterling!$C72 -> 39.69642857 | Q72: =Euro!P72*Sterling!$C72 -> 36.42042857 | R72: =Euro!Q72*Sterling!$C72 -> 25.90714286 | S72: =Euro!R72*Sterling!$C72 -> 55.47471429 | T72: =Euro!S72*Sterling!$C72 -> 46.683 | U72: =Euro!T72*Sterling!$C72 -> 59.8455 | V72: =Euro!U72*Sterling!$C72 -> 45.94757143 | W72: =Euro!V72*Sterling!$C72 -> 43.058925
B73: 2012-04-08 | C73: 0.8283714286 | D73: =Euro!C73*Sterling!$C73 -> 41.41857143 | E73: =Euro!D73*Sterling!$C73 -> 40.42452571 | F73: =Euro!E73*Sterling!$C73 -> 35.18093457 | G73: =Euro!F73*Sterling!$C73 -> 51.77321429 | H73: =Euro!G73*Sterling!$C73 -> 33.09343857 | I73: =Euro!H73*Sterling!$C73 -> 38.908606 | J73: =Euro!I73*Sterling!$C73 -> 33.96322857 | K73: =Euro!J73*Sterling!$C73 -> 0 | L73: =Euro!K73*Sterling!$C73 -> 60.479398 | M73: =Euro!L73*Sterling!$C73 -> 38.60210857 | N73: =Euro!M73*Sterling!$C73 -> 39.488466 | O73: =Euro!N73*Sterling!$C73 -> 66.26971429 | P73: =Euro!O73*Sterling!$C73 -> 39.34764286 | Q73: =Euro!P73*Sterling!$C73 -> 35.56198543 | R73: =Euro!Q73*Sterling!$C73 -> 25.67951429 | S73: =Euro!R73*Sterling!$C73 -> 58.60727857 | T73: =Euro!S73*Sterling!$C73 -> 45.576996 | U73: =Euro!T73*Sterling!$C73 -> 61.26635086 | V73: =Euro!U73*Sterling!$C73 -> 45.93319571 | W73: =Euro!V73*Sterling!$C73 -> 42.30575723
B74: 2012-04-15 | C74: 0.8250785714 | D74: =Euro!C74*Sterling!$C74 -> 41.25392857 | E74: =Euro!D74*Sterling!$C74 -> 49.98325986 | F74: =Euro!E74*Sterling!$C74 -> 35.37936914 | G74: =Euro!F74*Sterling!$C74 -> 51.48490286 | H74: =Euro!G74*Sterling!$C74 -> 36.62523779 | I74: =Euro!H74*Sterling!$C74 -> 38.7539405 | J74: =Euro!I74*Sterling!$C74 -> 33.66320571 | K74: =Euro!J74*Sterling!$C74 -> 0 | L74: =Euro!K74*Sterling!$C74 -> 60.2389865 | M74: =Euro!L74*Sterling!$C74 -> 38.44866143 | N74: =Euro!M74*Sterling!$C74 -> 40.32158979 | O74: =Euro!N74*Sterling!$C74 -> 66.00628571 | P74: =Euro!O74*Sterling!$C74 -> 39.19123214 | Q74: =Euro!P74*Sterling!$C74 -> 36.154943 | R74: =Euro!Q74*Sterling!$C74 -> 25.57743571 | S74: =Euro!R74*Sterling!$C74 -> 52.82978093 | T74: =Euro!S74*Sterling!$C74 -> 43.28362186 | U74: =Euro!T74*Sterling!$C74 -> 62.86273636 | V74: =Euro!U74*Sterling!$C74 -> 45.92387329 | W74: =Euro!V74*Sterling!$C74 -> 42.3211677
B75: 2012-04-22 | C75: 0.8206642857 | D75: =Euro!C75*Sterling!$C75 -> 41.03321429 | E75: =Euro!D75*Sterling!$C75 -> 47.49184221 | F75: =Euro!E75*Sterling!$C75 -> 35.19008457 | G75: =Euro!F75*Sterling!$C75 -> 51.20945143 | H75: =Euro!G75*Sterling!$C75 -> 31.00469671 | I75: =Euro!H75*Sterling!$C75 -> 38.489155 | J75: =Euro!I75*Sterling!$C75 -> 32.99070429 | K75: =Euro!J75*Sterling!$C75 -> 0 | L75: =Euro!K75*Sterling!$C75 -> 59.9166995 | M75: =Euro!L75*Sterling!$C75 -> 38.16088929 | N75: =Euro!M75*Sterling!$C75 -> 56.5848025 | O75: =Euro!N75*Sterling!$C75 -> 65.65314286 | P75: =Euro!O75*Sterling!$C75 -> 38.98155357 | Q75: =Euro!P75*Sterling!$C75 -> 36.12564186 | R75: =Euro!Q75*Sterling!$C75 -> 26.26125714 | S75: =Euro!R75*Sterling!$C75 -> 55.75593157 | T75: =Euro!S75*Sterling!$C75 -> 45.68638079 | U75: =Euro!T75*Sterling!$C75 -> 61.04921621 | V75: =Euro!U75*Sterling!$C75 -> 45.9572 | W75: =Euro!V75*Sterling!$C75 -> 42.43228276
B76: 2012-04-29 | C76: 0.8167357143 | D76: =Euro!C76*Sterling!$C76 -> 40.42841786 | E76: =Euro!D76*Sterling!$C76 -> 47.14508902 | F76: =Euro!E76*Sterling!$C76 -> 35.02211747 | G76: =Euro!F76*Sterling!$C76 -> 50.882635 | H76: =Euro!G76*Sterling!$C76 -> 31.19930429 | I76: =Euro!H76*Sterling!$C76 -> 38.304905 | J76: =Euro!I76*Sterling!$C76 -> 32.50608143 | K76: =Euro!J76*Sterling!$C76 -> 0 | L76: =Euro!K76*Sterling!$C76 -> 59.67071129 | M76: =Euro!L76*Sterling!$C76 -> 36.99812786 | N76: =Euro!M76*Sterling!$C76 -> 41.97016987 | O76: =Euro!N76*Sterling!$C76 -> 65.33885714 | P76: =Euro!O76*Sterling!$C76 -> 38.79494643 | Q76: =Euro!P76*Sterling!$C76 -> 36.25906371 | R76: =Euro!Q76*Sterling!$C76 -> 26.13554286 | S76: =Euro!R76*Sterling!$C76 -> 52.72845771 | T76: =Euro!S76*Sterling!$C76 -> 42.29874264 | U76: =Euro!T76*Sterling!$C76 -> 60.16892007 | V76: =Euro!U76*Sterling!$C76 -> 45.3499856 | W76: =Euro!V76*Sterling!$C76 -> 41.79685855
B77: 2012-05-06 | C77: 0.8126285714 | D77: =Euro!C77*Sterling!$C77 -> 40.22511429 | E77: =Euro!D77*Sterling!$C77 -> 42.90280669 | F77: =Euro!E77*Sterling!$C77 -> 35.723152 | G77: =Euro!F77*Sterling!$C77 -> 50.62676 | H77: =Euro!G77*Sterling!$C77 -> 31.36746286 | I77: =Euro!H77*Sterling!$C77 -> 37.63282914 | J77: =Euro!I77*Sterling!$C77 -> 31.04241143 | K77: =Euro!J77*Sterling!$C77 -> 0 | L77: =Euro!K77*Sterling!$C77 -> 59.31375943 | M77: =Euro!L77*Sterling!$C77 -> 40.30637714 | N77: =Euro!M77*Sterling!$C77 -> 44.66629195 | O77: =Euro!N77*Sterling!$C77 -> 65.01028571 | P77: =Euro!O77*Sterling!$C77 -> 38.59985714 | Q77: =Euro!P77*Sterling!$C77 -> 36.35448314 | R77: =Euro!Q77*Sterling!$C77 -> 26.00411429 | S77: =Euro!R77*Sterling!$C77 -> 37.44592457 | T77: =Euro!S77*Sterling!$C77 -> 45.47469486 | U77: =Euro!T77*Sterling!$C77 -> 60.83865694 | V77: =Euro!U77*Sterling!$C77 -> 45.38002363 | W77: =Euro!V77*Sterling!$C77 -> 41.45104575
B78: 2012-05-13 | C78: 0.80546 | D78: =Euro!C78*Sterling!$C78 -> 38.25935 | E78: =Euro!D78*Sterling!$C78 -> 50.87752527 | F78: =Euro!E78*Sterling!$C78 -> 35.4241308 | G78: =Euro!F78*Sterling!$C78 -> 47.92487 | H78: =Euro!G78*Sterling!$C78 -> 35.5530044 | I78: =Euro!H78*Sterling!$C78 -> 36.5839932 | J78: =Euro!I78*Sterling!$C78 -> 29.479836 | K78: =Euro!J78*Sterling!$C78 -> 0 | L78: =Euro!K78*Sterling!$C78 -> 58.5327782 | M78: =Euro!L78*Sterling!$C78 -> 31.81567 | N78: =Euro!M78*Sterling!$C78 -> 41.93853019 | O78: =Euro!N78*Sterling!$C78 -> 64.4368 | P78: =Euro!O78*Sterling!$C78 -> 35.84297 | Q78: =Euro!P78*Sterling!$C78 -> 35.37636702 | R78: =Euro!Q78*Sterling!$C78 -> 24.1638 | S78: =Euro!R78*Sterling!$C78 -> 55.6895044 | T78: =Euro!S78*Sterling!$C78 -> 45.3554526 | U78: =Euro!T78*Sterling!$C78 -> 58.48275913 | V78: =Euro!U78*Sterling!$C78 -> 45.2426882 | W78: =Euro!V78*Sterling!$C78 -> 40.1360718
B79: 2012-05-20 | C79: 0.8016928571 | D79: =Euro!C79*Sterling!$C79 -> 37.67956429 | E79: =Euro!D79*Sterling!$C79 -> 45.38615755 | F79: =Euro!E79*Sterling!$C79 -> 34.72901389 | G79: =Euro!F79*Sterling!$C79 -> 47.29987857 | H79: =Euro!G79*Sterling!$C79 -> 30.11960064 | I79: =Euro!H79*Sterling!$C79 -> 34.63313143 | J79: =Euro!I79*Sterling!$C79 -> 28.37992714 | K79: =Euro!J79*Sterling!$C79 -> 0 | L79: =Euro!K79*Sterling!$C79 -> 57.75395343 | M79: =Euro!L79*Sterling!$C79 -> 33.43059214 | N79: =Euro!M79*Sterling!$C79 -> 46.46836274 | O79: =Euro!N79*Sterling!$C79 -> 64.13542857 | P79: =Euro!O79*Sterling!$C79 -> 33.27025357 | Q79: =Euro!P79*Sterling!$C79 -> 34.15740689 | R79: =Euro!Q79*Sterling!$C79 -> 24.05078571 | S79: =Euro!R79*Sterling!$C79 -> 52.44674671 | T79: =Euro!S79*Sterling!$C79 -> 42.99478793 | U79: =Euro!T79*Sterling!$C79 -> 58.93011702 | V79: =Euro!U79*Sterling!$C79 -> 44.29032359 | W79: =Euro!V79*Sterling!$C79 -> 38.98143332
B80: 2012-05-27 | C80: 0.8037642857 | D80: =Euro!C80*Sterling!$C80 -> 37.77692143 | E80: =Euro!D80*Sterling!$C80 -> 48.12635112 | F80: =Euro!E80*Sterling!$C80 -> 34.82565972 | G80: =Euro!F80*Sterling!$C80 -> 47.42209286 | H80: =Euro!G80*Sterling!$C80 -> 29.90003143 | I80: =Euro!H80*Sterling!$C80 -> 34.14390686 | J80: =Euro!I80*Sterling!$C80 -> 27.64949143 | K80: =Euro!J80*Sterling!$C80 -> 0 | L80: =Euro!K80*Sterling!$C80 -> 57.03511371 | M80: =Euro!L80*Sterling!$C80 -> 35.04412286 | N80: =Euro!M80*Sterling!$C80 -> 41.62478219 | O80: =Euro!N80*Sterling!$C80 -> 64.30114286 | P80: =Euro!O80*Sterling!$C80 -> 32.55245357 | Q80: =Euro!P80*Sterling!$C80 -> 33.42710987 | R80: =Euro!Q80*Sterling!$C80 -> 24.11292857 | S80: =Euro!R80*Sterling!$C80 -> 52.24467857 | T80: =Euro!S80*Sterling!$C80 -> 45.89494071 | U80: =Euro!T80*Sterling!$C80 -> 59.4367614 | V80: =Euro!U80*Sterling!$C80 -> 44.20703571 | W80: =Euro!V80*Sterling!$C80 -> 38.61564946
B81: 2012-06-03 | C81: 0.8010642857 | D81: =Euro!C81*Sterling!$C81 -> 37.24948929 | E81: =Euro!D81*Sterling!$C81 -> 49.32409148 | F81: =Euro!E81*Sterling!$C81 -> 35.57526493 | G81: =Euro!F81*Sterling!$C81 -> 47.02247357 | H81: =Euro!G81*Sterling!$C81 -> 34.06926407 | I81: =Euro!H81*Sterling!$C81 -> 33.74082771 | J81: =Euro!I81*Sterling!$C81 -> 27.87703714 | K81: =Euro!J81*Sterling!$C81 -> 0 | L81: =Euro!K81*Sterling!$C81 -> 55.82617007 | M81: =Euro!L81*Sterling!$C81 -> 35.80757357 | N81: =Euro!M81*Sterling!$C81 -> 40.2265646 | O81: =Euro!N81*Sterling!$C81 -> 64.08514286 | P81: =Euro!O81*Sterling!$C81 -> 32.44310357 | Q81: =Euro!P81*Sterling!$C81 -> 33.14291333 | R81: =Euro!Q81*Sterling!$C81 -> 24.03192857 | S81: =Euro!R81*Sterling!$C81 -> 54.82483971 | T81: =Euro!S81*Sterling!$C81 -> 44.30686564 | U81: =Euro!T81*Sterling!$C81 -> 59.93675135 | V81: =Euro!U81*Sterling!$C81 -> 44.06654636 | W81: =Euro!V81*Sterling!$C81 -> 38.40302186
B82: 2012-06-10 | C82: 0.8077571429 | D82: =Euro!C82*Sterling!$C82 -> 37.56070714 | E82: =Euro!D82*Sterling!$C82 -> 50.32585482 | F82: =Euro!E82*Sterling!$C82 -> 36.62863618 | G82: =Euro!F82*Sterling!$C82 -> 46.12293286 | H82: =Euro!G82*Sterling!$C82 -> 30.85632286 | I82: =Euro!H82*Sterling!$C82 -> 34.18428229 | J82: =Euro!I82*Sterling!$C82 -> 28.2715 | K82: =Euro!J82*Sterling!$C82 -> 0 | L82: =Euro!K82*Sterling!$C82 -> 55.60600171 | M82: =Euro!L82*Sterling!$C82 -> 36.10674429 | N82: =Euro!M82*Sterling!$C82 -> 36.38453197 | O82: =Euro!N82*Sterling!$C82 -> 64.62057143 | P82: =Euro!O82*Sterling!$C82 -> 32.71416429 | Q82: =Euro!P82*Sterling!$C82 -> 33.28807574 | R82: =Euro!Q82*Sterling!$C82 -> 24.23271429 | S82: =Euro!R82*Sterling!$C82 -> 50.05671014 | T82: =Euro!S82*Sterling!$C82 -> 45.00015043 | U82: =Euro!T82*Sterling!$C82 -> 62.29099983 | V82: =Euro!U82*Sterling!$C82 -> 43.311938 | W82: =Euro!V82*Sterling!$C82 -> 38.38696192
B83: 2012-06-17 | C83: 0.8084 | D83: =Euro!C83*Sterling!$C83 -> 36.7822 | E83: =Euro!D83*Sterling!$C83 -> 57.07522268 | F83: =Euro!E83*Sterling!$C83 -> 36.54849156 | G83: =Euro!F83*Sterling!$C83 -> 45.6746 | H83: =Euro!G83*Sterling!$C83 -> 40.072388 | I83: =Euro!H83*Sterling!$C83 -> 34.486344 | J83: =Euro!I83*Sterling!$C83 -> 27.64728 | K83: =Euro!J83*Sterling!$C83 -> 0 | L83: =Euro!K83*Sterling!$C83 -> 54.567 | M83: =Euro!L83*Sterling!$C83 -> 33.30608 | N83: =Euro!M83*Sterling!$C83 -> 41.68934968 | O83: =Euro!N83*Sterling!$C83 -> 64.672 | P83: =Euro!O83*Sterling!$C83 -> 31.9318 | Q83: =Euro!P83*Sterling!$C83 -> 33.05539516 | R83: =Euro!Q83*Sterling!$C83 -> 24.252 | S83: =Euro!R83*Sterling!$C83 -> 55.448156 | T83: =Euro!S83*Sterling!$C83 -> 47.25098 | U83: =Euro!T83*Sterling!$C83 -> 62.99319572 | V83: =Euro!U83*Sterling!$C83 -> 43.152392 | W83: =Euro!V83*Sterling!$C83 -> 38.366664
B84: 2012-06-24 | C84: 0.80635 | D84: =Euro!C84*Sterling!$C84 -> 35.076225 | E84: =Euro!D84*Sterling!$C84 -> 59.03707652 | F84: =Euro!E84*Sterling!$C84 -> 36.44943905 | G84: =Euro!F84*Sterling!$C84 -> 43.05909 | H84: =Euro!G84*Sterling!$C84 -> 29.4398385 | I84: =Euro!H84*Sterling!$C84 -> 34.398891 | J84: =Euro!I84*Sterling!$C84 -> 26.93209 | K84: =Euro!J84*Sterling!$C84 -> 0 | L84: =Euro!K84*Sterling!$C84 -> 53.5497035 | M84: =Euro!L84*Sterling!$C84 -> 36.44702 | N84: =Euro!M84*Sterling!$C84 -> 43.18415489 | O84: =Euro!N84*Sterling!$C84 -> 64.508 | P84: =Euro!O84*Sterling!$C84 -> 30.6413 | Q84: =Euro!P84*Sterling!$C84 -> 33.51367997 | R84: =Euro!Q84*Sterling!$C84 -> 24.1905 | S84: =Euro!R84*Sterling!$C84 -> 54.009323 | T84: =Euro!S84*Sterling!$C84 -> 46.058712 | U84: =Euro!T84*Sterling!$C84 -> 61.83591737 | V84: =Euro!U84*Sterling!$C84 -> 43.0671535 | W84: =Euro!V84*Sterling!$C84 -> 37.5517195
B85: 2012-07-01 | C85: 0.8027142857 | D85: =Euro!C85*Sterling!$C85 -> 34.11535714 | E85: =Euro!D85*Sterling!$C85 -> 46.7427753 | F85: =Euro!E85*Sterling!$C85 -> 36.60714283 | G85: =Euro!F85*Sterling!$C85 -> 41.90168571 | H85: =Euro!G85*Sterling!$C85 -> 30.88041857 | I85: =Euro!H85*Sterling!$C85 -> 34.09127571 | J85: =Euro!I85*Sterling!$C85 -> 26.32902857 | K85: =Euro!J85*Sterling!$C85 -> 0 | L85: =Euro!K85*Sterling!$C85 -> 52.10418429 | M85: =Euro!L85*Sterling!$C85 -> 33.87454286 | N85: =Euro!M85*Sterling!$C85 -> 44.10369154 | O85: =Euro!N85*Sterling!$C85 -> 64.21714286 | P85: =Euro!O85*Sterling!$C85 -> 27.69364286 | Q85: =Euro!P85*Sterling!$C85 -> 32.7065133 | R85: =Euro!Q85*Sterling!$C85 -> 24.08142857 | S85: =Euro!R85*Sterling!$C85 -> 39.28483714 | T85: =Euro!S85*Sterling!$C85 -> 46.40491286 | U85: =Euro!T85*Sterling!$C85 -> 62.58490363 | V85: =Euro!U85*Sterling!$C85 -> 42.26001737 | W85: =Euro!V85*Sterling!$C85 -> 36.49139143
B86: 2012-07-08 | C86: 0.8011785714 | D86: =Euro!C86*Sterling!$C86 -> 33.24891071 | E86: =Euro!D86*Sterling!$C86 -> 48.45095364 | F86: =Euro!E86*Sterling!$C86 -> 36.52084388 | G86: =Euro!F86*Sterling!$C86 -> 40.940225 | H86: =Euro!G86*Sterling!$C86 -> 31.24596429 | I86: =Euro!H86*Sterling!$C86 -> 33.7055825 | J86: =Euro!I86*Sterling!$C86 -> 25.79795 | K86: =Euro!J86*Sterling!$C86 -> 0 | L86: =Euro!K86*Sterling!$C86 -> 50.96296893 | M86: =Euro!L86*Sterling!$C86 -> 37.575275 | N86: =Euro!M86*Sterling!$C86 -> 38.14010589 | O86: =Euro!N86*Sterling!$C86 -> 64.09428571 | P86: =Euro!O86*Sterling!$C86 -> 26.03830357 | Q86: =Euro!P86*Sterling!$C86 -> 33.05710856 | R86: =Euro!Q86*Sterling!$C86 -> 24.03535714 | S86: =Euro!R86*Sterling!$C86 -> 53.02199786 | T86: =Euro!S86*Sterling!$C86 -> 44.61763464 | U86: =Euro!T86*Sterling!$C86 -> 64.42300928 | V86: =Euro!U86*Sterling!$C86 -> 42.31825214 | W86: =Euro!V86*Sterling!$C86 -> 36.02098857
B87: 2012-07-15 | C87: 0.7905642857 | D87: =Euro!C87*Sterling!$C87 -> 31.62257143 | E87: =Euro!D87*Sterling!$C87 -> 48.54341412 | F87: =Euro!E87*Sterling!$C87 -> 36.02980921 | G87: =Euro!F87*Sterling!$C87 -> 38.42142429 | H87: =Euro!G87*Sterling!$C87 -> 38.26331143 | I87: =Euro!H87*Sterling!$C87 -> 32.99024764 | J87: =Euro!I87*Sterling!$C87 -> 24.82371857 | K87: =Euro!J87*Sterling!$C87 -> 0 | L87: =Euro!K87*Sterling!$C87 -> 49.85298386 | M87: =Euro!L87*Sterling!$C87 -> 34.46860286 | N87: =Euro!M87*Sterling!$C87 -> 35.60432751 | O87: =Euro!N87*Sterling!$C87 -> 63.24514286 | P87: =Euro!O87*Sterling!$C87 -> 23.71692857 | Q87: =Euro!P87*Sterling!$C87 -> 32.94724095 | R87: =Euro!Q87*Sterling!$C87 -> 23.71692857 | S87: =Euro!R87*Sterling!$C87 -> 36.89563521 | T87: =Euro!S87*Sterling!$C87 -> 45.24399407 | U87: =Euro!T87*Sterling!$C87 -> 63.41566757 | V87: =Euro!U87*Sterling!$C87 -> 41.3699919 | W87: =Euro!V87*Sterling!$C87 -> 34.69897329
B88: 2012-07-22 | C88: 0.7831071429 | D88: =Euro!C88*Sterling!$C88 -> 29.36651786 | E88: =Euro!D88*Sterling!$C88 -> 48.20016633 | F88: =Euro!E88*Sterling!$C88 -> 35.68423473 | G88: =Euro!F88*Sterling!$C88 -> 36.17955 | H88: =Euro!G88*Sterling!$C88 -> 33.39951964 | I88: =Euro!H88*Sterling!$C88 -> 31.67668393 | J88: =Euro!I88*Sterling!$C88 -> 24.1197 | K88: =Euro!J88*Sterling!$C88 -> 0 | L88: =Euro!K88*Sterling!$C88 -> 48.7327575 | M88: =Euro!L88*Sterling!$C88 -> 35.47475357 | N88: =Euro!M88*Sterling!$C88 -> 35.5897137 | O88: =Euro!N88*Sterling!$C88 -> 62.64857143 | P88: =Euro!O88*Sterling!$C88 -> 21.927 | Q88: =Euro!P88*Sterling!$C88 -> 33.17257519 | R88: =Euro!Q88*Sterling!$C88 -> 23.49321429 | S88: =Euro!R88*Sterling!$C88 -> 56.76743679 | T88: =Euro!S88*Sterling!$C88 -> 45.45936964 | U88: =Euro!T88*Sterling!$C88 -> 65.65108253 | V88: =Euro!U88*Sterling!$C88 -> 40.83 | W88: =Euro!V88*Sterling!$C88 -> 33.6469815
B89: 2012-07-29 | C89: 0.7812214286 | D89: =Euro!C89*Sterling!$C89 -> 29.29580357 | E89: =Euro!D89*Sterling!$C89 -> 47.95137129 | F89: =Euro!E89*Sterling!$C89 -> 35.59830745 | G89: =Euro!F89*Sterling!$C89 -> 35.77994143 | H89: =Euro!G89*Sterling!$C89 -> 29.06143714 | I89: =Euro!H89*Sterling!$C89 -> 31.60040679 | J89: =Euro!I89*Sterling!$C89 -> 24.06162 | K89: =Euro!J89*Sterling!$C89 -> 0 | L89: =Euro!K89*Sterling!$C89 -> 48.32635757 | M89: =Euro!L89*Sterling!$C89 -> 33.90501 | N89: =Euro!M89*Sterling!$C89 -> 38.24235137 | O89: =Euro!N89*Sterling!$C89 -> 62.49771429 | P89: =Euro!O89*Sterling!$C89 -> 21.8742 | Q89: =Euro!P89*Sterling!$C89 -> 33.06972805 | R89: =Euro!Q89*Sterling!$C89 -> 23.43664286 | S89: =Euro!R89*Sterling!$C89 -> 46.17018643 | T89: =Euro!S89*Sterling!$C89 -> 44.55305807 | U89: =Euro!T89*Sterling!$C89 -> 65.84962295 | V89: =Euro!U89*Sterling!$C89 -> 40.16024998 | W89: =Euro!V89*Sterling!$C89 -> 33.46049501
B90: 2012-08-05 | C90: 0.78565 | D90: =Euro!C90*Sterling!$C90 -> 29.461875 | E90: =Euro!D90*Sterling!$C90 -> 48.59190255 | F90: =Euro!E90*Sterling!$C90 -> 36.63925914 | G90: =Euro!F90*Sterling!$C90 -> 36.218465 | H90: =Euro!G90*Sterling!$C90 -> 30.95461 | I90: =Euro!H90*Sterling!$C90 -> 30.200386 | J90: =Euro!I90*Sterling!$C90 -> 23.09811 | K90: =Euro!J90*Sterling!$C90 -> 0 | L90: =Euro!K90*Sterling!$C90 -> 47.76752 | M90: =Euro!L90*Sterling!$C90 -> 34.09721 | N90: =Euro!M90*Sterling!$C90 -> 28.24152486 | O90: =Euro!N90*Sterling!$C90 -> 62.852 | P90: =Euro!O90*Sterling!$C90 -> 21.9982 | Q90: =Euro!P90*Sterling!$C90 -> 33.89796916 | R90: =Euro!Q90*Sterling!$C90 -> 23.5695 | S90: =Euro!R90*Sterling!$C90 -> 51.412936 | T90: =Euro!S90*Sterling!$C90 -> 46.431915 | U90: =Euro!T90*Sterling!$C90 -> 67.14864129 | V90: =Euro!U90*Sterling!$C90 -> 39.98000007 | W90: =Euro!V90*Sterling!$C90 -> 33.18467753
B91: 2012-08-12 | C91: 0.7891357143 | D91: =Euro!C91*Sterling!$C91 -> 29.98715714 | E91: =Euro!D91*Sterling!$C91 -> 51.04816348 | F91: =Euro!E91*Sterling!$C91 -> 35.41333323 | G91: =Euro!F91*Sterling!$C91 -> 37.16829214 | H91: =Euro!G91*Sterling!$C91 -> 30.72894471 | I91: =Euro!H91*Sterling!$C91 -> 28.46412521 | J91: =Euro!I91*Sterling!$C91 -> 21.30666429 | K91: =Euro!J91*Sterling!$C91 -> 0 | L91: =Euro!K91*Sterling!$C91 -> 47.64012307 | M91: =Euro!L91*Sterling!$C91 -> 32.591305 | N91: =Euro!M91*Sterling!$C91 -> 36.00471153 | O91: =Euro!N91*Sterling!$C91 -> 63.13085714 | P91: =Euro!O91*Sterling!$C91 -> 22.0958 | Q91: =Euro!P91*Sterling!$C91 -> 34.47623457 | R91: =Euro!Q91*Sterling!$C91 -> 23.67407143 | S91: =Euro!R91*Sterling!$C91 -> 58.1671935 | T91: =Euro!S91*Sterling!$C91 -> 47.07194536 | U91: =Euro!T91*Sterling!$C91 -> 65.80626395 | V91: =Euro!U91*Sterling!$C91 -> 39.65998816 | W91: =Euro!V91*Sterling!$C91 -> 33.039613
B92: 2012-08-19 | C92: 0.7847285714 | D92: =Euro!C92*Sterling!$C92 -> 30.99677857 | E92: =Euro!D92*Sterling!$C92 -> 41.83183985 | F92: =Euro!E92*Sterling!$C92 -> 36.15762449 | G92: =Euro!F92*Sterling!$C92 -> 38.4517 | H92: =Euro!G92*Sterling!$C92 -> 36.92932657 | I92: =Euro!H92*Sterling!$C92 -> 27.70876586 | J92: =Euro!I92*Sterling!$C92 -> 20.71683429 | K92: =Euro!J92*Sterling!$C92 -> 0 | L92: =Euro!K92*Sterling!$C92 -> 47.37406386 | M92: =Euro!L92*Sterling!$C92 -> 34.29263857 | N92: =Euro!M92*Sterling!$C92 -> 36.07640509 | O92: =Euro!N92*Sterling!$C92 -> 67.01582 | P92: =Euro!O92*Sterling!$C92 -> 23.14949286 | Q92: =Euro!P92*Sterling!$C92 -> 33.68431698 | R92: =Euro!Q92*Sterling!$C92 -> 23.54185714 | S92: =Euro!R92*Sterling!$C92 -> 47.64087157 | T92: =Euro!S92*Sterling!$C92 -> 45.99294157 | U92: =Euro!T92*Sterling!$C92 -> 66.39502123 | V92: =Euro!U92*Sterling!$C92 -> 39.27001495 | W92: =Euro!V92*Sterling!$C92 -> 33.06414599
B93: 2012-08-26 | C93: 0.7878 | D93: =Euro!C93*Sterling!$C93 -> 32.6937 | E93: =Euro!D93*Sterling!$C93 -> 42.2154447 | F93: =Euro!E93*Sterling!$C93 -> 36.28457118 | G93: =Euro!F93*Sterling!$C93 -> 40.33536 | H93: =Euro!G93*Sterling!$C93 -> 29.172234 | I93: =Euro!H93*Sterling!$C93 -> 27.699048 | J93: =Euro!I93*Sterling!$C93 -> 20.32524 | K93: =Euro!J93*Sterling!$C93 -> 0 | L93: =Euro!K93*Sterling!$C93 -> 47.236488 | M93: =Euro!L93*Sterling!$C93 -> 34.42686 | N93: =Euro!M93*Sterling!$C93 -> 35.99765442 | O93: =Euro!N93*Sterling!$C93 -> 67.27812 | P93: =Euro!O93*Sterling!$C93 -> 24.8157 | Q93: =Euro!P93*Sterling!$C93 -> 34.66934484 | R93: =Euro!Q93*Sterling!$C93 -> 25.2096 | S93: =Euro!R93*Sterling!$C93 -> 53.854008 | T93: =Euro!S93*Sterling!$C93 -> 46.590492 | U93: =Euro!T93*Sterling!$C93 -> 67.30868664 | V93: =Euro!U93*Sterling!$C93 -> 39.17642742 | W93: =Euro!V93*Sterling!$C93 -> 33.78338496
B94: 2012-09-02 | C94: 0.7928771429 | D94: =Euro!C94*Sterling!$C94 -> 34.49015571 | E94: =Euro!D94*Sterling!$C94 -> 57.00517079 | F94: =Euro!E94*Sterling!$C94 -> 37.78297449 | G94: =Euro!F94*Sterling!$C94 -> 42.49821486 | H94: =Euro!G94*Sterling!$C94 -> 32.745826 | I94: =Euro!H94*Sterling!$C94 -> 29.3602406 | J94: =Euro!I94*Sterling!$C94 -> 20.29765486 | K94: =Euro!J94*Sterling!$C94 -> 0 | L94: =Euro!K94*Sterling!$C94 -> 47.54091349 | M94: =Euro!L94*Sterling!$C94 -> 34.80730657 | N94: =Euro!M94*Sterling!$C94 -> 30.79891618 | O94: =Euro!N94*Sterling!$C94 -> 67.711708 | P94: =Euro!O94*Sterling!$C94 -> 27.35426143 | Q94: =Euro!P94*Sterling!$C94 -> 34.70621474 | R94: =Euro!Q94*Sterling!$C94 -> 26.16494571 | S94: =Euro!R94*Sterling!$C94 -> 44.00468143 | T94: =Euro!S94*Sterling!$C94 -> 46.30402514 | U94: =Euro!T94*Sterling!$C94 -> 68.6003647 | V94: =Euro!U94*Sterling!$C94 -> 39.12000321 | W94: =Euro!V94*Sterling!$C94 -> 35.0484998
B95: 2012-09-09 | C95: 0.7937 | D95: =Euro!C95*Sterling!$C95 -> 34.9228 | E95: =Euro!D95*Sterling!$C95 -> 57.29513938 | F95: =Euro!E95*Sterling!$C95 -> 37.70686149 | G95: =Euro!F95*Sterling!$C95 -> 43.01854 | H95: =Euro!G95*Sterling!$C95 -> 30.63682 | I95: =Euro!H95*Sterling!$C95 -> 30.359025 | J95: =Euro!I95*Sterling!$C95 -> 21.11242 | K95: =Euro!J95*Sterling!$C95 -> 0 | L95: =Euro!K95*Sterling!$C95 -> 47.590252 | M95: =Euro!L95*Sterling!$C95 -> 36.03398 | N95: =Euro!M95*Sterling!$C95 -> 28.94139743 | O95: =Euro!N95*Sterling!$C95 -> 67.78198 | P95: =Euro!O95*Sterling!$C95 -> 28.17635 | Q95: =Euro!P95*Sterling!$C95 -> 35.16503724 | R95: =Euro!Q95*Sterling!$C95 -> 26.9858 | S95: =Euro!R95*Sterling!$C95 -> 65.710423 | T95: =Euro!S95*Sterling!$C95 -> 47.526756 | U95: =Euro!T95*Sterling!$C95 -> 66.03099843 | V95: =Euro!U95*Sterling!$C95 -> 38.98003566 | W95: =Euro!V95*Sterling!$C95 -> 35.60577885
B96: 2012-09-16 | C96: 0.80175 | D96: =Euro!C96*Sterling!$C96 -> 35.277 | E96: =Euro!D96*Sterling!$C96 -> 49.13292368 | F96: =Euro!E96*Sterling!$C96 -> 38.08104045 | G96: =Euro!F96*Sterling!$C96 -> 43.77555 | H96: =Euro!G96*Sterling!$C96 -> 35.9584875 | I96: =Euro!H96*Sterling!$C96 -> 30.995655 | J96: =Euro!I96*Sterling!$C96 -> 22.7697 | K96: =Euro!J96*Sterling!$C96 -> 0 | L96: =Euro!K96*Sterling!$C96 -> 48.0969825 | M96: =Euro!L96*Sterling!$C96 -> 34.47525 | N96: =Euro!M96*Sterling!$C96 -> 28.23563063 | O96: =Euro!N96*Sterling!$C96 -> 68.46945 | P96: =Euro!O96*Sterling!$C96 -> 28.863 | Q96: =Euro!P96*Sterling!$C96 -> 36.37852433 | R96: =Euro!Q96*Sterling!$C96 -> 27.2595 | S96: =Euro!R96*Sterling!$C96 -> 52.6188525 | T96: =Euro!S96*Sterling!$C96 -> 47.1829875 | U96: =Euro!T96*Sterling!$C96 -> 63.10910985 | V96: =Euro!U96*Sterling!$C96 -> 38.97996255 | W96: =Euro!V96*Sterling!$C96 -> 36.13030253
B97: =B96+7 -> 2012-09-23 | C97: 0.8025957143 | D97: =Euro!C97*Sterling!$C97 -> 35.31421143 | E97: =Euro!D97*Sterling!$C97 -> 60.84381799 | F97: =Euro!E97*Sterling!$C97 -> 38.97332555 | G97: =Euro!F97*Sterling!$C97 -> 43.90198557 | H97: =Euro!G97*Sterling!$C97 -> 29.93682014 | I97: =Euro!H97*Sterling!$C97 -> 31.3493886 | J97: =Euro!I97*Sterling!$C97 -> 23.596314 | K97: =Euro!J97*Sterling!$C97 -> 0 | L97: =Euro!K97*Sterling!$C97 -> 48.28415817 | M97: =Euro!L97*Sterling!$C97 -> 32.42486686 | N97: =Euro!M97*Sterling!$C97 -> 41.31513932 | O97: =Euro!N97*Sterling!$C97 -> 68.541674 | P97: =Euro!O97*Sterling!$C97 -> 28.89344571 | Q97: =Euro!P97*Sterling!$C97 -> 36.27291201 | R97: =Euro!Q97*Sterling!$C97 -> 27.28825429 | S97: =Euro!R97*Sterling!$C97 -> 53.92640604 | T97: =Euro!S97*Sterling!$C97 -> 46.63883696 | U97: =Euro!T97*Sterling!$C97 -> 63.94392419 | V97: =Euro!U97*Sterling!$C97 -> 38.99997173 | W97: =Euro!V97*Sterling!$C97 -> 36.81024984
B98: 2012-09-30 | C98: 0.7967 | D98: =Euro!C98*Sterling!$C98 -> 35.0548 | E98: =Euro!D98*Sterling!$C98 -> 53.69893439 | F98: =Euro!E98*Sterling!$C98 -> 38.68185642 | G98: =Euro!F98*Sterling!$C98 -> 44.69487 | H98: =Euro!G98*Sterling!$C98 -> 30.202897 | I98: =Euro!H98*Sterling!$C98 -> 32.353987 | J98: =Euro!I98*Sterling!$C98 -> 24.37902 | K98: =Euro!J98*Sterling!$C98 -> 0 | L98: =Euro!K98*Sterling!$C98 -> 48.096779 | M98: =Euro!L98*Sterling!$C98 -> 35.0548 | N98: =Euro!M98*Sterling!$C98 -> 26.2010729 | O98: =Euro!N98*Sterling!$C98 -> 68.03818 | P98: =Euro!O98*Sterling!$C98 -> 28.6812 | Q98: =Euro!P98*Sterling!$C98 -> 35.74354715 | R98: =Euro!Q98*Sterling!$C98 -> 27.0878 | S98: =Euro!R98*Sterling!$C98 -> 38.655884 | T98: =Euro!S98*Sterling!$C98 -> 47.435518 | U98: =Euro!T98*Sterling!$C98 -> 68.5472713 | V98: =Euro!U98*Sterling!$C98 -> 39.110003 | W98: =Euro!V98*Sterling!$C98 -> 36.71105963
B99: 2012-10-07 | C99: 0.8011785714 | D99: =Euro!C99*Sterling!$C99 -> 35.25185714 | E99: =Euro!D99*Sterling!$C99 -> 54.19251975 | F99: =Euro!E99*Sterling!$C99 -> 39.43745435 | G99: =Euro!F99*Sterling!$C99 -> 44.78588214 | H99: =Euro!G99*Sterling!$C99 -> 30.12431429 | I99: =Euro!H99*Sterling!$C99 -> 33.42517 | J99: =Euro!I99*Sterling!$C99 -> 25.79795 | K99: =Euro!J99*Sterling!$C99 -> 0 | L99: =Euro!K99*Sterling!$C99 -> 48.86388107 | M99: =Euro!L99*Sterling!$C99 -> 35.41209286 | N99: =Euro!M99*Sterling!$C99 -> 28.40706814 | O99: =Euro!N99*Sterling!$C99 -> 68.42065 | P99: =Euro!O99*Sterling!$C99 -> 28.84242857 | Q99: =Euro!P99*Sterling!$C99 -> 36.22424758 | R99: =Euro!Q99*Sterling!$C99 -> 27.24007143 | S99: =Euro!R99*Sterling!$C99 -> 56.91572571 | T99: =Euro!S99*Sterling!$C99 -> 47.91849036 | U99: =Euro!T99*Sterling!$C99 -> 64.86517974 | V99: =Euro!U99*Sterling!$C99 -> 39.89997474 | W99: =Euro!V99*Sterling!$C99 -> 37.39404841
B100: 2012-10-14 | C100: 0.8061071429 | D100: =Euro!C100*Sterling!$C100 -> 36.27482143 | E100: =Euro!D100*Sterling!$C100 -> 57.22248286 | F100: =Euro!E100*Sterling!$C100 -> 39.66869372 | G100: =Euro!F100*Sterling!$C100 -> 45.38383214 | H100: =Euro!G100*Sterling!$C100 -> 34.0257825 | I100: =Euro!H100*Sterling!$C100 -> 34.28373679 | J100: =Euro!I100*Sterling!$C100 -> 26.27909286 | K100: =Euro!J100*Sterling!$C100 -> 0 | L100: =Euro!K100*Sterling!$C100 -> 49.62395571 | M100: =Euro!L100*Sterling!$C100 -> 37.48398214 | N100: =Euro!M100*Sterling!$C100 -> 29.19510484 | O100: =Euro!N100*Sterling!$C100 -> 68.84155 | P100: =Euro!O100*Sterling!$C100 -> 29.01985714 | Q100: =Euro!P100*Sterling!$C100 -> 36.50246609 | R100: =Euro!Q100*Sterling!$C100 -> 27.40764286 | S100: =Euro!R100*Sterling!$C100 -> 64.33541107 | T100: =Euro!S100*Sterling!$C100 -> 47.19757321 | U100: =Euro!T100*Sterling!$C100 -> 65.6876558 | V100: =Euro!U100*Sterling!$C100 -> 40.64996795 | W100: =Euro!V100*Sterling!$C100 -> 38.01657713
B101: 2012-10-21 | C101: 0.8103642857 | D101: =Euro!C101*Sterling!$C101 -> 36.06121071 | E101: =Euro!D101*Sterling!$C101 -> 57.7194118 | F101: =Euro!E101*Sterling!$C101 -> 39.8711384 | G101: =Euro!F101*Sterling!$C101 -> 45.3804 | H101: =Euro!G101*Sterling!$C101 -> 29.65933286 | I101: =Euro!H101*Sterling!$C101 -> 35.27515736 | J101: =Euro!I101*Sterling!$C101 -> 26.41787571 | K101: =Euro!J101*Sterling!$C101 -> 0 | L101: =Euro!K101*Sterling!$C101 -> 50.81794436 | M101: =Euro!L101*Sterling!$C101 -> 35.41291929 | N101: =Euro!M101*Sterling!$C101 -> 37.48745186 | O101: =Euro!N101*Sterling!$C101 -> 70.69618029 | P101: =Euro!O101*Sterling!$C101 -> 27.95756786 | Q101: =Euro!P101*Sterling!$C101 -> 36.94758717 | R101: =Euro!Q101*Sterling!$C101 -> 27.55238571 | S101: =Euro!R101*Sterling!$C101 -> 62.84375036 | T101: =Euro!S101*Sterling!$C101 -> 46.49870271 | U101: =Euro!T101*Sterling!$C101 -> 64.35532286 | V101: =Euro!U101*Sterling!$C101 -> 41.06002385 | W101: =Euro!V101*Sterling!$C101 -> 38.42091048
B102: 2012-10-28 | C102: 0.8080714286 | D102: =Euro!C102*Sterling!$C102 -> 35.15110714 | E102: =Euro!D102*Sterling!$C102 -> 52.47478485 | F102: =Euro!E102*Sterling!$C102 -> 39.75970011 | G102: =Euro!F102*Sterling!$C102 -> 45.252 | H102: =Euro!G102*Sterling!$C102 -> 30.64206857 | I102: =Euro!H102*Sterling!$C102 -> 35.82180643 | J102: =Euro!I102*Sterling!$C102 -> 25.69667143 | K102: =Euro!J102*Sterling!$C102 -> 0 | L102: =Euro!K102*Sterling!$C102 -> 51.26405143 | M102: =Euro!L102*Sterling!$C102 -> 38.38339286 | N102: =Euro!M102*Sterling!$C102 -> 28.78285783 | O102: =Euro!N102*Sterling!$C102 -> 69.0093 | P102: =Euro!O102*Sterling!$C102 -> 27.87846429 | Q102: =Euro!P102*Sterling!$C102 -> 36.65549372 | R102: =Euro!Q102*Sterling!$C102 -> 27.47442857 | S102: =Euro!R102*Sterling!$C102 -> 56.055915 | T102: =Euro!S102*Sterling!$C102 -> 47.26409786 | U102: =Euro!T102*Sterling!$C102 -> 66.4039161 | V102: =Euro!U102*Sterling!$C102 -> 42.29001418 | W102: =Euro!V102*Sterling!$C102 -> 38.16206209
B103: 2012-11-04 | C103: 0.8035357143 | D103: =Euro!C103*Sterling!$C103 -> 34.55203571 | E103: =Euro!D103*Sterling!$C103 -> 52.79093042 | F103: =Euro!E103*Sterling!$C103 -> 38.77855322 | G103: =Euro!F103*Sterling!$C103 -> 44.998 | H103: =Euro!G103*Sterling!$C103 -> 31.63520107 | I103: =Euro!H103*Sterling!$C103 -> 35.44396036 | J103: =Euro!I103*Sterling!$C103 -> 24.90960714 | K103: =Euro!J103*Sterling!$C103 -> 0 | L103: =Euro!K103*Sterling!$C103 -> 51.55485143 | M103: =Euro!L103*Sterling!$C103 -> 36.96264286 | N103: =Euro!M103*Sterling!$C103 -> 27.72013401 | O103: =Euro!N103*Sterling!$C103 -> 68.62195 | P103: =Euro!O103*Sterling!$C103 -> 27.32021429 | Q103: =Euro!P103*Sterling!$C103 -> 35.97799019 | R103: =Euro!Q103*Sterling!$C103 -> 28.92728571 | S103: =Euro!R103*Sterling!$C103 -> 61.40619929 | T103: =Euro!S103*Sterling!$C103 -> 46.93452107 | U103: =Euro!T103*Sterling!$C103 -> 66.90929398 | V103: =Euro!U103*Sterling!$C103 -> 42.44002441 | W103: =Euro!V103*Sterling!$C103 -> 37.77710666
B104: 2012-11-11 | C104: 0.7988428571 | D104: =Euro!C104*Sterling!$C104 -> 34.35024286 | E104: =Euro!D104*Sterling!$C104 -> 51.98437939 | F104: =Euro!E104*Sterling!$C104 -> 37.1612111 | G104: =Euro!F104*Sterling!$C104 -> 44.7352 | H104: =Euro!G104*Sterling!$C104 -> 35.53253029 | I104: =Euro!H104*Sterling!$C104 -> 35.04523614 | J104: =Euro!I104*Sterling!$C104 -> 24.44459143 | K104: =Euro!J104*Sterling!$C104 -> 0 | L104: =Euro!K104*Sterling!$C104 -> 51.836913 | M104: =Euro!L104*Sterling!$C104 -> 29.63707 | N104: =Euro!M104*Sterling!$C104 -> 26.4598323 | O104: =Euro!N104*Sterling!$C104 -> 69.61116657 | P104: =Euro!O104*Sterling!$C104 -> 27.16065714 | Q104: =Euro!P104*Sterling!$C104 -> 36.32354448 | R104: =Euro!Q104*Sterling!$C104 -> 29.55718571 | S104: =Euro!R104*Sterling!$C104 -> 54.24941843 | T104: =Euro!S104*Sterling!$C104 -> 45.77369571 | U104: =Euro!T104*Sterling!$C104 -> 64.0481048 | V104: =Euro!U104*Sterling!$C104 -> 44.22002624 | W104: =Euro!V104*Sterling!$C104 -> 37.43609293
B105: 2012-11-18 | C105: 0.8016928571 | D105: =Euro!C105*Sterling!$C105 -> 34.87363929 | E105: =Euro!D105*Sterling!$C105 -> 49.37169342 | F105: =Euro!E105*Sterling!$C105 -> 37.30012306 | G105: =Euro!F105*Sterling!$C105 -> 45.29564643 | H105: =Euro!G105*Sterling!$C105 -> 30.14365143 | I105: =Euro!H105*Sterling!$C105 -> 35.25043493 | J105: =Euro!I105*Sterling!$C105 -> 24.53180143 | K105: =Euro!J105*Sterling!$C105 -> 0 | L105: =Euro!K105*Sterling!$C105 -> 52.25434043 | M105: =Euro!L105*Sterling!$C105 -> 33.109915 | N105: =Euro!M105*Sterling!$C105 -> 38.61153223 | O105: =Euro!N105*Sterling!$C105 -> 69.85951557 | P105: =Euro!O105*Sterling!$C105 -> 28.05925 | Q105: =Euro!P105*Sterling!$C105 -> 35.28923686 | R105: =Euro!Q105*Sterling!$C105 -> 29.66263571 | S105: =Euro!R105*Sterling!$C105 -> 60.64004771 | T105: =Euro!S105*Sterling!$C105 -> 47.27582779 | U105: =Euro!T105*Sterling!$C105 -> 67.06144716 | V105: =Euro!U105*Sterling!$C105 -> 44.95997763 | W105: =Euro!V105*Sterling!$C105 -> 37.97867589
B106: 2012-11-25 | C106: 0.8059857143 | D106: =Euro!C106*Sterling!$C106 -> 35.06037857 | E106: =Euro!D106*Sterling!$C106 -> 52.76151743 | F106: =Euro!E106*Sterling!$C106 -> 37.50058092 | G106: =Euro!F106*Sterling!$C106 -> 45.86058714 | H106: =Euro!G106*Sterling!$C106 -> 28.45129571 | I106: =Euro!H106*Sterling!$C106 -> 35.67292771 | J106: =Euro!I106*Sterling!$C106 -> 24.98555714 | K106: =Euro!J106*Sterling!$C106 -> 0 | L106: =Euro!K106*Sterling!$C106 -> 52.74370514 | M106: =Euro!L106*Sterling!$C106 -> 36.43055429 | N106: =Euro!M106*Sterling!$C106 -> 29.88925483 | O106: =Euro!N106*Sterling!$C106 -> 70.23359514 | P106: =Euro!O106*Sterling!$C106 -> 28.61249286 | Q106: =Euro!P106*Sterling!$C106 -> 36.07132645 | R106: =Euro!Q106*Sterling!$C106 -> 29.82147143 | S106: =Euro!R106*Sterling!$C106 -> 58.619341 | T106: =Euro!S106*Sterling!$C106 -> 47.31942129 | U106: =Euro!T106*Sterling!$C106 -> 69.88307196 | V106: =Euro!U106*Sterling!$C106 -> 45.11996687 | W106: =Euro!V106*Sterling!$C106 -> 38.28472442
B107: 2012-12-02 | C107: 0.8095928571 | D107: =Euro!C107*Sterling!$C107 -> 35.21728929 | E107: =Euro!D107*Sterling!$C107 -> 53.29234037 | F107: =Euro!E107*Sterling!$C107 -> 38.53095285 | G107: =Euro!F107*Sterling!$C107 -> 46.06583357 | H107: =Euro!G107*Sterling!$C107 -> 29.63109857 | I107: =Euro!H107*Sterling!$C107 -> 36.18880071 | J107: =Euro!I107*Sterling!$C107 -> 24.12586714 | K107: =Euro!J107*Sterling!$C107 -> 0 | L107: =Euro!K107*Sterling!$C107 -> 52.67211129 | M107: =Euro!L107*Sterling!$C107 -> 35.94592286 | N107: =Euro!M107*Sterling!$C107 -> 33.38283283 | O107: =Euro!N107*Sterling!$C107 -> 70.54792157 | P107: =Euro!O107*Sterling!$C107 -> 28.74054643 | Q107: =Euro!P107*Sterling!$C107 -> 35.59763601 | R107: =Euro!Q107*Sterling!$C107 -> 29.95493571 | S107: =Euro!R107*Sterling!$C107 -> 55.01993057 | T107: =Euro!S107*Sterling!$C107 -> 49.23943757 | U107: =Euro!T107*Sterling!$C107 -> 66.63766903 | V107: =Euro!U107*Sterling!$C107 -> 45.65998467 | W107: =Euro!V107*Sterling!$C107 -> 38.46594254
B108: 2012-12-09 | C108: 0.8100928571 | D108: =Euro!C108*Sterling!$C108 -> 35.23903929 | E108: =Euro!D108*Sterling!$C108 -> 52.92053103 | F108: =Euro!E108*Sterling!$C108 -> 38.65998041 | G108: =Euro!F108*Sterling!$C108 -> 46.17529286 | H108: =Euro!G108*Sterling!$C108 -> 35.47396621 | I108: =Euro!H108*Sterling!$C108 -> 36.59189436 | J108: =Euro!I108*Sterling!$C108 -> 23.97874857 | K108: =Euro!J108*Sterling!$C108 -> 0 | L108: =Euro!K108*Sterling!$C108 -> 53.09348586 | M108: =Euro!L108*Sterling!$C108 -> 38.88445714 | N108: =Euro!M108*Sterling!$C108 -> 31.08455908 | O108: =Euro!N108*Sterling!$C108 -> 70.59149157 | P108: =Euro!O108*Sterling!$C108 -> 28.75829643 | Q108: =Euro!P108*Sterling!$C108 -> 35.42228229 | R108: =Euro!Q108*Sterling!$C108 -> 29.97343571 | S108: =Euro!R108*Sterling!$C108 -> 55.59667279 | T108: =Euro!S108*Sterling!$C108 -> 44.56320807 | U108: =Euro!T108*Sterling!$C108 -> 68.02017583 | V108: =Euro!U108*Sterling!$C108 -> 46.06001664 | W108: =Euro!V108*Sterling!$C108 -> 38.5229127
B109: 2012-12-16 | C109: 0.8083857143 | D109: =Euro!C109*Sterling!$C109 -> 35.16477857 | E109: =Euro!D109*Sterling!$C109 -> 52.75848526 | F109: =Euro!E109*Sterling!$C109 -> 37.87084975 | G109: =Euro!F109*Sterling!$C109 -> 46.07798571 | H109: =Euro!G109*Sterling!$C109 -> 30.726741 | I109: =Euro!H109*Sterling!$C109 -> 37.177659 | J109: =Euro!I109*Sterling!$C109 -> 23.92821714 | K109: =Euro!J109*Sterling!$C109 -> 0 | L109: =Euro!K109*Sterling!$C109 -> 52.94926429 | M109: =Euro!L109*Sterling!$C109 -> 37.34742 | N109: =Euro!M109*Sterling!$C109 -> 31.39026399 | O109: =Euro!N109*Sterling!$C109 -> 70.44273114 | P109: =Euro!O109*Sterling!$C109 -> 28.69769286 | Q109: =Euro!P109*Sterling!$C109 -> 34.66075008 | R109: =Euro!Q109*Sterling!$C109 -> 29.91027143 | S109: =Euro!R109*Sterling!$C109 -> 57.72682386 | T109: =Euro!S109*Sterling!$C109 -> 47.71092486 | U109: =Euro!T109*Sterling!$C109 -> 67.77230977 | V109: =Euro!U109*Sterling!$C109 -> 46.09003066 | W109: =Euro!V109*Sterling!$C109 -> 38.61068436
B110: 2012-12-23 | C110: 0.8136285714 | D110: =Euro!C110*Sterling!$C110 -> 35.39284286 | E110: =Euro!D110*Sterling!$C110 -> 53.17469529 | F110: =Euro!E110*Sterling!$C110 -> 37.40421405 | G110: =Euro!F110*Sterling!$C110 -> 46.37682857 | H110: =Euro!G110*Sterling!$C110 -> 30.128666 | I110: =Euro!H110*Sterling!$C110 -> 38.68803857 | J110: =Euro!I110*Sterling!$C110 -> 24.40885714 | K110: =Euro!J110*Sterling!$C110 -> 0 | L110: =Euro!K110*Sterling!$C110 -> 53.29267143 | M110: =Euro!L110*Sterling!$C110 -> 43.61049143 | N110: =Euro!M110*Sterling!$C110 -> 36.8349995 | O110: =Euro!N110*Sterling!$C110 -> 74.30056114 | P110: =Euro!O110*Sterling!$C110 -> 28.88381429 | Q110: =Euro!P110*Sterling!$C110 -> 34.83265959 | R110: =Euro!Q110*Sterling!$C110 -> 31.73151429 | S110: =Euro!R110*Sterling!$C110 -> 53.43098829 | T110: =Euro!S110*Sterling!$C110 -> 47.54031743 | U110: =Euro!T110*Sterling!$C110 -> 67.61977558 | V110: =Euro!U110*Sterling!$C110 -> 46.1899189 | W110: =Euro!V110*Sterling!$C110 -> 39.03114574
B111: 2012-12-30 | C111: 0.8172142857 | D111: =Euro!C111*Sterling!$C111 -> 35.54882143 | E111: =Euro!D111*Sterling!$C111 -> 53.57534275 | F111: =Euro!E111*Sterling!$C111 -> 36.03612631 | G111: =Euro!F111*Sterling!$C111 -> 45.35539286 | H111: =Euro!G111*Sterling!$C111 -> 31.21758571 | I111: =Euro!H111*Sterling!$C111 -> 39.58586 | J111: =Euro!I111*Sterling!$C111 -> 24.51642857 | K111: =Euro!J111*Sterling!$C111 -> 0 | L111: =Euro!K111*Sterling!$C111 -> 53.52753571 | M111: =Euro!L111*Sterling!$C111 -> 39.96177857 | N111: =Euro!M111*Sterling!$C111 -> 36.55840796 | O111: =Euro!N111*Sterling!$C111 -> 74.62800857 | P111: =Euro!O111*Sterling!$C111 -> 29.01110714 | Q111: =Euro!P111*Sterling!$C111 -> 35.5277373 | R111: =Euro!Q111*Sterling!$C111 -> 32.68857143 | S111: =Euro!R111*Sterling!$C111 -> 53.66646214 | T111: =Euro!S111*Sterling!$C111 -> 48.77134857 | U111: =Euro!T111*Sterling!$C111 -> 69.83766187 | V111: =Euro!U111*Sterling!$C111 -> 46.21003556 | W111: =Euro!V111*Sterling!$C111 -> 39.03710061
B112: 2013-01-06 | C112: 0.8140714286 | D112: =Euro!C112*Sterling!$C112 -> 39.48246429 | E112: =Euro!D112*Sterling!$C112 -> 50.81319887 | F112: =Euro!E112*Sterling!$C112 -> 35.89989874 | G112: =Euro!F112*Sterling!$C112 -> 46.32066429 | H112: =Euro!G112*Sterling!$C112 -> 33.21411429 | I112: =Euro!H112*Sterling!$C112 -> 37.69150714 | J112: =Euro!I112*Sterling!$C112 -> 24.74777143 | K112: =Euro!J112*Sterling!$C112 -> 0 | L112: =Euro!K112*Sterling!$C112 -> 53.32981929 | M112: =Euro!L112*Sterling!$C112 -> 36.95884286 | N112: =Euro!M112*Sterling!$C112 -> 33.58117909 | O112: =Euro!N112*Sterling!$C112 -> 74.34100286 | P112: =Euro!O112*Sterling!$C112 -> 33.78396429 | Q112: =Euro!P112*Sterling!$C112 -> 35.70045124 | R112: =Euro!Q112*Sterling!$C112 -> 32.56285714 | S112: =Euro!R112*Sterling!$C112 -> 53.46007071 | T112: =Euro!S112*Sterling!$C112 -> 47.70458571 | U112: =Euro!T112*Sterling!$C112 -> 69.18850056 | V112: =Euro!U112*Sterling!$C112 -> 46.21003198 | W112: =Euro!V112*Sterling!$C112 -> 39.38453149 | X112: =Euro!W112*Sterling!$C112 -> 39.09638054
B113: 2013-01-13 | C113: 0.8167357143 | D113: =Euro!C113*Sterling!$C113 -> 39.61168214 | E113: =Euro!D113*Sterling!$C113 -> 50.34252767 | F113: =Euro!E113*Sterling!$C113 -> 36.23725687 | G113: =Euro!F113*Sterling!$C113 -> 46.47226214 | H113: =Euro!G113*Sterling!$C113 -> 29.98236807 | I113: =Euro!H113*Sterling!$C113 -> 38.7051055 | J113: =Euro!I113*Sterling!$C113 -> 25.31880714 | K113: =Euro!J113*Sterling!$C113 -> 0 | L113: =Euro!K113*Sterling!$C113 -> 53.52885871 | M113: =Euro!L113*Sterling!$C113 -> 37.07980143 | N113: =Euro!M113*Sterling!$C113 -> 32.06259394 | O113: =Euro!N113*Sterling!$C113 -> 74.58430543 | P113: =Euro!O113*Sterling!$C113 -> 33.89453214 | Q113: =Euro!P113*Sterling!$C113 -> 35.42836181 | R113: =Euro!Q113*Sterling!$C113 -> 32.66942857 | S113: =Euro!R113*Sterling!$C113 -> 61.25517857 | T113: =Euro!S113*Sterling!$C113 -> 47.59119007 | U113: =Euro!T113*Sterling!$C113 -> 69.09690319 | V113: =Euro!U113*Sterling!$C113 -> 46.30997676 | W113: =Euro!V113*Sterling!$C113 -> 39.69270233 | X113: =Euro!W113*Sterling!$C113 -> 39.43932236
B114: 2013-01-20 | C114: 0.8318928571 | D114: =Euro!C114*Sterling!$C114 -> 40.76275 | E114: =Euro!D114*Sterling!$C114 -> 51.17089429 | F114: =Euro!E114*Sterling!$C114 -> 36.00698491 | G114: =Euro!F114*Sterling!$C114 -> 47.33470357 | H114: =Euro!G114*Sterling!$C114 -> 34.6483375 | I114: =Euro!H114*Sterling!$C114 -> 40.36344143 | J114: =Euro!I114*Sterling!$C114 -> 26.62057143 | K114: =Euro!J114*Sterling!$C114 -> 0 | L114: =Euro!K114*Sterling!$C114 -> 54.66367964 | M114: =Euro!L114*Sterling!$C114 -> 37.76793571 | N114: =Euro!M114*Sterling!$C114 -> 42.43344043 | O114: =Euro!N114*Sterling!$C114 -> 75.96845571 | P114: =Euro!O114*Sterling!$C114 -> 34.52355357 | Q114: =Euro!P114*Sterling!$C114 -> 34.66023357 | R114: =Euro!Q114*Sterling!$C114 -> 29.94814286 | S114: =Euro!R114*Sterling!$C114 -> 57.55866679 | T114: =Euro!S114*Sterling!$C114 -> 45.75410714 | U114: =Euro!T114*Sterling!$C114 -> 70.97052662 | V114: =Euro!U114*Sterling!$C114 -> 46.34000928 | W114: =Euro!V114*Sterling!$C114 -> 40.61092955 | X114: =Euro!W114*Sterling!$C114 -> 40.41699757
B115: 2013-01-27 | C115: 0.8433214286 | D115: =Euro!C115*Sterling!$C115 -> 41.32275 | E115: =Euro!D115*Sterling!$C115 -> 52.68465094 | F115: =Euro!E115*Sterling!$C115 -> 38.75981185 | G115: =Euro!F115*Sterling!$C115 -> 47.98498929 | H115: =Euro!G115*Sterling!$C115 -> 32.33294357 | I115: =Euro!H115*Sterling!$C115 -> 41.51671393 | J115: =Euro!I115*Sterling!$C115 -> 27.32361429 | K115: =Euro!J115*Sterling!$C115 -> 0 | L115: =Euro!K115*Sterling!$C115 -> 55.9037775 | M115: =Euro!L115*Sterling!$C115 -> 40.81675714 | N115: =Euro!M115*Sterling!$C115 -> 39.97866431 | O115: =Euro!N115*Sterling!$C115 -> 77.01211286 | P115: =Euro!O115*Sterling!$C115 -> 34.99783929 | Q115: =Euro!P115*Sterling!$C115 -> 34.34679514 | R115: =Euro!Q115*Sterling!$C115 -> 30.35957143 | S115: =Euro!R115*Sterling!$C115 -> 58.34940964 | T115: =Euro!S115*Sterling!$C115 -> 50.27039036 | U115: =Euro!T115*Sterling!$C115 -> 70.80273718 | V115: =Euro!U115*Sterling!$C115 -> 46.35004203 | W115: =Euro!V115*Sterling!$C115 -> 41.21200499 | X115: =Euro!W115*Sterling!$C115 -> 41.28029153
B116: 2013-02-03 | C116: 0.8568857143 | D116: =Euro!C116*Sterling!$C116 -> 42.84428571 | E116: =Euro!D116*Sterling!$C116 -> 53.46555552 | F116: =Euro!E116*Sterling!$C116 -> 36.52158309 | G116: =Euro!F116*Sterling!$C116 -> 48.75679714 | H116: =Euro!G116*Sterling!$C116 -> 33.24716571 | I116: =Euro!H116*Sterling!$C116 -> 42.73289057 | J116: =Euro!I116*Sterling!$C116 -> 28.61998286 | K116: =Euro!J116*Sterling!$C116 -> 0 | L116: =Euro!K116*Sterling!$C116 -> 57.50560029 | M116: =Euro!L116*Sterling!$C116 -> 38.38848 | N116: =Euro!M116*Sterling!$C116 -> 34.03481506 | O116: =Euro!N116*Sterling!$C116 -> 78.25080343 | P116: =Euro!O116*Sterling!$C116 -> 36.41764286 | Q116: =Euro!P116*Sterling!$C116 -> 34.34552182 | R116: =Euro!Q116*Sterling!$C116 -> 28.27722857 | S116: =Euro!R116*Sterling!$C116 -> 59.19366514 | T116: =Euro!S116*Sterling!$C116 -> 50.45343086 | U116: =Euro!T116*Sterling!$C116 -> 73.7238762 | V116: =Euro!U116*Sterling!$C116 -> 46.5100428 | W116: =Euro!V116*Sterling!$C116 -> 41.94609811 | X116: =Euro!W116*Sterling!$C116 -> 41.81466356
B117: 2013-02-10 | C117: 0.8573857143 | D117: =Euro!C117*Sterling!$C117 -> 43.29797857 | E117: =Euro!D117*Sterling!$C117 -> 53.81269976 | F117: =Euro!E117*Sterling!$C117 -> 36.54752363 | G117: =Euro!F117*Sterling!$C117 -> 48.87098571 | H117: =Euro!G117*Sterling!$C117 -> 33.46376443 | I117: =Euro!H117*Sterling!$C117 -> 43.55519429 | J117: =Euro!I117*Sterling!$C117 -> 28.97963714 | K117: =Euro!J117*Sterling!$C117 -> 0 | L117: =Euro!K117*Sterling!$C117 -> 58.156473 | M117: =Euro!L117*Sterling!$C117 -> 38.41088 | N117: =Euro!M117*Sterling!$C117 -> 37.55418019 | O117: =Euro!N117*Sterling!$C117 -> 78.29646343 | P117: =Euro!O117*Sterling!$C117 -> 37.29627857 | Q117: =Euro!P117*Sterling!$C117 -> 34.70371565 | R117: =Euro!Q117*Sterling!$C117 -> 28.29372857 | S117: =Euro!R117*Sterling!$C117 -> 64.30392857 | T117: =Euro!S117*Sterling!$C117 -> 49.36826943 | U117: =Euro!T117*Sterling!$C117 -> 72.81613968 | V117: =Euro!U117*Sterling!$C117 -> 46.320006 | W117: =Euro!V117*Sterling!$C117 -> 42.42121594 | X117: =Euro!W117*Sterling!$C117 -> 42.32604273
B118: 2013-02-17 | C118: 0.8582214286 | D118: =Euro!C118*Sterling!$C118 -> 44.19840357 | E118: =Euro!D118*Sterling!$C118 -> 55.17265262 | F118: =Euro!E118*Sterling!$C118 -> 36.57679653 | G118: =Euro!F118*Sterling!$C118 -> 49.69102071 | H118: =Euro!G118*Sterling!$C118 -> 33.60795114 | I118: =Euro!H118*Sterling!$C118 -> 44.45587 | J118: =Euro!I118*Sterling!$C118 -> 29.86610571 | K118: =Euro!J118*Sterling!$C118 -> 0 | L118: =Euro!K118*Sterling!$C118 -> 59.80945136 | M118: =Euro!L118*Sterling!$C118 -> 40.07894071 | N118: =Euro!M118*Sterling!$C118 -> 35.3108341 | O118: =Euro!N118*Sterling!$C118 -> 78.37278086 | P118: =Euro!O118*Sterling!$C118 -> 38.19085357 | Q118: =Euro!P118*Sterling!$C118 -> 34.4744115 | R118: =Euro!Q118*Sterling!$C118 -> 28.32130714 | S118: =Euro!R118*Sterling!$C118 -> 64.36660714 | T118: =Euro!S118*Sterling!$C118 -> 51.59627229 | U118: =Euro!T118*Sterling!$C118 -> 74.49095951 | V118: =Euro!U118*Sterling!$C118 -> 46.34996469 | W118: =Euro!V118*Sterling!$C118 -> 43.07988358 | X118: =Euro!W118*Sterling!$C118 -> 43.01100161
B119: 2013-02-24 | C119: 0.8638571429 | D119: =Euro!C119*Sterling!$C119 -> 45.3525 | E119: =Euro!D119*Sterling!$C119 -> 55.31510527 | F119: =Euro!E119*Sterling!$C119 -> 36.8256253 | G119: =Euro!F119*Sterling!$C119 -> 50.7948 | H119: =Euro!G119*Sterling!$C119 -> 33.27577714 | I119: =Euro!H119*Sterling!$C119 -> 45.61165714 | J119: =Euro!I119*Sterling!$C119 -> 30.58054286 | K119: =Euro!J119*Sterling!$C119 -> 0 | L119: =Euro!K119*Sterling!$C119 -> 61.73987 | M119: =Euro!L119*Sterling!$C119 -> 38.00971429 | N119: =Euro!M119*Sterling!$C119 -> 36.9798238 | O119: =Euro!N119*Sterling!$C119 -> 78.88743429 | P119: =Euro!O119*Sterling!$C119 -> 39.73742857 | Q119: =Euro!P119*Sterling!$C119 -> 34.8990511 | R119: =Euro!Q119*Sterling!$C119 -> 29.37114286 | S119: =Euro!R119*Sterling!$C119 -> 73.70429143 | T119: =Euro!S119*Sterling!$C119 -> 52.47068286 | U119: =Euro!T119*Sterling!$C119 -> 74.62196687 | V119: =Euro!U119*Sterling!$C119 -> 46.37997169 | W119: =Euro!V119*Sterling!$C119 -> 44.09195966 | X119: =Euro!W119*Sterling!$C119 -> 44.06593776
B120: 2013-03-03 | C120: 0.8658142857 | D120: =Euro!C120*Sterling!$C120 -> 45.45525 | E120: =Euro!D120*Sterling!$C120 -> 55.09392754 | F120: =Euro!E120*Sterling!$C120 -> 36.9166761 | G120: =Euro!F120*Sterling!$C120 -> 51.08304286 | H120: =Euro!G120*Sterling!$C120 -> 34.58928071 | I120: =Euro!H120*Sterling!$C120 -> 45.83620829 | J120: =Euro!I120*Sterling!$C120 -> 31.16931429 | K120: =Euro!J120*Sterling!$C120 -> 0 | L120: =Euro!K120*Sterling!$C120 -> 63.77588029 | M120: =Euro!L120*Sterling!$C120 -> 39.65429429 | N120: =Euro!M120*Sterling!$C120 -> 40.86565505 | O120: =Euro!N120*Sterling!$C120 -> 79.06616057 | P120: =Euro!O120*Sterling!$C120 -> 40.26036429 | Q120: =Euro!P120*Sterling!$C120 -> 35.36539664 | R120: =Euro!Q120*Sterling!$C120 -> 29.43768571 | S120: =Euro!R120*Sterling!$C120 -> 73.01411871 | T120: =Euro!S120*Sterling!$C120 -> 50.01809129 | U120: =Euro!T120*Sterling!$C120 -> 77.23513652 | V120: =Euro!U120*Sterling!$C120 -> 46.44998403 | W120: =Euro!V120*Sterling!$C120 -> 44.59480376 | X120: =Euro!W120*Sterling!$C120 -> 44.56474581
B121: 2013-03-10 | C121: 0.8657 | D121: =Euro!C121*Sterling!$C121 -> 45.44925 | E121: =Euro!D121*Sterling!$C121 -> 55.17097443 | F121: =Euro!E121*Sterling!$C121 -> 37.62271601 | G121: =Euro!F121*Sterling!$C121 -> 51.0763 | H121: =Euro!G121*Sterling!$C121 -> 33.67573 | I121: =Euro!H121*Sterling!$C121 -> 45.925385 | J121: =Euro!I121*Sterling!$C121 -> 32.20404 | K121: =Euro!J121*Sterling!$C121 -> 0 | L121: =Euro!K121*Sterling!$C121 -> 65.022727 | M121: =Euro!L121*Sterling!$C121 -> 41.98645 | N121: =Euro!M121*Sterling!$C121 -> 44.31223962 | O121: =Euro!N121*Sterling!$C121 -> 79.055724 | P121: =Euro!O121*Sterling!$C121 -> 40.25505 | Q121: =Euro!P121*Sterling!$C121 -> 36.00177933 | R121: =Euro!Q121*Sterling!$C121 -> 30.2995 | S121: =Euro!R121*Sterling!$C121 -> 60.287348 | T121: =Euro!S121*Sterling!$C121 -> 52.149768 | U121: =Euro!T121*Sterling!$C121 -> 76.14887654 | V121: =Euro!U121*Sterling!$C121 -> 46.89003451 | W121: =Euro!V121*Sterling!$C121 -> 44.9835034 | X121: =Euro!W121*Sterling!$C121 -> 44.93092664
B122: 2013-03-17 | C122: 0.8688785714 | D122: =Euro!C122*Sterling!$C122 -> 45.616125 | E122: =Euro!D122*Sterling!$C122 -> 53.26521062 | F122: =Euro!E122*Sterling!$C122 -> 36.70160463 | G122: =Euro!F122*Sterling!$C122 -> 51.26383571 | H122: =Euro!G122*Sterling!$C122 -> 36.19748129 | I122: =Euro!H122*Sterling!$C122 -> 46.09400821 | J122: =Euro!I122*Sterling!$C122 -> 32.49605857 | K122: =Euro!J122*Sterling!$C122 -> 0 | L122: =Euro!K122*Sterling!$C122 -> 66.173792 | M122: =Euro!L122*Sterling!$C122 -> 42.57505 | N122: =Euro!M122*Sterling!$C122 -> 40.0355786 | O122: =Euro!N122*Sterling!$C122 -> 79.34599114 | P122: =Euro!O122*Sterling!$C122 -> 40.40285357 | Q122: =Euro!P122*Sterling!$C122 -> 35.92969291 | R122: =Euro!Q122*Sterling!$C122 -> 30.41075 | S122: =Euro!R122*Sterling!$C122 -> 68.35467721 | T122: =Euro!S122*Sterling!$C122 -> 49.630344 | U122: =Euro!T122*Sterling!$C122 -> 78.01669382 | V122: =Euro!U122*Sterling!$C122 -> 47.28002746 | W122: =Euro!V122*Sterling!$C122 -> 45.03206482 | X122: =Euro!W122*Sterling!$C122 -> 44.96330761
B123: 2013-03-24 | C123: 0.8555 | D123: =Euro!C123*Sterling!$C123 -> 44.486 | E123: =Euro!D123*Sterling!$C123 -> 48.37672845 | F123: =Euro!E123*Sterling!$C123 -> 36.26558605 | G123: =Euro!F123*Sterling!$C123 -> 50.56005 | H123: =Euro!G123*Sterling!$C123 -> 33.7067 | I123: =Euro!H123*Sterling!$C123 -> 45.384275 | J123: =Euro!I123*Sterling!$C123 -> 32.509 | K123: =Euro!J123*Sterling!$C123 -> 0 | L123: =Euro!K123*Sterling!$C123 -> 65.556965 | M123: =Euro!L123*Sterling!$C123 -> 38.06975 | N123: =Euro!M123*Sterling!$C123 -> 45.31044535 | O123: =Euro!N123*Sterling!$C123 -> 78.12426 | P123: =Euro!O123*Sterling!$C123 -> 39.78075 | Q123: =Euro!P123*Sterling!$C123 -> 35.7037792 | R123: =Euro!Q123*Sterling!$C123 -> 31.6535 | S123: =Euro!R123*Sterling!$C123 -> 68.619655 | T123: =Euro!S123*Sterling!$C123 -> 51.458325 | U123: =Euro!T123*Sterling!$C123 -> 75.7601713 | V123: =Euro!U123*Sterling!$C123 -> 47.7399798 | W123: =Euro!V123*Sterling!$C123 -> 44.6187736 | X123: =Euro!W123*Sterling!$C123 -> 44.51268411
B124: 2013-03-31 | C124: 0.8479071429 | D124: =Euro!C124*Sterling!$C124 -> 44.09117143 | E124: =Euro!D124*Sterling!$C124 -> 49.41848722 | F124: =Euro!E124*Sterling!$C124 -> 35.9454123 | G124: =Euro!F124*Sterling!$C124 -> 50.11131214 | H124: =Euro!G124*Sterling!$C124 -> 33.712788 | I124: =Euro!H124*Sterling!$C124 -> 44.72710179 | J124: =Euro!I124*Sterling!$C124 -> 32.39005286 | K124: =Euro!J124*Sterling!$C124 -> 0 | L124: =Euro!K124*Sterling!$C124 -> 65.00904064 | M124: =Euro!L124*Sterling!$C124 -> 42.81931071 | N124: =Euro!M124*Sterling!$C124 -> 37.52014544 | O124: =Euro!N124*Sterling!$C124 -> 77.43088029 | P124: =Euro!O124*Sterling!$C124 -> 39.42768214 | Q124: =Euro!P124*Sterling!$C124 -> 34.95666778 | R124: =Euro!Q124*Sterling!$C124 -> 33.06837857 | S124: =Euro!R124*Sterling!$C124 -> 53.07898714 | T124: =Euro!S124*Sterling!$C124 -> 52.40066143 | U124: =Euro!T124*Sterling!$C124 -> 75.24845209 | V124: =Euro!U124*Sterling!$C124 -> 48.2900076 | W124: =Euro!V124*Sterling!$C124 -> 44.01664039 | X124: =Euro!W124*Sterling!$C124 -> 43.87027263
B125: 2013-04-07 | C125: 0.84745 | D125: =Euro!C125*Sterling!$C125 -> 44.0674 | E125: =Euro!D125*Sterling!$C125 -> 45.83865524 | F125: =Euro!E125*Sterling!$C125 -> 35.92365974 | G125: =Euro!F125*Sterling!$C125 -> 50.084295 | H125: =Euro!G125*Sterling!$C125 -> 34.2963015 | I125: =Euro!H125*Sterling!$C125 -> 44.558921 | J125: =Euro!I125*Sterling!$C125 -> 32.03361 | K125: =Euro!J125*Sterling!$C125 -> 0 | L125: =Euro!K125*Sterling!$C125 -> 64.9400935 | M125: =Euro!L125*Sterling!$C125 -> 39.99964 | N125: =Euro!M125*Sterling!$C125 -> 40.84115785 | O125: =Euro!N125*Sterling!$C125 -> 77.389134 | P125: =Euro!O125*Sterling!$C125 -> 39.406425 | Q125: =Euro!P125*Sterling!$C125 -> 35.43383363 | R125: =Euro!Q125*Sterling!$C125 -> 37.2878 | S125: =Euro!R125*Sterling!$C125 -> 57.3299925 | T125: =Euro!S125*Sterling!$C125 -> 49.101253 | U125: =Euro!T125*Sterling!$C125 -> 74.7230563 | V125: =Euro!U125*Sterling!$C125 -> 48.78998462 | W125: =Euro!V125*Sterling!$C125 -> 44.06731525 | X125: =Euro!W125*Sterling!$C125 -> 43.91046088
B126: 2013-04-14 | C126: 0.8511428571 | D126: =Euro!C126*Sterling!$C126 -> 44.25942857 | E126: =Euro!D126*Sterling!$C126 -> 45.24496689 | F126: =Euro!E126*Sterling!$C126 -> 36.07603046 | G126: =Euro!F126*Sterling!$C126 -> 50.30254286 | H126: =Euro!G126*Sterling!$C126 -> 32.84560286 | I126: =Euro!H126*Sterling!$C126 -> 44.75309143 | J126: =Euro!I126*Sterling!$C126 -> 32.34342857 | K126: =Euro!J126*Sterling!$C126 -> 0 | L126: =Euro!K126*Sterling!$C126 -> 64.90815429 | M126: =Euro!L126*Sterling!$C126 -> 36.00334286 | N126: =Euro!M126*Sterling!$C126 -> 34.34778489 | O126: =Euro!N126*Sterling!$C126 -> 77.72636571 | P126: =Euro!O126*Sterling!$C126 -> 39.36535714 | Q126: =Euro!P126*Sterling!$C126 -> 36.47581226 | R126: =Euro!Q126*Sterling!$C126 -> 34.04571429 | S126: =Euro!R126*Sterling!$C126 -> 52.91555143 | T126: =Euro!S126*Sterling!$C126 -> 48.21724286 | U126: =Euro!T126*Sterling!$C126 -> 75.80491071 | V126: =Euro!U126*Sterling!$C126 -> 48.8299806 | W126: =Euro!V126*Sterling!$C126 -> 44.083242 | X126: =Euro!W126*Sterling!$C126 -> 43.90661547
B127: 2013-04-21 | C127: 0.8549142857 | D127: =Euro!C127*Sterling!$C127 -> 44.45554286 | E127: =Euro!D127*Sterling!$C127 -> 48.29274014 | F127: =Euro!E127*Sterling!$C127 -> 36.23417414 | G127: =Euro!F127*Sterling!$C127 -> 50.69641714 | H127: =Euro!G127*Sterling!$C127 -> 34.17947314 | I127: =Euro!H127*Sterling!$C127 -> 42.60037886 | J127: =Euro!I127*Sterling!$C127 -> 31.46084571 | K127: =Euro!J127*Sterling!$C127 -> 0 | L127: =Euro!K127*Sterling!$C127 -> 64.751208 | M127: =Euro!L127*Sterling!$C127 -> 41.71981714 | N127: =Euro!M127*Sterling!$C127 -> 53.87866459 | O127: =Euro!N127*Sterling!$C127 -> 78.07077257 | P127: =Euro!O127*Sterling!$C127 -> 39.53978571 | Q127: =Euro!P127*Sterling!$C127 -> 36.54331114 | R127: =Euro!Q127*Sterling!$C127 -> 34.19657143 | S127: =Euro!R127*Sterling!$C127 -> 77.45523429 | T127: =Euro!S127*Sterling!$C127 -> 51.14952171 | U127: =Euro!T127*Sterling!$C127 -> 74.18219494 | V127: =Euro!U127*Sterling!$C127 -> 48.97000323 | W127: =Euro!V127*Sterling!$C127 -> 44.29225423 | X127: =Euro!W127*Sterling!$C127 -> 44.06876345
B128: 2013-04-28 | C128: 0.8486642857 | D128: =Euro!C128*Sterling!$C128 -> 42.85754643 | E128: =Euro!D128*Sterling!$C128 -> 47.95403006 | F128: =Euro!E128*Sterling!$C128 -> 35.97089035 | G128: =Euro!F128*Sterling!$C128 -> 50.24092571 | H128: =Euro!G128*Sterling!$C128 -> 33.47131943 | I128: =Euro!H128*Sterling!$C128 -> 41.02443157 | J128: =Euro!I128*Sterling!$C128 -> 30.38218143 | K128: =Euro!J128*Sterling!$C128 -> 0 | L128: =Euro!K128*Sterling!$C128 -> 63.61587486 | M128: =Euro!L128*Sterling!$C128 -> 41.41481714 | N128: =Euro!M128*Sterling!$C128 -> 39.57779843 | O128: =Euro!N128*Sterling!$C128 -> 77.50002257 | P128: =Euro!O128*Sterling!$C128 -> 38.40205893 | Q128: =Euro!P128*Sterling!$C128 -> 35.78291121 | R128: =Euro!Q128*Sterling!$C128 -> 33.09790714 | S128: =Euro!R128*Sterling!$C128 -> 65.703589 | T128: =Euro!S128*Sterling!$C128 -> 51.0301835 | U128: =Euro!T128*Sterling!$C128 -> 72.91137964 | V128: =Euro!U128*Sterling!$C128 -> 49.16999625 | W128: =Euro!V128*Sterling!$C128 -> 43.03763299 | X128: =Euro!W128*Sterling!$C128 -> 42.7489967
B129: 2013-05-05 | C129: 0.8436285714 | D129: =Euro!C129*Sterling!$C129 -> 40.91598571 | E129: =Euro!D129*Sterling!$C129 -> 58.9985736 | F129: =Euro!E129*Sterling!$C129 -> 35.87133995 | G129: =Euro!F129*Sterling!$C129 -> 48.17119143 | H129: =Euro!G129*Sterling!$C129 -> 33.19678429 | I129: =Euro!H129*Sterling!$C129 -> 39.63367029 | J129: =Euro!I129*Sterling!$C129 -> 28.85209714 | K129: =Euro!J129*Sterling!$C129 -> 0 | L129: =Euro!K129*Sterling!$C129 -> 62.79971086 | M129: =Euro!L129*Sterling!$C129 -> 34.58877143 | N129: =Euro!M129*Sterling!$C129 -> 42.49205261 | O129: =Euro!N129*Sterling!$C129 -> 77.04016114 | P129: =Euro!O129*Sterling!$C129 -> 35.22149286 | Q129: =Euro!P129*Sterling!$C129 -> 34.66689143 | R129: =Euro!Q129*Sterling!$C129 -> 32.05788571 | S129: =Euro!R129*Sterling!$C129 -> 51.84097571 | T129: =Euro!S129*Sterling!$C129 -> 48.86296686 | U129: =Euro!T129*Sterling!$C129 -> 73.00989437 | V129: =Euro!U129*Sterling!$C129 -> 49.55997278 | W129: =Euro!V129*Sterling!$C129 -> 41.72797821 | X129: =Euro!W129*Sterling!$C129 -> 41.39174418
B130: 2013-05-12 | C130: 0.8443214286 | D130: =Euro!C130*Sterling!$C130 -> 39.26094643 | E130: =Euro!D130*Sterling!$C130 -> 51.58153801 | F130: =Euro!E130*Sterling!$C130 -> 34.6624342 | G130: =Euro!F130*Sterling!$C130 -> 46.26881429 | H130: =Euro!G130*Sterling!$C130 -> 33.8657325 | I130: =Euro!H130*Sterling!$C130 -> 36.90528964 | J130: =Euro!I130*Sterling!$C130 -> 29.04465714 | K130: =Euro!J130*Sterling!$C130 -> 0 | L130: =Euro!K130*Sterling!$C130 -> 62.30247821 | M130: =Euro!L130*Sterling!$C130 -> 37.65673571 | N130: =Euro!M130*Sterling!$C130 -> 35.92731213 | O130: =Euro!N130*Sterling!$C130 -> 77.10343286 | P130: =Euro!O130*Sterling!$C130 -> 32.71745536 | Q130: =Euro!P130*Sterling!$C130 -> 36.67419887 | R130: =Euro!Q130*Sterling!$C130 -> 31.23989286 | S130: =Euro!R130*Sterling!$C130 -> 66.09348143 | T130: =Euro!S130*Sterling!$C130 -> 46.22659821 | U130: =Euro!T130*Sterling!$C130 -> 73.5495151 | V130: =Euro!U130*Sterling!$C130 -> 49.55997921 | W130: =Euro!V130*Sterling!$C130 -> 40.4098146 | X130: =Euro!W130*Sterling!$C130 -> 39.91654
B131: 2013-05-19 | C131: 0.8454214286 | D131: =Euro!C131*Sterling!$C131 -> 37.62125357 | E131: =Euro!D131*Sterling!$C131 -> 48.77828016 | F131: =Euro!E131*Sterling!$C131 -> 34.70869221 | G131: =Euro!F131*Sterling!$C131 -> 45.31458857 | H131: =Euro!G131*Sterling!$C131 -> 32.46418286 | I131: =Euro!H131*Sterling!$C131 -> 35.06808086 | J131: =Euro!I131*Sterling!$C131 -> 28.57524429 | K131: =Euro!J131*Sterling!$C131 -> 0 | L131: =Euro!K131*Sterling!$C131 -> 60.65053329 | M131: =Euro!L131*Sterling!$C131 -> 39.81934929 | N131: =Euro!M131*Sterling!$C131 -> 49.92298078 | O131: =Euro!N131*Sterling!$C131 -> 77.20388486 | P131: =Euro!O131*Sterling!$C131 -> 30.64652679 | Q131: =Euro!P131*Sterling!$C131 -> 35.47117779 | R131: =Euro!Q131*Sterling!$C131 -> 31.28059286 | S131: =Euro!R131*Sterling!$C131 -> 59.94037929 | T131: =Euro!S131*Sterling!$C131 -> 47.05615671 | U131: =Euro!T131*Sterling!$C131 -> 71.88440869 | V131: =Euro!U131*Sterling!$C131 -> 49.63004225 | W131: =Euro!V131*Sterling!$C131 -> 39.56792095 | X131: =Euro!W131*Sterling!$C131 -> 39.02606562
B132: 2013-05-26 | C132: 0.8520285714 | D132: =Euro!C132*Sterling!$C132 -> 36.21121429 | E132: =Euro!D132*Sterling!$C132 -> 48.92842234 | F132: =Euro!E132*Sterling!$C132 -> 34.98020341 | G132: =Euro!F132*Sterling!$C132 -> 45.32792 | H132: =Euro!G132*Sterling!$C132 -> 32.624174 | I132: =Euro!H132*Sterling!$C132 -> 34.21746743 | J132: =Euro!I132*Sterling!$C132 -> 28.28734857 | K132: =Euro!J132*Sterling!$C132 -> 0 | L132: =Euro!K132*Sterling!$C132 -> 59.69312171 | M132: =Euro!L132*Sterling!$C132 -> 35.87040286 | N132: =Euro!M132*Sterling!$C132 -> 39.60467368 | O132: =Euro!N132*Sterling!$C132 -> 77.80724914 | P132: =Euro!O132*Sterling!$C132 -> 29.18197857 | Q132: =Euro!P132*Sterling!$C132 -> 34.87659673 | R132: =Euro!Q132*Sterling!$C132 -> 31.52505714 | S132: =Euro!R132*Sterling!$C132 -> 50.13336114 | T132: =Euro!S132*Sterling!$C132 -> 46.51223971 | U132: =Euro!T132*Sterling!$C132 -> 72.91728677 | V132: =Euro!U132*Sterling!$C132 -> 49.89002178 | W132: =Euro!V132*Sterling!$C132 -> 38.83137255 | X132: =Euro!W132*Sterling!$C132 -> 38.24966854
B133: 2013-06-02 | C133: 0.8554 | D133: =Euro!C133*Sterling!$C133 -> 36.3545 | E133: =Euro!D133*Sterling!$C133 -> 49.49960288 | F133: =Euro!E133*Sterling!$C133 -> 35.1145977 | G133: =Euro!F133*Sterling!$C133 -> 45.42174 | H133: =Euro!G133*Sterling!$C133 -> 33.523126 | I133: =Euro!H133*Sterling!$C133 -> 33.74553 | J133: =Euro!I133*Sterling!$C133 -> 27.88604 | K133: =Euro!J133*Sterling!$C133 -> 0 | L133: =Euro!K133*Sterling!$C133 -> 58.543576 | M133: =Euro!L133*Sterling!$C133 -> 37.46652 | N133: =Euro!M133*Sterling!$C133 -> 41.11172156 | O133: =Euro!N133*Sterling!$C133 -> 78.115128 | P133: =Euro!O133*Sterling!$C133 -> 29.29745 | Q133: =Euro!P133*Sterling!$C133 -> 35.2407692 | R133: =Euro!Q133*Sterling!$C133 -> 31.6498 | S133: =Euro!R133*Sterling!$C133 -> 65.472316 | T133: =Euro!S133*Sterling!$C133 -> 47.825414 | U133: =Euro!T133*Sterling!$C133 -> 73.76747196 | V133: =Euro!U133*Sterling!$C133 -> 50.28999248 | W133: =Euro!V133*Sterling!$C133 -> 38.852268 | X133: =Euro!W133*Sterling!$C133 -> 38.2492254
B134: 2013-06-09 | C134: 0.852 | D134: =Euro!C134*Sterling!$C134 -> 36.21 | E134: =Euro!D134*Sterling!$C134 -> 47.2478304 | F134: =Euro!E134*Sterling!$C134 -> 34.971192 | G134: =Euro!F134*Sterling!$C134 -> 45.156 | H134: =Euro!G134*Sterling!$C134 -> 33.19392 | I134: =Euro!H134*Sterling!$C134 -> 33.3132 | J134: =Euro!I134*Sterling!$C134 -> 27.6048 | K134: =Euro!J134*Sterling!$C134 -> 0 | L134: =Euro!K134*Sterling!$C134 -> 56.63244 | M134: =Euro!L134*Sterling!$C134 -> 37.2324 | N134: =Euro!M134*Sterling!$C134 -> 36.5561676 | O134: =Euro!N134*Sterling!$C134 -> 77.80464 | P134: =Euro!O134*Sterling!$C134 -> 29.181 | Q134: =Euro!P134*Sterling!$C134 -> 35.1939048 | R134: =Euro!Q134*Sterling!$C134 -> 31.524 | S134: =Euro!R134*Sterling!$C134 -> 58.48128 | T134: =Euro!S134*Sterling!$C134 -> 47.6694 | U134: =Euro!T134*Sterling!$C134 -> 75.0662268 | V134: =Euro!U134*Sterling!$C134 -> 51.0600192 | W134: =Euro!V134*Sterling!$C134 -> 38.3998956 | X134: =Euro!W134*Sterling!$C134 -> 37.75562987
B135: 2013-06-16 | C135: 0.8509071429 | D135: =Euro!C135*Sterling!$C135 -> 36.58900714 | E135: =Euro!D135*Sterling!$C135 -> 46.51118006 | F135: =Euro!E135*Sterling!$C135 -> 35.82684962 | G135: =Euro!F135*Sterling!$C135 -> 45.60862286 | H135: =Euro!G135*Sterling!$C135 -> 33.42363257 | I135: =Euro!H135*Sterling!$C135 -> 33.27046929 | J135: =Euro!I135*Sterling!$C135 -> 28.42029857 | K135: =Euro!J135*Sterling!$C135 -> 0 | L135: =Euro!K135*Sterling!$C135 -> 55.56423643 | M135: =Euro!L135*Sterling!$C135 -> 37.95045857 | N135: =Euro!M135*Sterling!$C135 -> 37.46671786 | O135: =Euro!N135*Sterling!$C135 -> 77.70484029 | P135: =Euro!O135*Sterling!$C135 -> 29.14356964 | Q135: =Euro!P135*Sterling!$C135 -> 35.01916855 | R135: =Euro!Q135*Sterling!$C135 -> 31.48356429 | S135: =Euro!R135*Sterling!$C135 -> 68.26828007 | T135: =Euro!S135*Sterling!$C135 -> 47.50614579 | U135: =Euro!T135*Sterling!$C135 -> 74.47854076 | V135: =Euro!U135*Sterling!$C135 -> 51.5600376 | W135: =Euro!V135*Sterling!$C135 -> 38.6328861 | X135: =Euro!W135*Sterling!$C135 -> 37.98490258
B136: 2013-06-23 | C136: 0.8531642857 | D136: =Euro!C136*Sterling!$C136 -> 37.11264643 | E136: =Euro!D136*Sterling!$C136 -> 47.04458783 | F136: =Euro!E136*Sterling!$C136 -> 36.37431806 | G136: =Euro!F136*Sterling!$C136 -> 45.72960571 | H136: =Euro!G136*Sterling!$C136 -> 33.10277429 | I136: =Euro!H136*Sterling!$C136 -> 33.94740693 | J136: =Euro!I136*Sterling!$C136 -> 28.66632 | K136: =Euro!J136*Sterling!$C136 -> 0 | L136: =Euro!K136*Sterling!$C136 -> 55.20826093 | M136: =Euro!L136*Sterling!$C136 -> 37.624545 | N136: =Euro!M136*Sterling!$C136 -> 42.96270862 | O136: =Euro!N136*Sterling!$C136 -> 77.91096257 | P136: =Euro!O136*Sterling!$C136 -> 29.22087679 | Q136: =Euro!P136*Sterling!$C136 -> 34.69384036 | R136: =Euro!Q136*Sterling!$C136 -> 31.56707857 | S136: =Euro!R136*Sterling!$C136 -> 59.38023429 | T136: =Euro!S136*Sterling!$C136 -> 47.61509879 | U136: =Euro!T136*Sterling!$C136 -> 73.70238847 | V136: =Euro!U136*Sterling!$C136 -> 51.93995918 | W136: =Euro!V136*Sterling!$C136 -> 38.92885028 | X136: =Euro!W136*Sterling!$C136 -> 38.30187689
B137: 2013-06-30 | C137: 0.8526785714 | D137: =Euro!C137*Sterling!$C137 -> 37.51785714 | E137: =Euro!D137*Sterling!$C137 -> 61.06363795 | F137: =Euro!E137*Sterling!$C137 -> 37.26657277 | G137: =Euro!F137*Sterling!$C137 -> 45.70357143 | H137: =Euro!G137*Sterling!$C137 -> 33.71491071 | I137: =Euro!H137*Sterling!$C137 -> 34.62727679 | J137: =Euro!I137*Sterling!$C137 -> 28.82053571 | K137: =Euro!J137*Sterling!$C137 -> 0 | L137: =Euro!K137*Sterling!$C137 -> 54.92102679 | M137: =Euro!L137*Sterling!$C137 -> 36.75044643 | N137: =Euro!M137*Sterling!$C137 -> 40.21973973 | O137: =Euro!N137*Sterling!$C137 -> 77.86660714 | P137: =Euro!O137*Sterling!$C137 -> 29.20424107 | Q137: =Euro!P137*Sterling!$C137 -> 34.29609643 | R137: =Euro!Q137*Sterling!$C137 -> 31.54910714 | S137: =Euro!R137*Sterling!$C137 -> 65.65625 | T137: =Euro!S137*Sterling!$C137 -> 48.30424107 | U137: =Euro!T137*Sterling!$C137 -> 73.04982589 | V137: =Euro!U137*Sterling!$C137 -> 52.50001652 | W137: =Euro!V137*Sterling!$C137 -> 39.2479429 | X137: =Euro!W137*Sterling!$C137 -> 38.64385883
B138: 2013-07-07 | C138: 0.85735 | D138: =Euro!C138*Sterling!$C138 -> 37.7234 | E138: =Euro!D138*Sterling!$C138 -> 61.19275611 | F138: =Euro!E138*Sterling!$C138 -> 37.46782397 | G138: =Euro!F138*Sterling!$C138 -> 46.039695 | H138: =Euro!G138*Sterling!$C138 -> 33.8396045 | I138: =Euro!H138*Sterling!$C138 -> 34.8341305 | J138: =Euro!I138*Sterling!$C138 -> 28.97843 | K138: =Euro!J138*Sterling!$C138 -> 39.95216706 | L138: =Euro!K138*Sterling!$C138 -> 55.161899 | M138: =Euro!L138*Sterling!$C138 -> 37.637665 | N138: =Euro!M138*Sterling!$C138 -> 37.99003585 | O138: =Euro!N138*Sterling!$C138 -> 78.293202 | P138: =Euro!O138*Sterling!$C138 -> 29.3642375 | Q138: =Euro!P138*Sterling!$C138 -> 34.36704622 | R138: =Euro!Q138*Sterling!$C138 -> 31.72195 | S138: =Euro!R138*Sterling!$C138 -> 58.5998725 | T138: =Euro!S138*Sterling!$C138 -> 47.805836 | U138: =Euro!T138*Sterling!$C138 -> 73.88659447 | V138: =Euro!U138*Sterling!$C138 -> 53.23003224 | W138: =Euro!V138*Sterling!$C138 -> 39.39036633 | X138: =Euro!W138*Sterling!$C138 -> 38.77916721
B139: 2013-07-14 | C139: 0.8622357143 | D139: =Euro!C139*Sterling!$C139 -> 37.93837143 | E139: =Euro!D139*Sterling!$C139 -> 61.64838777 | F139: =Euro!E139*Sterling!$C139 -> 38.03321736 | G139: =Euro!F139*Sterling!$C139 -> 46.30205786 | H139: =Euro!G139*Sterling!$C139 -> 34.31698143 | I139: =Euro!H139*Sterling!$C139 -> 34.97228057 | J139: =Euro!I139*Sterling!$C139 -> 29.14356714 | K139: =Euro!J139*Sterling!$C139 -> 37.48311097 | L139: =Euro!K139*Sterling!$C139 -> 55.44175643 | M139: =Euro!L139*Sterling!$C139 -> 34.23075786 | N139: =Euro!M139*Sterling!$C139 -> 38.19324831 | O139: =Euro!N139*Sterling!$C139 -> 78.73936543 | P139: =Euro!O139*Sterling!$C139 -> 29.53157321 | Q139: =Euro!P139*Sterling!$C139 -> 34.42044971 | R139: =Euro!Q139*Sterling!$C139 -> 31.90272143 | S139: =Euro!R139*Sterling!$C139 -> 56.45057221 | T139: =Euro!S139*Sterling!$C139 -> 45.8105835 | U139: =Euro!T139*Sterling!$C139 -> 74.75255993 | V139: =Euro!U139*Sterling!$C139 -> 53.87998888 | W139: =Euro!V139*Sterling!$C139 -> 39.57899877 | X139: =Euro!W139*Sterling!$C139 -> 38.95462465
B140: 2013-07-21 | C140: 0.86295 | D140: =Euro!C140*Sterling!$C140 -> 37.9698 | E140: =Euro!D140*Sterling!$C140 -> 51.10458936 | F140: =Euro!E140*Sterling!$C140 -> 38.07085144 | G140: =Euro!F140*Sterling!$C140 -> 46.25412 | H140: =Euro!G140*Sterling!$C140 -> 33.9053055 | I140: =Euro!H140*Sterling!$C140 -> 35.001252 | J140: =Euro!I140*Sterling!$C140 -> 28.64994 | K140: =Euro!J140*Sterling!$C140 -> 37.54143162 | L140: =Euro!K140*Sterling!$C140 -> 55.4790555 | M140: =Euro!L140*Sterling!$C140 -> 31.75656 | N140: =Euro!M140*Sterling!$C140 -> 40.40927335 | O140: =Euro!N140*Sterling!$C140 -> 78.804594 | P140: =Euro!O140*Sterling!$C140 -> 29.5560375 | Q140: =Euro!P140*Sterling!$C140 -> 34.75393053 | R140: =Euro!Q140*Sterling!$C140 -> 33.65505 | S140: =Euro!R140*Sterling!$C140 -> 58.404456 | T140: =Euro!S140*Sterling!$C140 -> 48.5236785 | U140: =Euro!T140*Sterling!$C140 -> 73.6458789 | V140: =Euro!U140*Sterling!$C140 -> 53.54000685 | W140: =Euro!V140*Sterling!$C140 -> 39.53069211 | X140: =Euro!W140*Sterling!$C140 -> 38.91687587
B141: 2013-07-28 | C141: 0.8609857143 | D141: =Euro!C141*Sterling!$C141 -> 38.74435714 | E141: =Euro!D141*Sterling!$C141 -> 50.99024306 | F141: =Euro!E141*Sterling!$C141 -> 38.79265844 | G141: =Euro!F141*Sterling!$C141 -> 47.18201714 | H141: =Euro!G141*Sterling!$C141 -> 33.82812871 | I141: =Euro!H141*Sterling!$C141 -> 34.92158057 | J141: =Euro!I141*Sterling!$C141 -> 28.92912 | K141: =Euro!J141*Sterling!$C141 -> 37.05398389 | L141: =Euro!K141*Sterling!$C141 -> 55.35277157 | M141: =Euro!L141*Sterling!$C141 -> 37.28068143 | N141: =Euro!M141*Sterling!$C141 -> 35.85686935 | O141: =Euro!N141*Sterling!$C141 -> 78.62521543 | P141: =Euro!O141*Sterling!$C141 -> 30.34974643 | Q141: =Euro!P141*Sterling!$C141 -> 35.57532702 | R141: =Euro!Q141*Sterling!$C141 -> 34.43942857 | S141: =Euro!R141*Sterling!$C141 -> 58.27151314 | T141: =Euro!S141*Sterling!$C141 -> 45.13287114 | U141: =Euro!T141*Sterling!$C141 -> 74.76489988 | V141: =Euro!U141*Sterling!$C141 -> 53.58000199 | W141: =Euro!V141*Sterling!$C141 -> 39.86643223 | X141: =Euro!W141*Sterling!$C141 -> 39.25042051
B142: 2013-08-04 | C142: 0.8681714286 | D142: =Euro!C142*Sterling!$C142 -> 39.06771429 | E142: =Euro!D142*Sterling!$C142 -> 45.51666529 | F142: =Euro!E142*Sterling!$C142 -> 39.94309154 | G142: =Euro!F142*Sterling!$C142 -> 48.18351429 | H142: =Euro!G142*Sterling!$C142 -> 33.69373314 | I142: =Euro!H142*Sterling!$C142 -> 34.58794971 | J142: =Euro!I142*Sterling!$C142 -> 29.69146286 | K142: =Euro!J142*Sterling!$C142 -> 37.32885373 | L142: =Euro!K142*Sterling!$C142 -> 55.81474114 | M142: =Euro!L142*Sterling!$C142 -> 35.76866286 | N142: =Euro!M142*Sterling!$C142 -> 33.87231601 | O142: =Euro!N142*Sterling!$C142 -> 79.28141486 | P142: =Euro!O142*Sterling!$C142 -> 30.60304286 | Q142: =Euro!P142*Sterling!$C142 -> 35.04556287 | R142: =Euro!Q142*Sterling!$C142 -> 34.72685714 | S142: =Euro!R142*Sterling!$C142 -> 46.69894114 | T142: =Euro!S142*Sterling!$C142 -> 46.004404 | U142: =Euro!T142*Sterling!$C142 -> 74.0603187 | V142: =Euro!U142*Sterling!$C142 -> 53.53995837 | W142: =Euro!V142*Sterling!$C142 -> 40.07418495 | X142: =Euro!W142*Sterling!$C142 -> 39.43944579
B143: 2013-08-11 | C143: 0.8636571429 | D143: =Euro!C143*Sterling!$C143 -> 38.86457143 | E143: =Euro!D143*Sterling!$C143 -> 49.90798258 | F143: =Euro!E143*Sterling!$C143 -> 39.72788311 | G143: =Euro!F143*Sterling!$C143 -> 48.19206857 | H143: =Euro!G143*Sterling!$C143 -> 34.26127886 | I143: =Euro!H143*Sterling!$C143 -> 33.60489943 | J143: =Euro!I143*Sterling!$C143 -> 29.53707429 | K143: =Euro!J143*Sterling!$C143 -> 37.10884282 | L143: =Euro!K143*Sterling!$C143 -> 55.52451771 | M143: =Euro!L143*Sterling!$C143 -> 38.00091429 | N143: =Euro!M143*Sterling!$C143 -> 36.09309566 | O143: =Euro!N143*Sterling!$C143 -> 78.86917029 | P143: =Euro!O143*Sterling!$C143 -> 30.44391429 | Q143: =Euro!P143*Sterling!$C143 -> 35.24731622 | R143: =Euro!Q143*Sterling!$C143 -> 34.54628571 | S143: =Euro!R143*Sterling!$C143 -> 61.725576 | T143: =Euro!S143*Sterling!$C143 -> 49.16800114 | U143: =Euro!T143*Sterling!$C143 -> 73.75010167 | V143: =Euro!U143*Sterling!$C143 -> 53.74996138 | W143: =Euro!V143*Sterling!$C143 -> 40.02429071 | X143: =Euro!W143*Sterling!$C143 -> 39.35487747
B144: 2013-08-18 | C144: 0.8562428571 | D144: =Euro!C144*Sterling!$C144 -> 38.95905 | E144: =Euro!D144*Sterling!$C144 -> 47.0442088 | F144: =Euro!E144*Sterling!$C144 -> 40.41063852 | G144: =Euro!F144*Sterling!$C144 -> 48.37772143 | H144: =Euro!G144*Sterling!$C144 -> 32.19473143 | I144: =Euro!H144*Sterling!$C144 -> 33.31640957 | J144: =Euro!I144*Sterling!$C144 -> 28.94100857 | K144: =Euro!J144*Sterling!$C144 -> 36.67485093 | L144: =Euro!K144*Sterling!$C144 -> 55.04785329 | M144: =Euro!L144*Sterling!$C144 -> 36.81844286 | N144: =Euro!M144*Sterling!$C144 -> 33.65394051 | O144: =Euro!N144*Sterling!$C144 -> 78.19209771 | P144: =Euro!O144*Sterling!$C144 -> 31.03880357 | Q144: =Euro!P144*Sterling!$C144 -> 34.84762867 | R144: =Euro!Q144*Sterling!$C144 -> 34.24971429 | S144: =Euro!R144*Sterling!$C144 -> 59.73150171 | T144: =Euro!S144*Sterling!$C144 -> 48.63459429 | U144: =Euro!T144*Sterling!$C144 -> 74.22144271 | V144: =Euro!U144*Sterling!$C144 -> 53.57999616 | W144: =Euro!V144*Sterling!$C144 -> 39.89031987 | X144: =Euro!W144*Sterling!$C144 -> 39.21966291
B145: 2013-08-25 | C145: 0.8553214286 | D145: =Euro!C145*Sterling!$C145 -> 40.20010714 | E145: =Euro!D145*Sterling!$C145 -> 43.84052621 | F145: =Euro!E145*Sterling!$C145 -> 41.28944451 | G145: =Euro!F145*Sterling!$C145 -> 49.18098214 | H145: =Euro!G145*Sterling!$C145 -> 33.20357786 | I145: =Euro!H145*Sterling!$C145 -> 33.5286 | J145: =Euro!I145*Sterling!$C145 -> 27.71241429 | K145: =Euro!J145*Sterling!$C145 -> 36.2710171 | L145: =Euro!K145*Sterling!$C145 -> 55.0228275 | M145: =Euro!L145*Sterling!$C145 -> 36.35116071 | N145: =Euro!M145*Sterling!$C145 -> 39.07373435 | O145: =Euro!N145*Sterling!$C145 -> 78.10795286 | P145: =Euro!O145*Sterling!$C145 -> 32.07455357 | Q145: =Euro!P145*Sterling!$C145 -> 35.21281342 | R145: =Euro!Q145*Sterling!$C145 -> 37.63414286 | S145: =Euro!R145*Sterling!$C145 -> 57.79406893 | T145: =Euro!S145*Sterling!$C145 -> 46.62357107 | U145: =Euro!T145*Sterling!$C145 -> 73.8132129 | V145: =Euro!U145*Sterling!$C145 -> 53.65995834 | W145: =Euro!V145*Sterling!$C145 -> 40.33695857 | X145: =Euro!W145*Sterling!$C145 -> 39.6878361
B146: 2013-09-01 | C146: 0.8577857143 | D146: =Euro!C146*Sterling!$C146 -> 41.17371429 | E146: =Euro!D146*Sterling!$C146 -> 50.73004759 | F146: =Euro!E146*Sterling!$C146 -> 42.20305714 | G146: =Euro!F146*Sterling!$C146 -> 50.35202143 | H146: =Euro!G146*Sterling!$C146 -> 33.03332786 | I146: =Euro!H146*Sterling!$C146 -> 34.55160857 | J146: =Euro!I146*Sterling!$C146 -> 29.16471429 | K146: =Euro!J146*Sterling!$C146 -> 36.3080106 | L146: =Euro!K146*Sterling!$C146 -> 55.14704357 | M146: =Euro!L146*Sterling!$C146 -> 35.42655 | N146: =Euro!M146*Sterling!$C146 -> 35.81795762 | O146: =Euro!N146*Sterling!$C146 -> 78.33299143 | P146: =Euro!O146*Sterling!$C146 -> 33.02475 | Q146: =Euro!P146*Sterling!$C146 -> 34.65256995 | R146: =Euro!Q146*Sterling!$C146 -> 38.60035714 | S146: =Euro!R146*Sterling!$C146 -> 57.96058071 | T146: =Euro!S146*Sterling!$C146 -> 47.92448786 | U146: =Euro!T146*Sterling!$C146 -> 73.46574373 | V146: =Euro!U146*Sterling!$C146 -> 53.65998626 | W146: =Euro!V146*Sterling!$C146 -> 41.13730892 | X146: =Euro!W146*Sterling!$C146 -> 40.51360282
B147: 2013-09-08 | C147: 0.8457 | D147: =Euro!C147*Sterling!$C147 -> 40.5936 | E147: =Euro!D147*Sterling!$C147 -> 50.62554711 | F147: =Euro!E147*Sterling!$C147 -> 42.97179297 | G147: =Euro!F147*Sterling!$C147 -> 49.98087 | H147: =Euro!G147*Sterling!$C147 -> 31.096389 | I147: =Euro!H147*Sterling!$C147 -> 35.35026 | J147: =Euro!I147*Sterling!$C147 -> 28.7538 | K147: =Euro!J147*Sterling!$C147 -> 35.29858773 | L147: =Euro!K147*Sterling!$C147 -> 54.403881 | M147: =Euro!L147*Sterling!$C147 -> 33.15144 | N147: =Euro!M147*Sterling!$C147 -> 30.90390768 | O147: =Euro!N147*Sterling!$C147 -> 77.229324 | P147: =Euro!O147*Sterling!$C147 -> 32.55945 | Q147: =Euro!P147*Sterling!$C147 -> 35.74469448 | R147: =Euro!Q147*Sterling!$C147 -> 40.5936 | S147: =Euro!R147*Sterling!$C147 -> 57.143949 | T147: =Euro!S147*Sterling!$C147 -> 47.283087 | U147: =Euro!T147*Sterling!$C147 -> 70.53789189 | V147: =Euro!U147*Sterling!$C147 -> 53.70000489 | W147: =Euro!V147*Sterling!$C147 -> 41.07570402 | X147: =Euro!W147*Sterling!$C147 -> 40.48508148
B148: 2013-09-15 | C148: 0.8413285714 | D148: =Euro!C148*Sterling!$C148 -> 38.70111429 | E148: =Euro!D148*Sterling!$C148 -> 54.03988027 | F148: =Euro!E148*Sterling!$C148 -> 42.75345748 | G148: =Euro!F148*Sterling!$C148 -> 49.80665143 | H148: =Euro!G148*Sterling!$C148 -> 32.47528286 | I148: =Euro!H148*Sterling!$C148 -> 35.453586 | J148: =Euro!I148*Sterling!$C148 -> 28.77343714 | K148: =Euro!J148*Sterling!$C148 -> 35.08777634 | L148: =Euro!K148*Sterling!$C148 -> 54.31617257 | M148: =Euro!L148*Sterling!$C148 -> 38.11218429 | N148: =Euro!M148*Sterling!$C148 -> 30.81685598 | O148: =Euro!N148*Sterling!$C148 -> 76.83012514 | P148: =Euro!O148*Sterling!$C148 -> 31.54982143 | Q148: =Euro!P148*Sterling!$C148 -> 35.51079634 | R148: =Euro!Q148*Sterling!$C148 -> 40.38377143 | S148: =Euro!R148*Sterling!$C148 -> 56.84857157 | T148: =Euro!S148*Sterling!$C148 -> 45.28030371 | U148: =Euro!T148*Sterling!$C148 -> 71.63938026 | V148: =Euro!U148*Sterling!$C148 -> 54.08001164 | W148: =Euro!V148*Sterling!$C148 -> 40.87304384 | X148: =Euro!W148*Sterling!$C148 -> 40.27566568
B149: 2013-09-22 | C149: 0.8404428571 | D149: =Euro!C149*Sterling!$C149 -> 37.81992857 | E149: =Euro!D149*Sterling!$C149 -> 53.98475435 | F149: =Euro!E149*Sterling!$C149 -> 42.71424755 | G149: =Euro!F149*Sterling!$C149 -> 49.16590714 | H149: =Euro!G149*Sterling!$C149 -> 32.32343229 | I149: =Euro!H149*Sterling!$C149 -> 35.416262 | J149: =Euro!I149*Sterling!$C149 -> 28.40696857 | K149: =Euro!J149*Sterling!$C149 -> 35.14866499 | L149: =Euro!K149*Sterling!$C149 -> 54.42707943 | M149: =Euro!L149*Sterling!$C149 -> 35.46668857 | N149: =Euro!M149*Sterling!$C149 -> 36.53690851 | O149: =Euro!N149*Sterling!$C149 -> 76.74924171 | P149: =Euro!O149*Sterling!$C149 -> 30.67616429 | Q149: =Euro!P149*Sterling!$C149 -> 36.32469668 | R149: =Euro!Q149*Sterling!$C149 -> 40.34125714 | S149: =Euro!R149*Sterling!$C149 -> 65.62177829 | T149: =Euro!S149*Sterling!$C149 -> 47.04799114 | U149: =Euro!T149*Sterling!$C149 -> 71.29476757 | V149: =Euro!U149*Sterling!$C149 -> 54.14998542 | W149: =Euro!V149*Sterling!$C149 -> 40.81958125 | X149: =Euro!W149*Sterling!$C149 -> 40.22602388
B150: 2013-09-29 | C150: 0.8417871429 | D150: =Euro!C150*Sterling!$C150 -> 35.77595357 | E150: =Euro!D150*Sterling!$C150 -> 53.98465126 | F150: =Euro!E150*Sterling!$C150 -> 42.78155871 | G150: =Euro!F150*Sterling!$C150 -> 47.56097357 | H150: =Euro!G150*Sterling!$C150 -> 33.33477086 | I150: =Euro!H150*Sterling!$C150 -> 34.08396141 | J150: =Euro!I150*Sterling!$C150 -> 28.284048 | K150: =Euro!J150*Sterling!$C150 -> 35.15235766 | L150: =Euro!K150*Sterling!$C150 -> 54.6824928 | M150: =Euro!L150*Sterling!$C150 -> 38.301315 | N150: =Euro!M150*Sterling!$C150 -> 33.00975684 | O150: =Euro!N150*Sterling!$C150 -> 76.87200189 | P150: =Euro!O150*Sterling!$C150 -> 29.88344357 | Q150: =Euro!P150*Sterling!$C150 -> 35.78883291 | R150: =Euro!Q150*Sterling!$C150 -> 40.40578286 | S150: =Euro!R150*Sterling!$C150 -> 66.78739191 | T150: =Euro!S150*Sterling!$C150 -> 47.4936306 | U150: =Euro!T150*Sterling!$C150 -> 74.25151851 | V150: =Euro!U150*Sterling!$C150 -> 54.18003005 | W150: =Euro!V150*Sterling!$C150 -> 39.99328977 | X150: =Euro!W150*Sterling!$C150 -> 39.35992343
B151: 2013-10-06 | C151: 0.8396928571 | D151: =Euro!C151*Sterling!$C151 -> 35.68694643 | E151: =Euro!D151*Sterling!$C151 -> 54.27556308 | F151: =Euro!E151*Sterling!$C151 -> 41.8790095 | G151: =Euro!F151*Sterling!$C151 -> 47.44264643 | H151: =Euro!G151*Sterling!$C151 -> 32.17703029 | I151: =Euro!H151*Sterling!$C151 -> 33.94038529 | J151: =Euro!I151*Sterling!$C151 -> 28.21368 | K151: =Euro!J151*Sterling!$C151 -> 33.12529543 | L151: =Euro!K151*Sterling!$C151 -> 54.4876695 | M151: =Euro!L151*Sterling!$C151 -> 35.77091571 | N151: =Euro!M151*Sterling!$C151 -> 31.4872226 | O151: =Euro!N151*Sterling!$C151 -> 76.68075171 | P151: =Euro!O151*Sterling!$C151 -> 28.96940357 | Q151: =Euro!P151*Sterling!$C151 -> 36.10225852 | R151: =Euro!Q151*Sterling!$C151 -> 40.30525714 | S151: =Euro!R151*Sterling!$C151 -> 56.87239721 | T151: =Euro!S151*Sterling!$C151 -> 47.34188329 | U151: =Euro!T151*Sterling!$C151 -> 70.51245196 | V151: =Euro!U151*Sterling!$C151 -> 54.41999026 | W151: =Euro!V151*Sterling!$C151 -> 39.64563337 | X151: =Euro!W151*Sterling!$C151 -> 38.99373552
B152: 2013-10-13 | C152: 0.8465357143 | D152: =Euro!C152*Sterling!$C152 -> 35.97776786 | E152: =Euro!D152*Sterling!$C152 -> 47.66317755 | F152: =Euro!E152*Sterling!$C152 -> 42.21580488 | G152: =Euro!F152*Sterling!$C152 -> 47.91392143 | H152: =Euro!G152*Sterling!$C152 -> 34.57251857 | I152: =Euro!H152*Sterling!$C152 -> 34.21697357 | J152: =Euro!I152*Sterling!$C152 -> 27.93567857 | K152: =Euro!J152*Sterling!$C152 -> 33.41742059 | L152: =Euro!K152*Sterling!$C152 -> 54.5169 | M152: =Euro!L152*Sterling!$C152 -> 31.74508929 | N152: =Euro!M152*Sterling!$C152 -> 31.49815482 | O152: =Euro!N152*Sterling!$C152 -> 77.30564143 | P152: =Euro!O152*Sterling!$C152 -> 29.20548214 | Q152: =Euro!P152*Sterling!$C152 -> 36.84021844 | R152: =Euro!Q152*Sterling!$C152 -> 40.63371429 | S152: =Euro!R152*Sterling!$C152 -> 57.20041821 | T152: =Euro!S152*Sterling!$C152 -> 46.18698857 | U152: =Euro!T152*Sterling!$C152 -> 71.71384977 | V152: =Euro!U152*Sterling!$C152 -> 54.25997641 | W152: =Euro!V152*Sterling!$C152 -> 39.83442178 | X152: =Euro!W152*Sterling!$C152 -> 39.19649385
B153: 2013-10-20 | C153: 0.8467785714 | D153: =Euro!C153*Sterling!$C153 -> 35.98808929 | E153: =Euro!D153*Sterling!$C153 -> 49.72063609 | F153: =Euro!E153*Sterling!$C153 -> 42.23189576 | G153: =Euro!F153*Sterling!$C153 -> 47.92766714 | H153: =Euro!G153*Sterling!$C153 -> 33.19372 | I153: =Euro!H153*Sterling!$C153 -> 33.67638379 | J153: =Euro!I153*Sterling!$C153 -> 27.77433714 | K153: =Euro!J153*Sterling!$C153 -> 34.08774882 | L153: =Euro!K153*Sterling!$C153 -> 54.14302186 | M153: =Euro!L153*Sterling!$C153 -> 38.10503571 | N153: =Euro!M153*Sterling!$C153 -> 37.60941622 | O153: =Euro!N153*Sterling!$C153 -> 77.32781914 | P153: =Euro!O153*Sterling!$C153 -> 29.21386071 | Q153: =Euro!P153*Sterling!$C153 -> 36.57372135 | R153: =Euro!Q153*Sterling!$C153 -> 39.79859286 | S153: =Euro!R153*Sterling!$C153 -> 59.34224229 | T153: =Euro!S153*Sterling!$C153 -> 46.09015764 | U153: =Euro!T153*Sterling!$C153 -> 70.35493632 | V153: =Euro!U153*Sterling!$C153 -> 54.12998147 | W153: =Euro!V153*Sterling!$C153 -> 39.81593619 | X153: =Euro!W153*Sterling!$C153 -> 39.1687241
B154: 2013-10-27 | C154: 0.8497642857 | D154: =Euro!C154*Sterling!$C154 -> 36.11498214 | E154: =Euro!D154*Sterling!$C154 -> 49.68996661 | F154: =Euro!E154*Sterling!$C154 -> 42.37859469 | G154: =Euro!F154*Sterling!$C154 -> 47.92670571 | H154: =Euro!G154*Sterling!$C154 -> 33.15780243 | I154: =Euro!H154*Sterling!$C154 -> 33.79512564 | J154: =Euro!I154*Sterling!$C154 -> 27.70231571 | K154: =Euro!J154*Sterling!$C154 -> 34.18899139 | L154: =Euro!K154*Sterling!$C154 -> 54.05350621 | M154: =Euro!L154*Sterling!$C154 -> 37.21967571 | N154: =Euro!M154*Sterling!$C154 -> 34.7664912 | O154: =Euro!N154*Sterling!$C154 -> 77.60047457 | P154: =Euro!O154*Sterling!$C154 -> 29.31686786 | Q154: =Euro!P154*Sterling!$C154 -> 35.09543495 | R154: =Euro!Q154*Sterling!$C154 -> 39.93892143 | S154: =Euro!R154*Sterling!$C154 -> 59.55148114 | T154: =Euro!S154*Sterling!$C154 -> 47.229899 | U154: =Euro!T154*Sterling!$C154 -> 72.03247907 | V154: =Euro!U154*Sterling!$C154 -> 54.24997172 | W154: =Euro!V154*Sterling!$C154 -> 39.7042791 | X154: =Euro!W154*Sterling!$C154 -> 39.05348042
B155: 2013-11-03 | C155: 0.8515428571 | D155: =Euro!C155*Sterling!$C155 -> 34.48748571 | E155: =Euro!D155*Sterling!$C155 -> 49.85425781 | F155: =Euro!E155*Sterling!$C155 -> 42.35565656 | G155: =Euro!F155*Sterling!$C155 -> 47.34578286 | H155: =Euro!G155*Sterling!$C155 -> 32.55448343 | I155: =Euro!H155*Sterling!$C155 -> 33.86585943 | J155: =Euro!I155*Sterling!$C155 -> 27.93060571 | K155: =Euro!J155*Sterling!$C155 -> 34.18586923 | L155: =Euro!K155*Sterling!$C155 -> 53.79196229 | M155: =Euro!L155*Sterling!$C155 -> 33.63594286 | N155: =Euro!M155*Sterling!$C155 -> 36.67050098 | O155: =Euro!N155*Sterling!$C155 -> 77.76289371 | P155: =Euro!O155*Sterling!$C155 -> 28.73957143 | Q155: =Euro!P155*Sterling!$C155 -> 35.9844129 | R155: =Euro!Q155*Sterling!$C155 -> 40.02251429 | S155: =Euro!R155*Sterling!$C155 -> 59.67612343 | T155: =Euro!S155*Sterling!$C155 -> 46.83485714 | U155: =Euro!T155*Sterling!$C155 -> 71.16777944 | V155: =Euro!U155*Sterling!$C155 -> 55.93001609 | W155: =Euro!V155*Sterling!$C155 -> 39.62406587 | X155: =Euro!W155*Sterling!$C155 -> 38.92685764
B156: 2013-11-10 | C156: 0.8393071429 | D156: =Euro!C156*Sterling!$C156 -> 33.15263214 | E156: =Euro!D156*Sterling!$C156 -> 48.15961172 | F156: =Euro!E156*Sterling!$C156 -> 41.74806052 | G156: =Euro!F156*Sterling!$C156 -> 45.49044714 | H156: =Euro!G156*Sterling!$C156 -> 32.91762614 | I156: =Euro!H156*Sterling!$C156 -> 33.37924507 | J156: =Euro!I156*Sterling!$C156 -> 28.20072 | K156: =Euro!J156*Sterling!$C156 -> 33.6965871 | L156: =Euro!K156*Sterling!$C156 -> 52.04543593 | M156: =Euro!L156*Sterling!$C156 -> 37.26523714 | N156: =Euro!M156*Sterling!$C156 -> 32.57359415 | O156: =Euro!N156*Sterling!$C156 -> 76.64552829 | P156: =Euro!O156*Sterling!$C156 -> 27.69713571 | Q156: =Euro!P156*Sterling!$C156 -> 33.8654557 | R156: =Euro!Q156*Sterling!$C156 -> 39.44743571 | S156: =Euro!R156*Sterling!$C156 -> 59.64116557 | T156: =Euro!S156*Sterling!$C156 -> 45.238655 | U156: =Euro!T156*Sterling!$C156 -> 69.91075991 | V156: =Euro!U156*Sterling!$C156 -> 55.33996826 | W156: =Euro!V156*Sterling!$C156 -> 38.49525061 | X156: =Euro!W156*Sterling!$C156 -> 37.79843647
B157: 2013-11-17 | C157: 0.8386428571 | D157: =Euro!C157*Sterling!$C157 -> 33.12639286 | E157: =Euro!D157*Sterling!$C157 -> 46.74394011 | F157: =Euro!E157*Sterling!$C157 -> 40.14063399 | G157: =Euro!F157*Sterling!$C157 -> 45.37057857 | H157: =Euro!G157*Sterling!$C157 -> 32.66513929 | I157: =Euro!H157*Sterling!$C157 -> 33.35282643 | J157: =Euro!I157*Sterling!$C157 -> 28.1784 | K157: =Euro!J157*Sterling!$C157 -> 32.04479516 | L157: =Euro!K157*Sterling!$C157 -> 52.16358571 | M157: =Euro!L157*Sterling!$C157 -> 31.95229286 | N157: =Euro!M157*Sterling!$C157 -> 35.19280886 | O157: =Euro!N157*Sterling!$C157 -> 76.58486571 | P157: =Euro!O157*Sterling!$C157 -> 28.30419643 | Q157: =Euro!P157*Sterling!$C157 -> 33.40264181 | R157: =Euro!Q157*Sterling!$C157 -> 39.41621429 | S157: =Euro!R157*Sterling!$C157 -> 59.98812357 | T157: =Euro!S157*Sterling!$C157 -> 45.57185286 | U157: =Euro!T157*Sterling!$C157 -> 67.65214519 | V157: =Euro!U157*Sterling!$C157 -> 57.51001779 | W157: =Euro!V157*Sterling!$C157 -> 38.40985954 | X157: =Euro!W157*Sterling!$C157 -> 37.63897183
B158: 2013-11-24 | C158: 0.8366357143 | D158: =Euro!C158*Sterling!$C158 -> 33.04711071 | E158: =Euro!D158*Sterling!$C158 -> 46.34618837 | F158: =Euro!E158*Sterling!$C158 -> 40.04414618 | G158: =Euro!F158*Sterling!$C158 -> 45.51298286 | H158: =Euro!G158*Sterling!$C158 -> 32.36106943 | I158: =Euro!H158*Sterling!$C158 -> 33.27300236 | J158: =Euro!I158*Sterling!$C158 -> 28.11096 | K158: =Euro!J158*Sterling!$C158 -> 31.8988282 | L158: =Euro!K158*Sterling!$C158 -> 52.43196021 | M158: =Euro!L158*Sterling!$C158 -> 38.98722429 | N158: =Euro!M158*Sterling!$C158 -> 35.45461365 | O158: =Euro!N158*Sterling!$C158 -> 76.40157343 | P158: =Euro!O158*Sterling!$C158 -> 28.44561429 | Q158: =Euro!P158*Sterling!$C158 -> 33.57527884 | R158: =Euro!Q158*Sterling!$C158 -> 40.49316857 | S158: =Euro!R158*Sterling!$C158 -> 60.42183129 | T158: =Euro!S158*Sterling!$C158 -> 44.95243693 | U158: =Euro!T158*Sterling!$C158 -> 68.52222194 | V158: =Euro!U158*Sterling!$C158 -> 57.18003522 | W158: =Euro!V158*Sterling!$C158 -> 38.46611194 | X158: =Euro!W158*Sterling!$C158 -> 37.70439811
B159: 2013-12-01 | C159: 0.8341714286 | D159: =Euro!C159*Sterling!$C159 -> 34.61811429 | E159: =Euro!D159*Sterling!$C159 -> 40.28530814 | F159: =Euro!E159*Sterling!$C159 -> 39.92661442 | G159: =Euro!F159*Sterling!$C159 -> 46.37993143 | H159: =Euro!G159*Sterling!$C159 -> 31.44826286 | I159: =Euro!H159*Sterling!$C159 -> 34.30947086 | J159: =Euro!I159*Sterling!$C159 -> 28.52866286 | K159: =Euro!J159*Sterling!$C159 -> 31.50773928 | L159: =Euro!K159*Sterling!$C159 -> 51.82707086 | M159: =Euro!L159*Sterling!$C159 -> 35.78595429 | N159: =Euro!M159*Sterling!$C159 -> 31.06771385 | O159: =Euro!N159*Sterling!$C159 -> 76.17653486 | P159: =Euro!O159*Sterling!$C159 -> 29.61308571 | Q159: =Euro!P159*Sterling!$C159 -> 32.94017846 | R159: =Euro!Q159*Sterling!$C159 -> 40.37389714 | S159: =Euro!R159*Sterling!$C159 -> 58.81742743 | T159: =Euro!S159*Sterling!$C159 -> 46.06294629 | U159: =Euro!T159*Sterling!$C159 -> 67.43658713 | V159: =Euro!U159*Sterling!$C159 -> 56.22999449 | W159: =Euro!V159*Sterling!$C159 -> 38.75610471 | X159: =Euro!W159*Sterling!$C159 -> 38.04591188
B160: 2013-12-08 | C160: 0.8312571429 | D160: =Euro!C160*Sterling!$C160 -> 35.74405714 | E160: =Euro!D160*Sterling!$C160 -> 46.94192211 | F160: =Euro!E160*Sterling!$C160 -> 40.67366138 | G160: =Euro!F160*Sterling!$C160 -> 47.46478286 | H160: =Euro!G160*Sterling!$C160 -> 32.74321886 | I160: =Euro!H160*Sterling!$C160 -> 35.11230171 | J160: =Euro!I160*Sterling!$C160 -> 28.92774857 | K160: =Euro!J160*Sterling!$C160 -> 27.94270886 | L160: =Euro!K160*Sterling!$C160 -> 51.64600629 | M160: =Euro!L160*Sterling!$C160 -> 35.16217714 | N160: =Euro!M160*Sterling!$C160 -> 27.75102096 | O160: =Euro!N160*Sterling!$C160 -> 75.91040229 | P160: =Euro!O160*Sterling!$C160 -> 31.58777143 | Q160: =Euro!P160*Sterling!$C160 -> 32.15294316 | R160: =Euro!Q160*Sterling!$C160 -> 40.7316 | S160: =Euro!R160*Sterling!$C160 -> 58.61194114 | T160: =Euro!S160*Sterling!$C160 -> 45.037512 | U160: =Euro!T160*Sterling!$C160 -> 65.66956366 | V160: =Euro!U160*Sterling!$C160 -> 55.81999778 | W160: =Euro!V160*Sterling!$C160 -> 39.33535473 | X160: =Euro!W160*Sterling!$C160 -> 38.6677074
B161: =B160+7 -> 2013-12-15 | C161: 0.8396071429 | D161: =Euro!C161*Sterling!$C161 -> 36.52291071 | E161: =Euro!D161*Sterling!$C161 -> 49.23976842 | F161: =Euro!E161*Sterling!$C161 -> 40.06386988 | G161: =Euro!F161*Sterling!$C161 -> 48.19345 | H161: =Euro!G161*Sterling!$C161 -> 32.2661025 | I161: =Euro!H161*Sterling!$C161 -> 38.05099571 | J161: =Euro!I161*Sterling!$C161 -> 30.39377857 | K161: =Euro!J161*Sterling!$C161 -> 35.52772437 | L161: =Euro!K161*Sterling!$C161 -> 54.10428429 | M161: =Euro!L161*Sterling!$C161 -> 43.91145357 | N161: =Euro!M161*Sterling!$C161 -> 27.78595879 | O161: =Euro!N161*Sterling!$C161 -> 76.67292429 | P161: =Euro!O161*Sterling!$C161 -> 32.95458036 | Q161: =Euro!P161*Sterling!$C161 -> 32.66567154 | R161: =Euro!Q161*Sterling!$C161 -> 41.14075 | S161: =Euro!R161*Sterling!$C161 -> 59.20069964 | T161: =Euro!S161*Sterling!$C161 -> 46.70734536 | U161: =Euro!T161*Sterling!$C161 -> 66.26926822 | V161: =Euro!U161*Sterling!$C161 -> 57.78999172 | W161: =Euro!V161*Sterling!$C161 -> 40.69758634 | X161: =Euro!W161*Sterling!$C161 -> 40.0517248
B162: 2013-12-22 | C162: 0.8396785714 | D162: =Euro!C162*Sterling!$C162 -> 36.94585714 | E162: =Euro!D162*Sterling!$C162 -> 49.24395744 | F162: =Euro!E162*Sterling!$C162 -> 39.39452779 | G162: =Euro!F162*Sterling!$C162 -> 48.19755 | H162: =Euro!G162*Sterling!$C162 -> 32.2688475 | I162: =Euro!H162*Sterling!$C162 -> 40.06106464 | J162: =Euro!I162*Sterling!$C162 -> 31.23604286 | K162: =Euro!J162*Sterling!$C162 -> 35.6424241 | L162: =Euro!K162*Sterling!$C162 -> 55.00734321 | M162: =Euro!L162*Sterling!$C162 -> 43.32741429 | N162: =Euro!M162*Sterling!$C162 -> 27.78832264 | O162: =Euro!N162*Sterling!$C162 -> 76.67944714 | P162: =Euro!O162*Sterling!$C162 -> 34.00698214 | Q162: =Euro!P162*Sterling!$C162 -> 33.19803581 | R162: =Euro!Q162*Sterling!$C162 -> 41.14425 | S162: =Euro!R162*Sterling!$C162 -> 59.20573607 | T162: =Euro!S162*Sterling!$C162 -> 42.25262571 | U162: =Euro!T162*Sterling!$C162 -> 65.73944297 | V162: =Euro!U162*Sterling!$C162 -> 55.58564305 | W162: =Euro!V162*Sterling!$C162 -> 41.1902296 | X162: =Euro!W162*Sterling!$C162 -> 40.69259773
B163: 2013-12-29 | C163: 0.83627 | D163: =Euro!C163*Sterling!$C163 -> 36.79588 | E163: =Euro!D163*Sterling!$C163 -> 49.04405767 | F163: =Euro!E163*Sterling!$C163 -> 37.55136632 | G163: =Euro!F163*Sterling!$C163 -> 48.001898 | H163: =Euro!G163*Sterling!$C163 -> 33.3169968 | I163: =Euro!H163*Sterling!$C163 -> 40.97723 | J163: =Euro!I163*Sterling!$C163 -> 31.109244 | K163: =Euro!J163*Sterling!$C163 -> 36.82230613 | L163: =Euro!K163*Sterling!$C163 -> 55.2858097 | M163: =Euro!L163*Sterling!$C163 -> 37.799404 | N163: =Euro!M163*Sterling!$C163 -> 27.67551938 | O163: =Euro!N163*Sterling!$C163 -> 76.3681764 | P163: =Euro!O163*Sterling!$C163 -> 33.868935 | Q163: =Euro!P163*Sterling!$C163 -> 33.06327248 | R163: =Euro!Q163*Sterling!$C163 -> 40.97723 | S163: =Euro!R163*Sterling!$C163 -> 58.9653977 | T163: =Euro!S163*Sterling!$C163 -> 47.0401875 | U163: =Euro!T163*Sterling!$C163 -> 65.47258182 | V163: =Euro!U163*Sterling!$C163 -> 59.02000613 | W163: =Euro!V163*Sterling!$C163 -> 41.29469123 | X163: =Euro!W163*Sterling!$C163 -> 40.63884876
B164: 2014-01-05 | C164: 0.8327928571 | D164: =Euro!C164*Sterling!$C164 -> 36.64288571 | E164: =Euro!D164*Sterling!$C164 -> 43.28857271 | F164: =Euro!E164*Sterling!$C164 -> 37.40072721 | G164: =Euro!F164*Sterling!$C164 -> 47.80231 | H164: =Euro!G164*Sterling!$C164 -> 32.412298 | I164: =Euro!H164*Sterling!$C164 -> 40.80685 | J164: =Euro!I164*Sterling!$C164 -> 31.31301143 | K164: =Euro!J164*Sterling!$C164 -> 36.66920197 | L164: =Euro!K164*Sterling!$C164 -> 55.05593579 | M164: =Euro!L164*Sterling!$C164 -> 43.84654393 | N164: =Euro!M164*Sterling!$C164 -> 35.40943242 | O164: =Euro!N164*Sterling!$C164 -> 76.05064371 | P164: =Euro!O164*Sterling!$C164 -> 34.14450714 | Q164: =Euro!P164*Sterling!$C164 -> 32.92579808 | R164: =Euro!Q164*Sterling!$C164 -> 41.97276 | S164: =Euro!R164*Sterling!$C164 -> 47.71903071 | T164: =Euro!S164*Sterling!$C164 -> 46.00347743 | U164: =Euro!T164*Sterling!$C164 -> 64.64138157 | V164: =Euro!U164*Sterling!$C164 -> 54.26 | W164: =Euro!V164*Sterling!$C164 -> 41.31406409 | X164: =Euro!W164*Sterling!$C164 -> 40.69332152
B165: 2014-01-12 | C165: 0.8287642857 | D165: =Euro!C165*Sterling!$C165 -> 37.708775 | E165: =Euro!D165*Sterling!$C165 -> 43.07916757 | F165: =Euro!E165*Sterling!$C165 -> 37.21980407 | G165: =Euro!F165*Sterling!$C165 -> 47.23956429 | H165: =Euro!G165*Sterling!$C165 -> 32.06489021 | I165: =Euro!H165*Sterling!$C165 -> 40.60945 | J165: =Euro!I165*Sterling!$C165 -> 31.16153714 | K165: =Euro!J165*Sterling!$C165 -> 36.54578471 | L165: =Euro!K165*Sterling!$C165 -> 54.78960693 | M165: =Euro!L165*Sterling!$C165 -> 42.56533371 | N165: =Euro!M165*Sterling!$C165 -> 36.32465958 | O165: =Euro!N165*Sterling!$C165 -> 75.68275457 | P165: =Euro!O165*Sterling!$C165 -> 34.8081 | Q165: =Euro!P165*Sterling!$C165 -> 32.24721836 | R165: =Euro!Q165*Sterling!$C165 -> 42.26697857 | S165: =Euro!R165*Sterling!$C165 -> 57.76487071 | T165: =Euro!S165*Sterling!$C165 -> 44.89416136 | U165: =Euro!T165*Sterling!$C165 -> 65.36463921 | V165: =Euro!U165*Sterling!$C165 -> 56.86 | W165: =Euro!V165*Sterling!$C165 -> 41.15966295 | X165: =Euro!W165*Sterling!$C165 -> 40.57317591
B166: 2014-01-19 | C166: 0.8294142857 | D166: =Euro!C166*Sterling!$C166 -> 37.73835 | E166: =Euro!D166*Sterling!$C166 -> 43.11295457 | F166: =Euro!E166*Sterling!$C166 -> 37.23547655 | G166: =Euro!F166*Sterling!$C166 -> 47.44249714 | H166: =Euro!G166*Sterling!$C166 -> 31.32697757 | I166: =Euro!H166*Sterling!$C166 -> 40.6413 | J166: =Euro!I166*Sterling!$C166 -> 31.51774286 | K166: =Euro!J166*Sterling!$C166 -> 37.27893175 | L166: =Euro!K166*Sterling!$C166 -> 57.81846986 | M166: =Euro!L166*Sterling!$C166 -> 40.55006443 | N166: =Euro!M166*Sterling!$C166 -> 40.60229415 | O166: =Euro!N166*Sterling!$C166 -> 75.74211257 | P166: =Euro!O166*Sterling!$C166 -> 35.25010714 | Q166: =Euro!P166*Sterling!$C166 -> 33.39406298 | R166: =Euro!Q166*Sterling!$C166 -> 42.30012857 | S166: =Euro!R166*Sterling!$C166 -> 58.71423729 | T166: =Euro!S166*Sterling!$C166 -> 40.50859371 | U166: =Euro!T166*Sterling!$C166 -> 65.95917597 | V166: =Euro!U166*Sterling!$C166 -> 55.71 | W166: =Euro!V166*Sterling!$C166 -> 41.60481527 | X166: =Euro!W166*Sterling!$C166 -> 41.0674813
B167: 2014-01-26 | C167: 0.8250357143 | D167: =Euro!C167*Sterling!$C167 -> 39.60171429 | E167: =Euro!D167*Sterling!$C167 -> 42.88535643 | F167: =Euro!E167*Sterling!$C167 -> 37.03890628 | G167: =Euro!F167*Sterling!$C167 -> 47.85207143 | H167: =Euro!G167*Sterling!$C167 -> 31.16159893 | I167: =Euro!H167*Sterling!$C167 -> 40.42675 | J167: =Euro!I167*Sterling!$C167 -> 31.84637857 | K167: =Euro!J167*Sterling!$C167 -> 39.9200377 | L167: =Euro!K167*Sterling!$C167 -> 57.51323964 | M167: =Euro!L167*Sterling!$C167 -> 40.33599607 | N167: =Euro!M167*Sterling!$C167 -> 40.38795007 | O167: =Euro!N167*Sterling!$C167 -> 75.34226143 | P167: =Euro!O167*Sterling!$C167 -> 35.88905357 | Q167: =Euro!P167*Sterling!$C167 -> 33.68597882 | R167: =Euro!Q167*Sterling!$C167 -> 42.07682143 | S167: =Euro!R167*Sterling!$C167 -> 58.40427821 | T167: =Euro!S167*Sterling!$C167 -> 40.29474429 | U167: =Euro!T167*Sterling!$C167 -> 64.22675245 | V167: =Euro!U167*Sterling!$C167 -> 56.38 | W167: =Euro!V167*Sterling!$C167 -> 41.82280048 | X167: =Euro!W167*Sterling!$C167 -> 41.26023751
B168: 2014-02-02 | C168: 0.8236571429 | D168: =Euro!C168*Sterling!$C168 -> 40.3592 | E168: =Euro!D168*Sterling!$C168 -> 39.65625178 | F168: =Euro!E168*Sterling!$C168 -> 36.97701711 | G168: =Euro!F168*Sterling!$C168 -> 48.67813714 | H168: =Euro!G168*Sterling!$C168 -> 32.44385486 | I168: =Euro!H168*Sterling!$C168 -> 41.13343771 | J168: =Euro!I168*Sterling!$C168 -> 31.62843429 | K168: =Euro!J168*Sterling!$C168 -> 39.79684347 | L168: =Euro!K168*Sterling!$C168 -> 60.38230514 | M168: =Euro!L168*Sterling!$C168 -> 40.26859771 | N168: =Euro!M168*Sterling!$C168 -> 36.03049619 | O168: =Euro!N168*Sterling!$C168 -> 75.21637029 | P168: =Euro!O168*Sterling!$C168 -> 35.82908571 | Q168: =Euro!P168*Sterling!$C168 -> 35.43271893 | R168: =Euro!Q168*Sterling!$C168 -> 42.00651429 | S168: =Euro!R168*Sterling!$C168 -> 58.30668914 | T168: =Euro!S168*Sterling!$C168 -> 45.61413257 | U168: =Euro!T168*Sterling!$C168 -> 63.09680191 | V168: =Euro!U168*Sterling!$C168 -> 56.28579334 | W168: =Euro!V168*Sterling!$C168 -> 42.36749274 | X168: =Euro!W168*Sterling!$C168 -> 41.82614685
B169: 2014-02-09 | C169: 0.8285785714 | D169: =Euro!C169*Sterling!$C169 -> 41.42892857 | E169: =Euro!D169*Sterling!$C169 -> 39.8932016 | F169: =Euro!E169*Sterling!$C169 -> 36.42012968 | G169: =Euro!F169*Sterling!$C169 -> 48.80327786 | H169: =Euro!G169*Sterling!$C169 -> 33.14314286 | I169: =Euro!H169*Sterling!$C169 -> 42.43979443 | J169: =Euro!I169*Sterling!$C169 -> 31.81741714 | K169: =Euro!J169*Sterling!$C169 -> 41.15622987 | L169: =Euro!K169*Sterling!$C169 -> 61.81196143 | M169: =Euro!L169*Sterling!$C169 -> 39.8463435 | N169: =Euro!M169*Sterling!$C169 -> 34.79446524 | O169: =Euro!N169*Sterling!$C169 -> 75.66579514 | P169: =Euro!O169*Sterling!$C169 -> 37.07889107 | Q169: =Euro!P169*Sterling!$C169 -> 32.58955422 | R169: =Euro!Q169*Sterling!$C169 -> 38.11461429 | S169: =Euro!R169*Sterling!$C169 -> 59.45879829 | T169: =Euro!S169*Sterling!$C169 -> 45.14096057 | U169: =Euro!T169*Sterling!$C169 -> 62.76671494 | V169: =Euro!U169*Sterling!$C169 -> 56.376486 | W169: =Euro!V169*Sterling!$C169 -> 42.5610107 | X169: =Euro!W169*Sterling!$C169 -> 42.0453541
B170: 2014-02-16 | C170: 0.8253642857 | D170: =Euro!C170*Sterling!$C170 -> 40.85553214 | E170: =Euro!D170*Sterling!$C170 -> 43.42578422 | F170: =Euro!E170*Sterling!$C170 -> 36.27919318 | G170: =Euro!F170*Sterling!$C170 -> 48.36634714 | H170: =Euro!G170*Sterling!$C170 -> 32.53586014 | I170: =Euro!H170*Sterling!$C170 -> 42.9271965 | J170: =Euro!I170*Sterling!$C170 -> 32.18920714 | K170: =Euro!J170*Sterling!$C170 -> 40.97973849 | L170: =Euro!K170*Sterling!$C170 -> 62.23246714 | M170: =Euro!L170*Sterling!$C170 -> 34.50848079 | N170: =Euro!M170*Sterling!$C170 -> 37.30752555 | O170: =Euro!N170*Sterling!$C170 -> 75.37226657 | P170: =Euro!O170*Sterling!$C170 -> 35.69700536 | Q170: =Euro!P170*Sterling!$C170 -> 31.8271483 | R170: =Euro!Q170*Sterling!$C170 -> 36.31602857 | S170: =Euro!R170*Sterling!$C170 -> 57.26377414 | T170: =Euro!S170*Sterling!$C170 -> 45.32900657 | U170: =Euro!T170*Sterling!$C170 -> 64.22958782 | V170: =Euro!U170*Sterling!$C170 -> 55.05179786 | W170: =Euro!V170*Sterling!$C170 -> 42.42847302 | X170: =Euro!W170*Sterling!$C170 -> 41.96114576
B171: 2014-02-23 | C171: 0.8218942857 | D171: =Euro!C171*Sterling!$C171 -> 39.03997857 | E171: =Euro!D171*Sterling!$C171 -> 42.21073368 | F171: =Euro!E171*Sterling!$C171 -> 34.69428704 | G171: =Euro!F171*Sterling!$C171 -> 48.24519457 | H171: =Euro!G171*Sterling!$C171 -> 32.54701371 | I171: =Euro!H171*Sterling!$C171 -> 42.7467218 | J171: =Euro!I171*Sterling!$C171 -> 32.05387714 | K171: =Euro!J171*Sterling!$C171 -> 38.71295597 | L171: =Euro!K171*Sterling!$C171 -> 63.93515649 | M171: =Euro!L171*Sterling!$C171 -> 35.13598071 | N171: =Euro!M171*Sterling!$C171 -> 39.61209033 | O171: =Euro!N171*Sterling!$C171 -> 75.05538617 | P171: =Euro!O171*Sterling!$C171 -> 33.49219214 | Q171: =Euro!P171*Sterling!$C171 -> 31.50301861 | R171: =Euro!Q171*Sterling!$C171 -> 35.670212 | S171: =Euro!R171*Sterling!$C171 -> 61.88042077 | T171: =Euro!S171*Sterling!$C171 -> 43.70833811 | U171: =Euro!T171*Sterling!$C171 -> 61.90440218 | V171: =Euro!U171*Sterling!$C171 -> 54.64 | W171: =Euro!V171*Sterling!$C171 -> 41.98021545 | X171: =Euro!W171*Sterling!$C171 -> 41.5146447
B172: 2014-03-02 | C172: 0.8236971429 | D172: =Euro!C172*Sterling!$C172 -> 38.30191714 | E172: =Euro!D172*Sterling!$C172 -> 42.37934451 | F172: =Euro!E172*Sterling!$C172 -> 33.99673872 | G172: =Euro!F172*Sterling!$C172 -> 48.35102229 | H172: =Euro!G172*Sterling!$C172 -> 30.89687983 | I172: =Euro!H172*Sterling!$C172 -> 42.01679126 | J172: =Euro!I172*Sterling!$C172 -> 32.45366743 | K172: =Euro!J172*Sterling!$C172 -> 38.81842338 | L172: =Euro!K172*Sterling!$C172 -> 64.43782749 | M172: =Euro!L172*Sterling!$C172 -> 34.38935571 | N172: =Euro!M172*Sterling!$C172 -> 37.83917778 | O172: =Euro!N172*Sterling!$C172 -> 75.22002309 | P172: =Euro!O172*Sterling!$C172 -> 32.94788571 | Q172: =Euro!P172*Sterling!$C172 -> 31.60784423 | R172: =Euro!Q172*Sterling!$C172 -> 35.748456 | S172: =Euro!R172*Sterling!$C172 -> 61.71138994 | T172: =Euro!S172*Sterling!$C172 -> 45.35276469 | U172: =Euro!T172*Sterling!$C172 -> 60.38313093 | V172: =Euro!U172*Sterling!$C172 -> 57.44 | W172: =Euro!V172*Sterling!$C172 -> 41.84704169 | X172: =Euro!W172*Sterling!$C172 -> 41.26322314
B173: 2014-03-09 | C173: 0.8251428571 | D173: =Euro!C173*Sterling!$C173 -> 37.544 | E173: =Euro!D173*Sterling!$C173 -> 42.45372673 | F173: =Euro!E173*Sterling!$C173 -> 33.05998763 | G173: =Euro!F173*Sterling!$C173 -> 46.70308571 | H173: =Euro!G173*Sterling!$C173 -> 33.53380571 | I173: =Euro!H173*Sterling!$C173 -> 41.77698286 | J173: =Euro!I173*Sterling!$C173 -> 32.3456 | K173: =Euro!J173*Sterling!$C173 -> 38.88655564 | L173: =Euro!K173*Sterling!$C173 -> 64.71595429 | M173: =Euro!L173*Sterling!$C173 -> 37.37897143 | N173: =Euro!M173*Sterling!$C173 -> 39.10198986 | O173: =Euro!N173*Sterling!$C173 -> 75.35204571 | P173: =Euro!O173*Sterling!$C173 -> 31.768 | Q173: =Euro!P173*Sterling!$C173 -> 33.58352751 | R173: =Euro!Q173*Sterling!$C173 -> 35.8112 | S173: =Euro!R173*Sterling!$C173 -> 62.87588571 | T173: =Euro!S173*Sterling!$C173 -> 44.31017143 | U173: =Euro!T173*Sterling!$C173 -> 61.13932611 | V173: =Euro!U173*Sterling!$C173 -> 56.66 | W173: =Euro!V173*Sterling!$C173 -> 41.40938539 | X173: =Euro!W173*Sterling!$C173 -> 40.84968006
B174: 2014-03-16 | C174: 0.8343642857 | D174: =Euro!C174*Sterling!$C174 -> 38.79793929 | E174: =Euro!D174*Sterling!$C174 -> 43.34920242 | F174: =Euro!E174*Sterling!$C174 -> 33.87530627 | G174: =Euro!F174*Sterling!$C174 -> 47.14158214 | H174: =Euro!G174*Sterling!$C174 -> 31.33872257 | I174: =Euro!H174*Sterling!$C174 -> 41.10078471 | J174: =Euro!I174*Sterling!$C174 -> 32.54020714 | K174: =Euro!J174*Sterling!$C174 -> 40.29716555 | L174: =Euro!K174*Sterling!$C174 -> 65.43919093 | M174: =Euro!L174*Sterling!$C174 -> 36.05288079 | N174: =Euro!M174*Sterling!$C174 -> 37.34981089 | O174: =Euro!N174*Sterling!$C174 -> 76.19414657 | P174: =Euro!O174*Sterling!$C174 -> 32.123025 | Q174: =Euro!P174*Sterling!$C174 -> 32.11154953 | R174: =Euro!Q174*Sterling!$C174 -> 36.21141 | S174: =Euro!R174*Sterling!$C174 -> 65.91477857 | T174: =Euro!S174*Sterling!$C174 -> 44.08780886 | U174: =Euro!T174*Sterling!$C174 -> 64.1795703 | V174: =Euro!U174*Sterling!$C174 -> 55.26 | W174: =Euro!V174*Sterling!$C174 -> 41.46685882 | X174: =Euro!W174*Sterling!$C174 -> 40.93182356
B175: 2014-03-23 | C175: 0.83635 | D175: =Euro!C175*Sterling!$C175 -> 39.30845 | E175: =Euro!D175*Sterling!$C175 -> 43.45236975 | F175: =Euro!E175*Sterling!$C175 -> 34.84784997 | G175: =Euro!F175*Sterling!$C175 -> 48.759205 | H175: =Euro!G175*Sterling!$C175 -> 33.62127 | I175: =Euro!H175*Sterling!$C175 -> 41.1066025 | J175: =Euro!I175*Sterling!$C175 -> 33.28673 | K175: =Euro!J175*Sterling!$C175 -> 43.04076297 | L175: =Euro!K175*Sterling!$C175 -> 65.5949305 | M175: =Euro!L175*Sterling!$C175 -> 38.488827 | N175: =Euro!M175*Sterling!$C175 -> 41.28072995 | O175: =Euro!N175*Sterling!$C175 -> 76.375482 | P175: =Euro!O175*Sterling!$C175 -> 33.454 | Q175: =Euro!P175*Sterling!$C175 -> 32.19328666 | R175: =Euro!Q175*Sterling!$C175 -> 36.29759 | S175: =Euro!R175*Sterling!$C175 -> 69.3585055 | T175: =Euro!S175*Sterling!$C175 -> 44.5189105 | U175: =Euro!T175*Sterling!$C175 -> 62.24303915 | V175: =Euro!U175*Sterling!$C175 -> 56.771438 | W175: =Euro!V175*Sterling!$C175 -> 42.30028978 | X175: =Euro!W175*Sterling!$C175 -> 41.72178688
B176: 2014-03-30 | C176: 0.8316571429 | D176: =Euro!C176*Sterling!$C176 -> 39.91954286 | E176: =Euro!D176*Sterling!$C176 -> 43.20855345 | F176: =Euro!E176*Sterling!$C176 -> 35.53804701 | G176: =Euro!F176*Sterling!$C176 -> 48.56877714 | H176: =Euro!G176*Sterling!$C176 -> 33.93161143 | I176: =Euro!H176*Sterling!$C176 -> 41.682656 | J176: =Euro!I176*Sterling!$C176 -> 33.59894857 | K176: =Euro!J176*Sterling!$C176 -> 42.79765989 | L176: =Euro!K176*Sterling!$C176 -> 65.22686971 | M176: =Euro!L176*Sterling!$C176 -> 37.88198286 | N176: =Euro!M176*Sterling!$C176 -> 38.7388884 | O176: =Euro!N176*Sterling!$C176 -> 75.94693029 | P176: =Euro!O176*Sterling!$C176 -> 34.09794286 | Q176: =Euro!P176*Sterling!$C176 -> 33.72231336 | R176: =Euro!Q176*Sterling!$C176 -> 36.09392 | S176: =Euro!R176*Sterling!$C176 -> 68.49528229 | T176: =Euro!S176*Sterling!$C176 -> 44.46039086 | U176: =Euro!T176*Sterling!$C176 -> 60.01525131 | V176: =Euro!U176*Sterling!$C176 -> 55.28 | W176: =Euro!V176*Sterling!$C176 -> 42.51400271 | X176: =Euro!W176*Sterling!$C176 -> 42.00656612
B177: 2014-04-06 | C177: 0.8279571429 | D177: =Euro!C177*Sterling!$C177 -> 40.5699 | E177: =Euro!D177*Sterling!$C177 -> 43.01632081 | F177: =Euro!E177*Sterling!$C177 -> 35.15731492 | G177: =Euro!F177*Sterling!$C177 -> 49.09785857 | H177: =Euro!G177*Sterling!$C177 -> 32.77882329 | I177: =Euro!H177*Sterling!$C177 -> 42.32516914 | J177: =Euro!I177*Sterling!$C177 -> 33.61506 | K177: =Euro!J177*Sterling!$C177 -> 44.24305926 | L177: =Euro!K177*Sterling!$C177 -> 64.72140986 | M177: =Euro!L177*Sterling!$C177 -> 36.30592071 | N177: =Euro!M177*Sterling!$C177 -> 44.4144144 | O177: =Euro!N177*Sterling!$C177 -> 75.60904629 | P177: =Euro!O177*Sterling!$C177 -> 34.7742 | Q177: =Euro!P177*Sterling!$C177 -> 34.73466654 | R177: =Euro!Q177*Sterling!$C177 -> 35.93334 | S177: =Euro!R177*Sterling!$C177 -> 64.390227 | T177: =Euro!S177*Sterling!$C177 -> 42.62323371 | U177: =Euro!T177*Sterling!$C177 -> 60.85060696 | V177: =Euro!U177*Sterling!$C177 -> 56.89 | W177: =Euro!V177*Sterling!$C177 -> 43.01042906 | X177: =Euro!W177*Sterling!$C177 -> 42.47544374
B178: 2014-04-13 | C178: 0.8267357143 | D178: =Euro!C178*Sterling!$C178 -> 41.33678571 | E178: =Euro!D178*Sterling!$C178 -> 39.87188882 | F178: =Euro!E178*Sterling!$C178 -> 34.99202856 | G178: =Euro!F178*Sterling!$C178 -> 50.18285786 | H178: =Euro!G178*Sterling!$C178 -> 33.89616429 | I178: =Euro!H178*Sterling!$C178 -> 42.90758357 | J178: =Euro!I178*Sterling!$C178 -> 33.89616429 | K178: =Euro!J178*Sterling!$C178 -> 44.2728287 | L178: =Euro!K178*Sterling!$C178 -> 64.38617743 | M178: =Euro!L178*Sterling!$C178 -> 39.86519614 | N178: =Euro!M178*Sterling!$C178 -> 37.81303526 | O178: =Euro!N178*Sterling!$C178 -> 75.49750543 | P178: =Euro!O178*Sterling!$C178 -> 35.96300357 | Q178: =Euro!P178*Sterling!$C178 -> 34.26972048 | R178: =Euro!Q178*Sterling!$C178 -> 35.88033 | S178: =Euro!R178*Sterling!$C178 -> 65.94044057 | T178: =Euro!S178*Sterling!$C178 -> 43.71778457 | U178: =Euro!T178*Sterling!$C178 -> 60.92731273 | V178: =Euro!U178*Sterling!$C178 -> 55.7 | W178: =Euro!V178*Sterling!$C178 -> 43.24770392 | X178: =Euro!W178*Sterling!$C178 -> 42.76473185
B179: 2014-04-20 | C179: 0.8253142857 | D179: =Euro!C179*Sterling!$C179 -> 41.26571429 | E179: =Euro!D179*Sterling!$C179 -> 52.56204964 | F179: =Euro!E179*Sterling!$C179 -> 35.81429807 | G179: =Euro!F179*Sterling!$C179 -> 50.09657714 | H179: =Euro!G179*Sterling!$C179 -> 32.93004 | I179: =Euro!H179*Sterling!$C179 -> 43.63436629 | J179: =Euro!I179*Sterling!$C179 -> 34.49813714 | K179: =Euro!J179*Sterling!$C179 -> 44.30424558 | L179: =Euro!K179*Sterling!$C179 -> 64.12692 | M179: =Euro!L179*Sterling!$C179 -> 37.18866171 | N179: =Euro!M179*Sterling!$C179 -> 40.07432616 | O179: =Euro!N179*Sterling!$C179 -> 75.36770057 | P179: =Euro!O179*Sterling!$C179 -> 36.72648571 | Q179: =Euro!P179*Sterling!$C179 -> 34.02744327 | R179: =Euro!Q179*Sterling!$C179 -> 35.81864 | S179: =Euro!R179*Sterling!$C179 -> 77.84364343 | T179: =Euro!S179*Sterling!$C179 -> 42.12404114 | U179: =Euro!T179*Sterling!$C179 -> 58.7016531 | V179: =Euro!U179*Sterling!$C179 -> 57.73898743 | W179: =Euro!V179*Sterling!$C179 -> 43.81273558 | X179: =Euro!W179*Sterling!$C179 -> 43.28457399
B180: 2014-04-27 | C180: 0.8229857143 | D180: =Euro!C180*Sterling!$C180 -> 41.14928571 | E180: =Euro!D180*Sterling!$C180 -> 42.83640643 | F180: =Euro!E180*Sterling!$C180 -> 35.71758 | G180: =Euro!F180*Sterling!$C180 -> 49.95523286 | H180: =Euro!G180*Sterling!$C180 -> 32.80421057 | I180: =Euro!H180*Sterling!$C180 -> 43.86513857 | J180: =Euro!I180*Sterling!$C180 -> 34.40080286 | K180: =Euro!J180*Sterling!$C180 -> 44.19433286 | L180: =Euro!K180*Sterling!$C180 -> 63.73201371 | M180: =Euro!L180*Sterling!$C180 -> 35.314317 | N180: =Euro!M180*Sterling!$C180 -> 40.05471471 | O180: =Euro!N180*Sterling!$C180 -> 75.15505543 | P180: =Euro!O180*Sterling!$C180 -> 36.62286429 | Q180: =Euro!P180*Sterling!$C180 -> 34.450182 | R180: =Euro!Q180*Sterling!$C180 -> 37.03435714 | S180: =Euro!R180*Sterling!$C180 -> 56.37452143 | T180: =Euro!S180*Sterling!$C180 -> 43.56063386 | U180: =Euro!T180*Sterling!$C180 -> 59.38664914 | V180: =Euro!U180*Sterling!$C180 -> 55.32231755 | W180: =Euro!V180*Sterling!$C180 -> 43.54882683 | X180: =Euro!W180*Sterling!$C180 -> 43.10802066
B181: 2014-05-04 | C181: 0.8223785714 | D181: =Euro!C181*Sterling!$C181 -> 41.11892857 | E181: =Euro!D181*Sterling!$C181 -> 48.08493063 | F181: =Euro!E181*Sterling!$C181 -> 35.69714868 | G181: =Euro!F181*Sterling!$C181 -> 50.00061714 | H181: =Euro!G181*Sterling!$C181 -> 32.7553385 | I181: =Euro!H181*Sterling!$C181 -> 42.944609 | J181: =Euro!I181*Sterling!$C181 -> 34.5399 | K181: =Euro!J181*Sterling!$C181 -> 39.30442671 | L181: =Euro!K181*Sterling!$C181 -> 63.438283 | M181: =Euro!L181*Sterling!$C181 -> 40.2389835 | N181: =Euro!M181*Sterling!$C181 -> 43.35268607 | O181: =Euro!N181*Sterling!$C181 -> 75.09961114 | P181: =Euro!O181*Sterling!$C181 -> 36.39025179 | Q181: =Euro!P181*Sterling!$C181 -> 34.95169725 | R181: =Euro!Q181*Sterling!$C181 -> 37.00703571 | S181: =Euro!R181*Sterling!$C181 -> 66.61266429 | T181: =Euro!S181*Sterling!$C181 -> 42.53341971 | U181: =Euro!T181*Sterling!$C181 -> 59.02940866 | V181: =Euro!U181*Sterling!$C181 -> 57.80989958 | W181: =Euro!V181*Sterling!$C181 -> 43.59073647 | X181: =Euro!W181*Sterling!$C181 -> 43.05578797
B182: 2014-05-11 | C182: 0.8205685714 | D182: =Euro!C182*Sterling!$C182 -> 41.02842857 | E182: =Euro!D182*Sterling!$C182 -> 47.97909892 | F182: =Euro!E182*Sterling!$C182 -> 35.61953606 | G182: =Euro!F182*Sterling!$C182 -> 49.80851229 | H182: =Euro!G182*Sterling!$C182 -> 32.26475623 | I182: =Euro!H182*Sterling!$C182 -> 42.8500908 | J182: =Euro!I182*Sterling!$C182 -> 33.97153886 | K182: =Euro!J182*Sterling!$C182 -> 39.30634371 | L182: =Euro!K182*Sterling!$C182 -> 62.52732514 | M182: =Euro!L182*Sterling!$C182 -> 37.09790511 | N182: =Euro!M182*Sterling!$C182 -> 38.91549 | O182: =Euro!N182*Sterling!$C182 -> 74.93432194 | P182: =Euro!O182*Sterling!$C182 -> 35.48959071 | Q182: =Euro!P182*Sterling!$C182 -> 34.57335545 | R182: =Euro!Q182*Sterling!$C182 -> 36.92558571 | S182: =Euro!R182*Sterling!$C182 -> 59.32710771 | T182: =Euro!S182*Sterling!$C182 -> 41.14330817 | U182: =Euro!T182*Sterling!$C182 -> 60.79507478 | V182: =Euro!U182*Sterling!$C182 -> 55.33 | W182: =Euro!V182*Sterling!$C182 -> 43.09760542 | X182: =Euro!W182*Sterling!$C182 -> 42.61968643
B183: 2014-05-18 | C183: 0.81555 | D183: =Euro!C183*Sterling!$C183 -> 39.96195 | E183: =Euro!D183*Sterling!$C183 -> 46.96206342 | F183: =Euro!E183*Sterling!$C183 -> 35.40012976 | G183: =Euro!F183*Sterling!$C183 -> 49.503885 | H183: =Euro!G183*Sterling!$C183 -> 31.8635385 | I183: =Euro!H183*Sterling!$C183 -> 41.0466315 | J183: =Euro!I183*Sterling!$C183 -> 33.76377 | K183: =Euro!J183*Sterling!$C183 -> 41.78190217 | L183: =Euro!K183*Sterling!$C183 -> 61.6800465 | M183: =Euro!L183*Sterling!$C183 -> 36.0880875 | N183: =Euro!M183*Sterling!$C183 -> 38.03846836 | O183: =Euro!N183*Sterling!$C183 -> 74.476026 | P183: =Euro!O183*Sterling!$C183 -> 33.845325 | Q183: =Euro!P183*Sterling!$C183 -> 33.97106649 | R183: =Euro!Q183*Sterling!$C183 -> 35.8842 | S183: =Euro!R183*Sterling!$C183 -> 61.9818 | T183: =Euro!S183*Sterling!$C183 -> 43.012107 | U183: =Euro!T183*Sterling!$C183 -> 58.00629591 | V183: =Euro!U183*Sterling!$C183 -> 56.21 | W183: =Euro!V183*Sterling!$C183 -> 42.34093434 | X183: =Euro!W183*Sterling!$C183 -> 41.77790176
B184: 2014-05-25 | C184: 0.8117 | D184: =Euro!C184*Sterling!$C184 -> 39.7733 | E184: =Euro!D184*Sterling!$C184 -> 46.7403677 | F184: =Euro!E184*Sterling!$C184 -> 35.23213835 | G184: =Euro!F184*Sterling!$C184 -> 48.94551 | H184: =Euro!G184*Sterling!$C184 -> 31.753704 | I184: =Euro!H184*Sterling!$C184 -> 39.099589 | J184: =Euro!I184*Sterling!$C184 -> 33.11736 | K184: =Euro!J184*Sterling!$C184 -> 41.49195037 | L184: =Euro!K184*Sterling!$C184 -> 60.747628 | M184: =Euro!L184*Sterling!$C184 -> 37.792752 | N184: =Euro!M184*Sterling!$C184 -> 38.63733568 | O184: =Euro!N184*Sterling!$C184 -> 74.124444 | P184: =Euro!O184*Sterling!$C184 -> 32.468 | Q184: =Euro!P184*Sterling!$C184 -> 34.96762984 | R184: =Euro!Q184*Sterling!$C184 -> 35.7148 | S184: =Euro!R184*Sterling!$C184 -> 70.017242 | T184: =Euro!S184*Sterling!$C184 -> 42.865877 | U184: =Euro!T184*Sterling!$C184 -> 58.27635846 | V184: =Euro!U184*Sterling!$C184 -> 56.526788 | W184: =Euro!V184*Sterling!$C184 -> 41.71065706 | X184: =Euro!W184*Sterling!$C184 -> 41.08404069
B185: 2014-06-01 | C185: 0.8119214286 | D185: =Euro!C185*Sterling!$C185 -> 39.78415 | E185: =Euro!D185*Sterling!$C185 -> 48.53781655 | F185: =Euro!E185*Sterling!$C185 -> 36.22456935 | G185: =Euro!F185*Sterling!$C185 -> 48.79647786 | H185: =Euro!G185*Sterling!$C185 -> 32.20080386 | I185: =Euro!H185*Sterling!$C185 -> 38.16842636 | J185: =Euro!I185*Sterling!$C185 -> 32.63924143 | K185: =Euro!J185*Sterling!$C185 -> 42.24357069 | L185: =Euro!K185*Sterling!$C185 -> 60.39883507 | M185: =Euro!L185*Sterling!$C185 -> 35.05876729 | N185: =Euro!M185*Sterling!$C185 -> 34.14327868 | O185: =Euro!N185*Sterling!$C185 -> 74.14466486 | P185: =Euro!O185*Sterling!$C185 -> 32.47685714 | Q185: =Euro!P185*Sterling!$C185 -> 33.77414361 | R185: =Euro!Q185*Sterling!$C185 -> 35.72454286 | S185: =Euro!R185*Sterling!$C185 -> 60.89410714 | T185: =Euro!S185*Sterling!$C185 -> 43.12926629 | U185: =Euro!T185*Sterling!$C185 -> 58.06746827 | V185: =Euro!U185*Sterling!$C185 -> 55.88 | W185: =Euro!V185*Sterling!$C185 -> 41.29226032 | X185: =Euro!W185*Sterling!$C185 -> 40.65543047
B186: 2014-06-08 | C186: 0.8122285714 | D186: =Euro!C186*Sterling!$C186 -> 39.7992 | E186: =Euro!D186*Sterling!$C186 -> 48.55617799 | F186: =Euro!E186*Sterling!$C186 -> 36.89403928 | G186: =Euro!F186*Sterling!$C186 -> 48.81493714 | H186: =Euro!G186*Sterling!$C186 -> 31.100232 | I186: =Euro!H186*Sterling!$C186 -> 37.354392 | J186: =Euro!I186*Sterling!$C186 -> 32.48914286 | K186: =Euro!J186*Sterling!$C186 -> 42.34049814 | L186: =Euro!K186*Sterling!$C186 -> 59.99932457 | M186: =Euro!L186*Sterling!$C186 -> 30.95403086 | N186: =Euro!M186*Sterling!$C186 -> 40.10062302 | O186: =Euro!N186*Sterling!$C186 -> 74.17271314 | P186: =Euro!O186*Sterling!$C186 -> 32.48914286 | Q186: =Euro!P186*Sterling!$C186 -> 33.48355944 | R186: =Euro!Q186*Sterling!$C186 -> 35.73805714 | S186: =Euro!R186*Sterling!$C186 -> 60.91714286 | T186: =Euro!S186*Sterling!$C186 -> 42.17090743 | U186: =Euro!T186*Sterling!$C186 -> 62.86525659 | V186: =Euro!U186*Sterling!$C186 -> 56.43364114 | W186: =Euro!V186*Sterling!$C186 -> 41.32748698 | X186: =Euro!W186*Sterling!$C186 -> 40.65259615
B187: 2014-06-15 | C187: 0.8049785714 | D187: =Euro!C187*Sterling!$C187 -> 39.44395 | E187: =Euro!D187*Sterling!$C187 -> 51.33043653 | F187: =Euro!E187*Sterling!$C187 -> 36.57704349 | G187: =Euro!F187*Sterling!$C187 -> 48.54020786 | H187: =Euro!G187*Sterling!$C187 -> 30.62943464 | I187: =Euro!H187*Sterling!$C187 -> 36.54602714 | J187: =Euro!I187*Sterling!$C187 -> 32.19914286 | K187: =Euro!J187*Sterling!$C187 -> 41.66938619 | L187: =Euro!K187*Sterling!$C187 -> 59.11762629 | M187: =Euro!L187*Sterling!$C187 -> 38.21233279 | N187: =Euro!M187*Sterling!$C187 -> 34.30044062 | O187: =Euro!N187*Sterling!$C187 -> 73.51064314 | P187: =Euro!O187*Sterling!$C187 -> 32.19914286 | Q187: =Euro!P187*Sterling!$C187 -> 33.45102606 | R187: =Euro!Q187*Sterling!$C187 -> 35.41905714 | S187: =Euro!R187*Sterling!$C187 -> 57.40302193 | T187: =Euro!S187*Sterling!$C187 -> 41.38394836 | U187: =Euro!T187*Sterling!$C187 -> 58.38708924 | V187: =Euro!U187*Sterling!$C187 -> 56.82 | W187: =Euro!V187*Sterling!$C187 -> 40.79270705 | X187: =Euro!W187*Sterling!$C187 -> 40.07708253
B188: 2014-06-22 | C188: 0.7985785714 | D188: =Euro!C188*Sterling!$C188 -> 39.13035 | E188: =Euro!D188*Sterling!$C188 -> 50.92233275 | F188: =Euro!E188*Sterling!$C188 -> 36.30521523 | G188: =Euro!F188*Sterling!$C188 -> 47.99457214 | H188: =Euro!G188*Sterling!$C188 -> 31.47996729 | I188: =Euro!H188*Sterling!$C188 -> 35.43293121 | J188: =Euro!I188*Sterling!$C188 -> 31.46399571 | K188: =Euro!J188*Sterling!$C188 -> 41.35664213 | L188: =Euro!K188*Sterling!$C188 -> 58.38407936 | M188: =Euro!L188*Sterling!$C188 -> 37.77276643 | N188: =Euro!M188*Sterling!$C188 -> 35.76160975 | O188: =Euro!N188*Sterling!$C188 -> 72.92619514 | P188: =Euro!O188*Sterling!$C188 -> 31.54385357 | Q188: =Euro!P188*Sterling!$C188 -> 33.72227733 | R188: =Euro!Q188*Sterling!$C188 -> 35.13745714 | S188: =Euro!R188*Sterling!$C188 -> 56.94663793 | T188: =Euro!S188*Sterling!$C188 -> 41.40629893 | U188: =Euro!T188*Sterling!$C188 -> 58.09868792 | V188: =Euro!U188*Sterling!$C188 -> 55.89251421 | W188: =Euro!V188*Sterling!$C188 -> 40.25157257 | X188: =Euro!W188*Sterling!$C188 -> 39.47812474
B189: 2014-06-29 | C189: 0.7998642857 | D189: =Euro!C189*Sterling!$C189 -> 38.79341786 | E189: =Euro!D189*Sterling!$C189 -> 43.97434317 | F189: =Euro!E189*Sterling!$C189 -> 37.22622814 | G189: =Euro!F189*Sterling!$C189 -> 48.23181643 | H189: =Euro!G189*Sterling!$C189 -> 30.32285507 | I189: =Euro!H189*Sterling!$C189 -> 34.67411679 | J189: =Euro!I189*Sterling!$C189 -> 31.03473429 | K189: =Euro!J189*Sterling!$C189 -> 37.02203809 | L189: =Euro!K189*Sterling!$C189 -> 58.22212136 | M189: =Euro!L189*Sterling!$C189 -> 35.53797021 | N189: =Euro!M189*Sterling!$C189 -> 35.1731852 | O189: =Euro!N189*Sterling!$C189 -> 73.04360657 | P189: =Euro!O189*Sterling!$C189 -> 30.794775 | Q189: =Euro!P189*Sterling!$C189 -> 31.94827875 | R189: =Euro!Q189*Sterling!$C189 -> 35.19402857 | S189: =Euro!R189*Sterling!$C189 -> 57.03832221 | T189: =Euro!S189*Sterling!$C189 -> 43.03269857 | U189: =Euro!T189*Sterling!$C189 -> 57.90300653 | V189: =Euro!U189*Sterling!$C189 -> 56.49 | W189: =Euro!V189*Sterling!$C189 -> 39.85931333 | X189: =Euro!W189*Sterling!$C189 -> 39.09547378
B190: 2014-07-06 | C190: 0.7966785714 | D190: =Euro!C190*Sterling!$C190 -> 37.84223214 | E190: =Euro!D190*Sterling!$C190 -> 36.6937284 | F190: =Euro!E190*Sterling!$C190 -> 37.07512132 | G190: =Euro!F190*Sterling!$C190 -> 47.64137857 | H190: =Euro!G190*Sterling!$C190 -> 30.449055 | I190: =Euro!H190*Sterling!$C190 -> 33.34099821 | J190: =Euro!I190*Sterling!$C190 -> 30.43312143 | K190: =Euro!J190*Sterling!$C190 -> 36.83443322 | L190: =Euro!K190*Sterling!$C190 -> 57.8308975 | M190: =Euro!L190*Sterling!$C190 -> 28.48125893 | N190: =Euro!M190*Sterling!$C190 -> 32.07148122 | O190: =Euro!N190*Sterling!$C190 -> 72.75268714 | P190: =Euro!O190*Sterling!$C190 -> 29.87544643 | Q190: =Euro!P190*Sterling!$C190 -> 32.45567983 | R190: =Euro!Q190*Sterling!$C190 -> 35.05385714 | S190: =Euro!R190*Sterling!$C190 -> 46.2312575 | T190: =Euro!S190*Sterling!$C190 -> 40.8775775 | U190: =Euro!T190*Sterling!$C190 -> 62.1891452 | V190: =Euro!U190*Sterling!$C190 -> 56.65 | W190: =Euro!V190*Sterling!$C190 -> 39.11219723 | X190: =Euro!W190*Sterling!$C190 -> 38.30604046
B191: 2014-07-13 | C191: 0.7941571429 | D191: =Euro!C191*Sterling!$C191 -> 35.73707143 | E191: =Euro!D191*Sterling!$C191 -> 45.73056418 | F191: =Euro!E191*Sterling!$C191 -> 36.53497489 | G191: =Euro!F191*Sterling!$C191 -> 45.74345143 | H191: =Euro!G191*Sterling!$C191 -> 30.352686 | I191: =Euro!H191*Sterling!$C191 -> 31.64716214 | J191: =Euro!I191*Sterling!$C191 -> 28.90732 | K191: =Euro!J191*Sterling!$C191 -> 33.68955311 | L191: =Euro!K191*Sterling!$C191 -> 57.56845129 | M191: =Euro!L191*Sterling!$C191 -> 35.50676586 | N191: =Euro!M191*Sterling!$C191 -> 33.31027172 | O191: =Euro!N191*Sterling!$C191 -> 72.52243029 | P191: =Euro!O191*Sterling!$C191 -> 28.58965714 | Q191: =Euro!P191*Sterling!$C191 -> 31.12564895 | R191: =Euro!Q191*Sterling!$C191 -> 34.94291429 | S191: =Euro!R191*Sterling!$C191 -> 59.537961 | T191: =Euro!S191*Sterling!$C191 -> 42.77330371 | U191: =Euro!T191*Sterling!$C191 -> 59.73441419 | V191: =Euro!U191*Sterling!$C191 -> 55.36 | W191: =Euro!V191*Sterling!$C191 -> 37.96322069 | X191: =Euro!W191*Sterling!$C191 -> 37.14504854
B192: 2014-07-20 | C192: 0.7925857143 | D192: =Euro!C192*Sterling!$C192 -> 33.2886 | E192: =Euro!D192*Sterling!$C192 -> 39.71966084 | F192: =Euro!E192*Sterling!$C192 -> 35.60787572 | G192: =Euro!F192*Sterling!$C192 -> 43.90924857 | H192: =Euro!G192*Sterling!$C192 -> 30.60966029 | I192: =Euro!H192*Sterling!$C192 -> 30.05485029 | J192: =Euro!I192*Sterling!$C192 -> 27.42346571 | K192: =Euro!J192*Sterling!$C192 -> 33.56494374 | L192: =Euro!K192*Sterling!$C192 -> 57.45453843 | M192: =Euro!L192*Sterling!$C192 -> 30.53832757 | N192: =Euro!M192*Sterling!$C192 -> 30.6985623 | O192: =Euro!N192*Sterling!$C192 -> 72.37892743 | P192: =Euro!O192*Sterling!$C192 -> 26.55162143 | Q192: =Euro!P192*Sterling!$C192 -> 31.83210609 | R192: =Euro!Q192*Sterling!$C192 -> 34.87377143 | S192: =Euro!R192*Sterling!$C192 -> 59.420151 | T192: =Euro!S192*Sterling!$C192 -> 40.58038857 | U192: =Euro!T192*Sterling!$C192 -> 61.11628443 | V192: =Euro!U192*Sterling!$C192 -> 55.25 | W192: =Euro!V192*Sterling!$C192 -> 36.64084198 | X192: =Euro!W192*Sterling!$C192 -> 35.78567255
B193: 2014-07-27 | C193: 0.7912571429 | D193: =Euro!C193*Sterling!$C193 -> 32.44154286 | E193: =Euro!D193*Sterling!$C193 -> 38.25345011 | F193: =Euro!E193*Sterling!$C193 -> 34.69827695 | G193: =Euro!F193*Sterling!$C193 -> 42.01575429 | H193: =Euro!G193*Sterling!$C193 -> 31.30213257 | I193: =Euro!H193*Sterling!$C193 -> 29.51389143 | J193: =Euro!I193*Sterling!$C193 -> 26.74449143 | K193: =Euro!J193*Sterling!$C193 -> 33.58892985 | L193: =Euro!K193*Sterling!$C193 -> 57.35823029 | M193: =Euro!L193*Sterling!$C193 -> 31.37334571 | N193: =Euro!M193*Sterling!$C193 -> 32.04923459 | O193: =Euro!N193*Sterling!$C193 -> 72.25760229 | P193: =Euro!O193*Sterling!$C193 -> 24.9246 | Q193: =Euro!P193*Sterling!$C193 -> 31.29917112 | R193: =Euro!Q193*Sterling!$C193 -> 34.81531429 | S193: =Euro!R193*Sterling!$C193 -> 34.79157657 | T193: =Euro!S193*Sterling!$C193 -> 42.27686914 | U193: =Euro!T193*Sterling!$C193 -> 59.41816754 | V193: =Euro!U193*Sterling!$C193 -> 57.02979407 | W193: =Euro!V193*Sterling!$C193 -> 35.71861713 | X193: =Euro!W193*Sterling!$C193 -> 34.77320808
B194: 2014-08-03 | C194: 0.7929785714 | D194: =Euro!C194*Sterling!$C194 -> 31.71914286 | E194: =Euro!D194*Sterling!$C194 -> 37.97337844 | F194: =Euro!E194*Sterling!$C194 -> 34.77616363 | G194: =Euro!F194*Sterling!$C194 -> 41.78997071 | H194: =Euro!G194*Sterling!$C194 -> 30.5851835 | I194: =Euro!H194*Sterling!$C194 -> 29.57810071 | J194: =Euro!I194*Sterling!$C194 -> 26.32688857 | K194: =Euro!J194*Sterling!$C194 -> 33.59181381 | L194: =Euro!K194*Sterling!$C194 -> 57.173755 | M194: =Euro!L194*Sterling!$C194 -> 32.20285979 | N194: =Euro!M194*Sterling!$C194 -> 30.56074509 | O194: =Euro!N194*Sterling!$C194 -> 72.41480314 | P194: =Euro!O194*Sterling!$C194 -> 23.78935714 | Q194: =Euro!P194*Sterling!$C194 -> 30.94992607 | R194: =Euro!Q194*Sterling!$C194 -> 34.89105714 | S194: =Euro!R194*Sterling!$C194 -> 44.92223607 | T194: =Euro!S194*Sterling!$C194 -> 42.09923236 | U194: =Euro!T194*Sterling!$C194 -> 59.62141566 | V194: =Euro!U194*Sterling!$C194 -> 57.30051614 | W194: =Euro!V194*Sterling!$C194 -> 35.39988646 | X194: =Euro!W194*Sterling!$C194 -> 34.47994954
B195: 2014-08-10 | C195: 0.7953428571 | D195: =Euro!C195*Sterling!$C195 -> 31.01837143 | E195: =Euro!D195*Sterling!$C195 -> 37.79647019 | F195: =Euro!E195*Sterling!$C195 -> 34.88406022 | G195: =Euro!F195*Sterling!$C195 -> 41.7555 | H195: =Euro!G195*Sterling!$C195 -> 29.90489143 | I195: =Euro!H195*Sterling!$C195 -> 29.66628857 | J195: =Euro!I195*Sterling!$C195 -> 25.61004 | K195: =Euro!J195*Sterling!$C195 -> 32.9731692 | L195: =Euro!K195*Sterling!$C195 -> 57.22491857 | M195: =Euro!L195*Sterling!$C195 -> 34.80420343 | N195: =Euro!M195*Sterling!$C195 -> 28.27929738 | O195: =Euro!N195*Sterling!$C195 -> 72.63070971 | P195: =Euro!O195*Sterling!$C195 -> 22.66727143 | Q195: =Euro!P195*Sterling!$C195 -> 31.48967307 | R195: =Euro!Q195*Sterling!$C195 -> 34.99508571 | S195: =Euro!R195*Sterling!$C195 -> 52.84257943 | T195: =Euro!S195*Sterling!$C195 -> 40.586346 | U195: =Euro!T195*Sterling!$C195 -> 58.70251845 | V195: =Euro!U195*Sterling!$C195 -> 51.73953533 | W195: =Euro!V195*Sterling!$C195 -> 34.92680052 | X195: =Euro!W195*Sterling!$C195 -> 34.14325314
B196: 2014-08-17 | C196: 0.7993571429 | D196: =Euro!C196*Sterling!$C196 -> 30.37557143 | E196: =Euro!D196*Sterling!$C196 -> 45.68925589 | F196: =Euro!E196*Sterling!$C196 -> 35.38178534 | G196: =Euro!F196*Sterling!$C196 -> 41.56657143 | H196: =Euro!G196*Sterling!$C196 -> 29.86398286 | I196: =Euro!H196*Sterling!$C196 -> 28.08141643 | J196: =Euro!I196*Sterling!$C196 -> 25.41955714 | K196: =Euro!J196*Sterling!$C196 -> 36.92782199 | L196: =Euro!K196*Sterling!$C196 -> 57.51374643 | M196: =Euro!L196*Sterling!$C196 -> 34.26844071 | N196: =Euro!M196*Sterling!$C196 -> 28.04848291 | O196: =Euro!N196*Sterling!$C196 -> 72.99729429 | P196: =Euro!O196*Sterling!$C196 -> 21.58264286 | Q196: =Euro!P196*Sterling!$C196 -> 31.28284179 | R196: =Euro!Q196*Sterling!$C196 -> 35.17171429 | S196: =Euro!R196*Sterling!$C196 -> 51.84630429 | T196: =Euro!S196*Sterling!$C196 -> 42.78159429 | U196: =Euro!T196*Sterling!$C196 -> 60.18695659 | V196: =Euro!U196*Sterling!$C196 -> 55.56099686 | W196: =Euro!V196*Sterling!$C196 -> 34.95234878 | X196: =Euro!W196*Sterling!$C196 -> 34.02112265
B197: 2014-08-24 | C197: 0.8004142857 | D197: =Euro!C197*Sterling!$C197 -> 29.21512143 | E197: =Euro!D197*Sterling!$C197 -> 45.12079403 | F197: =Euro!E197*Sterling!$C197 -> 35.64252818 | G197: =Euro!F197*Sterling!$C197 -> 40.26083857 | H197: =Euro!G197*Sterling!$C197 -> 30.23965171 | I197: =Euro!H197*Sterling!$C197 -> 27.51824314 | J197: =Euro!I197*Sterling!$C197 -> 24.65276 | K197: =Euro!J197*Sterling!$C197 -> 36.31135436 | L197: =Euro!K197*Sterling!$C197 -> 57.15758414 | M197: =Euro!L197*Sterling!$C197 -> 36.33080443 | N197: =Euro!M197*Sterling!$C197 -> 37.7836364 | O197: =Euro!N197*Sterling!$C197 -> 73.09383257 | P197: =Euro!O197*Sterling!$C197 -> 20.41056429 | Q197: =Euro!P197*Sterling!$C197 -> 31.48245498 | R197: =Euro!Q197*Sterling!$C197 -> 35.21822857 | S197: =Euro!R197*Sterling!$C197 -> 51.91487057 | T197: =Euro!S197*Sterling!$C197 -> 41.43744757 | U197: =Euro!T197*Sterling!$C197 -> 58.93186249 | V197: =Euro!U197*Sterling!$C197 -> 51.23956104 | W197: =Euro!V197*Sterling!$C197 -> 34.38495373 | X197: =Euro!W197*Sterling!$C197 -> 33.58886655
B198: 2014-08-31 | C198: 0.7958714286 | D198: =Euro!C198*Sterling!$C198 -> 28.65137143 | E198: =Euro!D198*Sterling!$C198 -> 44.864705 | F198: =Euro!E198*Sterling!$C198 -> 35.45002352 | G198: =Euro!F198*Sterling!$C198 -> 38.75893857 | H198: =Euro!G198*Sterling!$C198 -> 31.22203614 | I198: =Euro!H198*Sterling!$C198 -> 27.02779371 | J198: =Euro!I198*Sterling!$C198 -> 23.87614286 | K198: =Euro!J198*Sterling!$C198 -> 40.31908533 | L198: =Euro!K198*Sterling!$C198 -> 56.06118343 | M198: =Euro!L198*Sterling!$C198 -> 33.79270086 | N198: =Euro!M198*Sterling!$C198 -> 29.17314474 | O198: =Euro!N198*Sterling!$C198 -> 72.67897886 | P198: =Euro!O198*Sterling!$C198 -> 19.10091429 | Q198: =Euro!P198*Sterling!$C198 -> 30.86628161 | R198: =Euro!Q198*Sterling!$C198 -> 35.01834286 | S198: =Euro!R198*Sterling!$C198 -> 51.62022086 | T198: =Euro!S198*Sterling!$C198 -> 42.26873157 | U198: =Euro!T198*Sterling!$C198 -> 57.7450882 | V198: =Euro!U198*Sterling!$C198 -> 53.74981363 | W198: =Euro!V198*Sterling!$C198 -> 33.52404539 | X198: =Euro!W198*Sterling!$C198 -> 32.62974092
B199: 2014-09-07 | C199: 0.7942428571 | D199: =Euro!C199*Sterling!$C199 -> 28.59274286 | E199: =Euro!D199*Sterling!$C199 -> 44.77289949 | F199: =Euro!E199*Sterling!$C199 -> 35.40480499 | G199: =Euro!F199*Sterling!$C199 -> 37.56768714 | H199: =Euro!G199*Sterling!$C199 -> 30.65777429 | I199: =Euro!H199*Sterling!$C199 -> 26.94071771 | J199: =Euro!I199*Sterling!$C199 -> 23.35074 | K199: =Euro!J199*Sterling!$C199 -> 35.23253372 | L199: =Euro!K199*Sterling!$C199 -> 55.23164829 | M199: =Euro!L199*Sterling!$C199 -> 35.15318886 | N199: =Euro!M199*Sterling!$C199 -> 30.15144446 | O199: =Euro!N199*Sterling!$C199 -> 72.53025771 | P199: =Euro!O199*Sterling!$C199 -> 19.06182857 | Q199: =Euro!P199*Sterling!$C199 -> 31.23653906 | R199: =Euro!Q199*Sterling!$C199 -> 34.94668571 | S199: =Euro!R199*Sterling!$C199 -> 50.85537014 | T199: =Euro!S199*Sterling!$C199 -> 42.11075629 | U199: =Euro!T199*Sterling!$C199 -> 58.06979571 | V199: =Euro!U199*Sterling!$C199 -> 52.55997416 | W199: =Euro!V199*Sterling!$C199 -> 33.10868359 | X199: =Euro!W199*Sterling!$C199 -> 32.25060435
B200: 2014-09-14 | C200: 0.7982357143 | D200: =Euro!C200*Sterling!$C200 -> 27.14001429 | E200: =Euro!D200*Sterling!$C200 -> 33.01119761 | F200: =Euro!E200*Sterling!$C200 -> 36.67118818 | G200: =Euro!F200*Sterling!$C200 -> 37.35743143 | H200: =Euro!G200*Sterling!$C200 -> 30.30102771 | I200: =Euro!H200*Sterling!$C200 -> 27.02027893 | J200: =Euro!I200*Sterling!$C200 -> 23.30848286 | K200: =Euro!J200*Sterling!$C200 -> 36.84121239 | L200: =Euro!K200*Sterling!$C200 -> 54.83081121 | M200: =Euro!L200*Sterling!$C200 -> 35.47359514 | N200: =Euro!M200*Sterling!$C200 -> 30.40152559 | O200: =Euro!N200*Sterling!$C200 -> 72.89488543 | P200: =Euro!O200*Sterling!$C200 -> 18.75853929 | Q200: =Euro!P200*Sterling!$C200 -> 31.97492801 | R200: =Euro!Q200*Sterling!$C200 -> 34.48378286 | S200: =Euro!R200*Sterling!$C200 -> 50.75182671 | T200: =Euro!S200*Sterling!$C200 -> 43.12069329 | U200: =Euro!T200*Sterling!$C200 -> 57.91639137 | V200: =Euro!U200*Sterling!$C200 -> 52.0000279 | W200: =Euro!V200*Sterling!$C200 -> 32.99021181 | X200: =Euro!W200*Sterling!$C200 -> 32.1640855
B201: 2014-09-21 | C201: 0.7922428571 | D201: =Euro!C201*Sterling!$C201 -> 25.35177143 | E201: =Euro!D201*Sterling!$C201 -> 42.47926976 | F201: =Euro!E201*Sterling!$C201 -> 35.54397579 | G201: =Euro!F201*Sterling!$C201 -> 35.57170429 | H201: =Euro!G201*Sterling!$C201 -> 28.94063157 | I201: =Euro!H201*Sterling!$C201 -> 26.81742071 | J201: =Euro!I201*Sterling!$C201 -> 22.65814571 | K201: =Euro!J201*Sterling!$C201 -> 37.90367114 | L201: =Euro!K201*Sterling!$C201 -> 53.69029843 | M201: =Euro!L201*Sterling!$C201 -> 33.70201114 | N201: =Euro!M201*Sterling!$C201 -> 33.91116326 | O201: =Euro!N201*Sterling!$C201 -> 72.34761771 | P201: =Euro!O201*Sterling!$C201 -> 17.42934286 | Q201: =Euro!P201*Sterling!$C201 -> 31.67466167 | R201: =Euro!Q201*Sterling!$C201 -> 34.22489143 | S201: =Euro!R201*Sterling!$C201 -> 50.37080086 | T201: =Euro!S201*Sterling!$C201 -> 41.74327614 | U201: =Euro!T201*Sterling!$C201 -> 56.8460394 | V201: =Euro!U201*Sterling!$C201 -> 52.75188676 | W201: =Euro!V201*Sterling!$C201 -> 32.29030003 | X201: =Euro!W201*Sterling!$C201 -> 31.43137515
B202: 2014-09-28 | C202: 0.7833142857 | D202: =Euro!C202*Sterling!$C202 -> 23.49942857 | E202: =Euro!D202*Sterling!$C202 -> 42.00052869 | F202: =Euro!E202*Sterling!$C202 -> 34.40574837 | G202: =Euro!F202*Sterling!$C202 -> 32.82086857 | H202: =Euro!G202*Sterling!$C202 -> 30.04010286 | I202: =Euro!H202*Sterling!$C202 -> 24.76839771 | J202: =Euro!I202*Sterling!$C202 -> 21.9328 | K202: =Euro!J202*Sterling!$C202 -> 37.17147445 | L202: =Euro!K202*Sterling!$C202 -> 51.94157029 | M202: =Euro!L202*Sterling!$C202 -> 30.16543314 | N202: =Euro!M202*Sterling!$C202 -> 27.41036014 | O202: =Euro!N202*Sterling!$C202 -> 71.53226057 | P202: =Euro!O202*Sterling!$C202 -> 15.27462857 | Q202: =Euro!P202*Sterling!$C202 -> 31.30382379 | R202: =Euro!Q202*Sterling!$C202 -> 33.83917714 | S202: =Euro!R202*Sterling!$C202 -> 45.15023543 | T202: =Euro!S202*Sterling!$C202 -> 42.26763886 | U202: =Euro!T202*Sterling!$C202 -> 56.78300089 | V202: =Euro!U202*Sterling!$C202 -> 50.72140162 | W202: =Euro!V202*Sterling!$C202 -> 30.46668816 | X202: =Euro!W202*Sterling!$C202 -> 29.60819608
... 352 more rows

Sheet Disclaimer and notes
A2: Notes
A4: These prices are subject to retrospective changes.
A5: na = not available
A6: c = confidential
A7: (*) = data not available
A9: Disclaimer
A11: While AHDB seeks to ensure that the information contained within this document is accurate at the time of printing, no warranty is given in respect of the information and data provided. You are responsible for how you use the information. To the maximum extent permitted by law, AHDB accepts no liability for loss, damage or injury howsoever caused or suffered (including that caused by negligence) directly or indirectly in relation to the information or data provided in this publication.
A16: All intellectual property rights in the information and data in this document belong to or are licensed by AHDB. You are authorised to use such information for your internal business purposes only and you must not provide this information to any other third parties, including further publication of the information, or for commercial gain in any way whatsoever without the prior written permission of AHDB for each third party disclosure, publication or commercial arrangement. For more information, please see our Terms of Use and Privacy Notice or contact the Director of Corporate Affairs at info@ahdb.org.uk
A21: © Agriculture and Horticulture Development Board 2021. All rights reserved.
A23: Contact us
A25: Head office address | B25: Agriculture and Horticulture Development Board Stoneleigh Park Kenilworth Warwickshire CV8 2TL
A30: Telephone | B30: 024 7669 2051
A31: Email | B31: mi@ahdb.org.uk
A32: Website | B32: ahdb.org.uk

Sheet Dates (hidden)
A1: 2024-01-07
A2: 2023-12-31
A3: 2023-12-24
A4: 2023-12-17
A5: 2023-12-10
A6: 2023-12-03
A7: 2023-11-26
A8: 2023-11-19
A9: 2023-11-12
A10: 2023-11-05
A11: 2023-10-29
A12: 2023-10-22
A13: 2023-10-15
A14: 2023-10-08
A15: 2023-10-01
A16: 2023-09-24
A17: 2023-09-17
A18: 2023-09-10
A19: 2023-09-03
A20: 2023-08-27
A21: 2023-08-20
A22: 2023-08-13
A23: 2023-08-06
A24: 2023-07-30
A25: 2023-07-23
A26: 2023-07-16
A27: 2023-07-09
A28: 2023-07-02
A29: 2023-06-25
A30: 2023-06-18
A31: 2023-06-11
A32: 2023-06-04
A33: 2023-05-28
A34: 2023-05-21
A35: 2023-05-14
A36: 2023-05-07
A37: 2023-04-30
A38: 2023-04-23
A39: 2023-04-16
A40: 2023-04-09
A41: 2023-04-02
A42: 2023-03-26
A43: 2023-03-19
A44: 2023-03-12
A45: 2023-03-05
A46: 2023-02-26
A47: 2023-02-19
A48: 2023-02-12
A49: 2023-02-05
A50: 2023-01-29
A51: 2023-01-22
A52: 2023-01-15
A53: 2023-01-08
A54: 2023-01-01
A55: 2022-12-25
A56: 2022-12-18
A57: 2022-12-11
A58: 2022-12-04
A59: 2022-11-27
A60: 2022-11-20
A61: 2022-11-13
A62: 2022-11-06
A63: 2022-10-30
A64: 2022-10-23
A65: 2022-10-16
A66: 2022-10-09
A67: 2022-10-02
A68: 2022-09-25
A69: 2022-09-18
A70: 2022-09-11
A71: 2022-09-04
A72: 2022-08-28
A73: 2022-08-21
A74: 2022-08-14
A75: 2022-08-07
A76: 2022-07-31
A77: 2022-07-24
A78: 2022-07-17
A79: 2022-07-10
A80: 2022-07-03
A81: 2022-06-26
A82: 2022-06-19
A83: 2022-06-12
A84: 2022-06-05
A85: 2022-05-29
A86: 2022-05-22
A87: 2022-05-15
A88: 2022-05-08
A89: 2022-05-01
A90: 2022-04-24
A91: 2022-04-17
A92: 2022-04-10
A93: 2022-04-03
A94: 2022-03-27
A95: 2022-03-20
A96: 2022-03-13
A97: 2022-03-06
A98: 2022-02-27
A99: 2022-02-20
A100: 2022-02-13
A101: 2022-02-06
A102: 2022-01-30
A103: 2022-01-23
A104: 2022-01-16
A105: 2022-01-09
A106: 2022-01-02
A107: 2021-12-26
A108: 2021-12-19
A109: 2021-12-12
A110: 2021-12-05
A111: 2021-11-28
A112: 2021-11-21
A113: 2021-11-14
A114: 2021-11-07
A115: 2021-10-31
A116: 2021-10-24
A117: 2021-10-17
A118: 2021-10-10
A119: 2021-10-03
A120: 2021-09-26
A121: 2021-09-19
A122: 2021-09-12
A123: 2021-09-05
A124: 2021-08-29
A125: 2021-08-22
A126: 2021-08-15
A127: 2021-08-08
A128: 2021-08-01
A129: 2021-07-25
A130: 2021-07-18
A131: 2021-07-11
A132: 2021-07-04
A133: 2021-06-27
A134: 2021-06-20
A135: 2021-06-13
A136: 2021-06-06
A137: 2021-05-30
A138: 2021-05-23
A139: 2021-05-16
A140: 2021-05-09
A141: 2021-05-02
A142: 2021-04-25
A143: 2021-04-18
A144: 2021-04-11
A145: 2021-04-04
A146: 2021-03-28
A147: 2021-03-21
A148: 2021-03-14
A149: 2021-03-07
A150: 2021-02-28
A151: 2021-02-21
A152: 2021-02-14
A153: 2021-02-07
A154: 2021-01-31
A155: 2021-01-24
A156: 2021-01-17
A157: 2021-01-10
A158: 2021-01-03
A159: 2020-12-27
A160: 2020-12-20
A161: 2020-12-13
A162: 2020-12-06
A163: 2020-11-29
A164: 2020-11-22
A165: 2020-11-15
A166: 2020-11-08
A167: 2020-11-01
A168: 2020-10-25
A169: 2020-10-18
A170: 2020-10-11
A171: 2020-10-04
A172: 2020-09-27
A173: 2020-09-20
A174: 2020-09-13
A175: 2020-09-06
A176: 2020-08-30
A177: 2020-08-23
A178: 2020-08-16
A179: 2020-08-09
A180: 2020-08-02
A181: 2020-07-26
A182: 2020-07-19
A183: 2020-07-12
A184: 2020-07-05
A185: 2020-06-28
A186: 2020-06-21
A187: 2020-06-14
A188: 2020-06-07
A189: 2020-05-31
A190: 2020-05-24
A191: 2020-05-17
A192: 2020-05-10
A193: 2020-05-03
A194: 2020-04-26
A195: 2020-04-19
A196: 2020-04-12
A197: 2020-04-05
A198: 2020-03-29
A199: 2020-03-22
A200: 2020-03-15
... 62 more rows
